Service Area,Service Division,Expense Type,Expense Code,Detailed Expense Type,Payment Date,Transaction Number,Amount Exc VAT,Supplier Name
Non-Service Specific,Non Service Specific-Financing,Long Term Debtors,924001,Car loans,02/05/2023,4128541-120613,583.00,ARRIVA NORTHUMBRIA LTD.
Regeneration Economy and Growth,Corporate Property and Land,Premises,106082,Centrally Controlled Rep and Maint,02/05/2023,4128523-21041,556.04,ACEDA LTD.
Regeneration Economy and Growth,Culture Sport and Tourism,Premises,106082,Centrally Controlled Rep and Maint,02/05/2023,4128681-7081020676,820.81,HONEYWELL NOVAR SYSTEMS LTD.
Regeneration Economy and Growth,Corporate Property and Land,Premises,106080,Centrally Controlled Rep and Maint,02/05/2023,4128700-28234,"3,010.50",JC MAINTENANCE SERVICES LTD.
Children and Young Peoples Services,Head of Early Help Inclusion & Vulnerable Children.,Premises,106083,Centrally Controlled Rep and Maint,02/05/2023,4128700-28289,"19,129.15",JC MAINTENANCE SERVICES LTD.
Regeneration Economy and Growth,Culture Sport and Tourism,Premises,145023,Cleaning and Domestic Supplies,02/05/2023,4128668-06/219618,733.95,GREENHAM TRADING LTD.
Regeneration Economy and Growth,Corporate Property and Land,Supplies and Services,342033,Computers and Communications,02/05/2023,4128690-2100577684,"2,527.92",INSIGHT DIRECT (UK) LTD.
Children and Young Peoples Services,Head of Education and Skills,Supplies and Services,342051,Computers and Communications,02/05/2023,4128814-INVUK812977,"3,673.26",SOFTCAT PLC.
Dedicated Schools Grant BG0015,DSG High Needs Block,Supplies and Services,352001,Conference Expenses,02/05/2023,4128658-3133,"2,475.00",FUTURE STEPS CONSULTANCY SERVICE LTD.
Children and Young Peoples Services,Head of Education and Skills,Transport,230008,Contract Hire,02/05/2023,4128533-E055MAR23,"3,194.61",REDACTED - PAYMENT TO INDIVIDUAL
Children and Young Peoples Services,Head of Education and Skills,Transport,230006,Contract Hire,02/05/2023,4128665-TT-HK2303,"2,031.01",REDACTED - PAYMENT TO INDIVIDUAL
Children and Young Peoples Services,Head of Education and Skills,Transport,230006,Contract Hire,02/05/2023,4128687-F877/03,"1,665.26",REDACTED - PAYMENT TO INDIVIDUAL
Children and Young Peoples Services,Head of Education and Skills,Transport,230008,Contract Hire,02/05/2023,4128738-N038-MAR23,"4,320.09",REDACTED - PAYMENT TO INDIVIDUAL
Children and Young Peoples Services,Head of Education and Skills,Transport,230007,Contract Hire,02/05/2023,4128739-51/2023,"3,328.00",REDACTED - PAYMENT TO INDIVIDUAL
Children and Young Peoples Services,Head of Education and Skills,Transport,230035,Contract Hire,02/05/2023,4128742-113,"1,304.79",REDACTED - PAYMENT TO INDIVIDUAL
Children and Young Peoples Services,Head of Education and Skills,Transport,230006,Contract Hire,02/05/2023,4128766-F741-MAR23,"4,064.05",REDACTED - PAYMENT TO INDIVIDUAL
Children and Young Peoples Services,Head of Education and Skills,Transport,230007,Contract Hire,02/05/2023,4128822-5290/03,"1,721.55",REDACTED - PAYMENT TO INDIVIDUAL
Children and Young Peoples Services,Head of Education and Skills,Transport,230007,Contract Hire,02/05/2023,4128823-6973,"8,560.71",REDACTED - PAYMENT TO INDIVIDUAL
Children and Young Peoples Services,Head of Education and Skills,Transport,230034,Contract Hire,02/05/2023,4128513-32310,"3,418.50",24/7 TAXI SERVICES (PETERLEE) LTD.
Children and Young Peoples Services,Head of Education and Skills,Transport,230008,Contract Hire,02/05/2023,4128563-N079/03,"4,680.00",BON VOYAGE TAXIS LTD.
Children and Young Peoples Services,Head of Education and Skills,Transport,230008,Contract Hire,02/05/2023,4128578-CW39,"1,960.58",CHIPPERS TAXIS.
Children and Young Peoples Services,Head of Education and Skills,Transport,230008,Contract Hire,02/05/2023,4128592-1-REPROVIDED,"4,140.00",CONSETT CONTRACTS LTD.
Children and Young Peoples Services,Head of Education and Skills,Transport,230008,Contract Hire,02/05/2023,4128592-10-REPROVIDED,"3,329.72",CONSETT CONTRACTS LTD.
Children and Young Peoples Services,Head of Education and Skills,Transport,230008,Contract Hire,02/05/2023,4128592-11-MAR23-REPROVIDED,"3,568.00",CONSETT CONTRACTS LTD.
Children and Young Peoples Services,Head of Education and Skills,Transport,230008,Contract Hire,02/05/2023,4128592-12-REPROVIDED,"3,791.55",CONSETT CONTRACTS LTD.
Children and Young Peoples Services,Head of Education and Skills,Transport,230008,Contract Hire,02/05/2023,4128592-13-REPROVIDED,"3,220.00",CONSETT CONTRACTS LTD.
Children and Young Peoples Services,Head of Education and Skills,Transport,230007,Contract Hire,02/05/2023,4128592-16/2023,"2,700.00",CONSETT CONTRACTS LTD.
Dedicated Schools Grant BG0015,DSG High Needs Block,Transport,230009,Contract Hire,02/05/2023,4128592-17-MAR23-REPROVIDED,"6,600.00",CONSETT CONTRACTS LTD.
Children and Young Peoples Services,Head of Education and Skills,Transport,230008,Contract Hire,02/05/2023,4128592-6-REPROVIDED,"3,836.80",CONSETT CONTRACTS LTD.
Children and Young Peoples Services,Head of Education and Skills,Transport,230008,Contract Hire,02/05/2023,4128592-7-REPROVIDED,"2,452.95",CONSETT CONTRACTS LTD.
Children and Young Peoples Services,Head of Education and Skills,Transport,230008,Contract Hire,02/05/2023,4128592-8-MAR23-REPROVIDED,"4,620.09",CONSETT CONTRACTS LTD.
Children and Young Peoples Services,Head of Education and Skills,Transport,230008,Contract Hire,02/05/2023,4128592-9-REPROVIDED,"3,675.93",CONSETT CONTRACTS LTD.
Children and Young Peoples Services,Head of Education and Skills,Transport,230007,Contract Hire,02/05/2023,4128604-115540,"5,032.98",CROFT BUSINESS SERVICES LTD T/A CROFT TRAVEL.
Children and Young Peoples Services,Head of Education and Skills,Transport,230006,Contract Hire,02/05/2023,4128604-115547,"5,191.92",CROFT BUSINESS SERVICES LTD T/A CROFT TRAVEL.
Children and Young Peoples Services,Head of Education and Skills,Transport,230034,Contract Hire,02/05/2023,4128630-INV0218,"3,381.67",EC UK TRANSPORT LTD T/A EMPIRE CARS.
Children and Young Peoples Services,Head of Education and Skills,Transport,230010,Contract Hire,02/05/2023,4128649-PB004-003,"2,238.65",FERRYHILL VILLAGE TRAVEL & BROOM ROAD GARAGE LIMITED.
Adult and Health Services,Head of Adults,Transport,230005,Contract Hire,02/05/2023,4128659-103365,"2,148.52",G & P JOHNSON LTD T/A NIGHTINGALE COACHES.
Children and Young Peoples Services,Head of Education and Skills,Transport,230008,Contract Hire,02/05/2023,4128659-103387,"3,295.44",G & P JOHNSON LTD T/A NIGHTINGALE COACHES.
Children and Young Peoples Services,Head of Education and Skills,Transport,230003,Contract Hire,02/05/2023,4128661-24474/3005,"7,747.32",GARNETTS LTD (COACHES).
Children and Young Peoples Services,Head of Education and Skills,Transport,230006,Contract Hire,02/05/2023,4128671-007/2023,"1,039.53",GUY`S TAXIS.
Children and Young Peoples Services,Head of Education and Skills,Transport,230016,Contract Hire,02/05/2023,4128676-HT705,"1,763.28",HARRY`S TAXI`S.
Children and Young Peoples Services,Head of Education and Skills,Transport,230008,Contract Hire,02/05/2023,4128686-1140,892.23,I & R EXECUTIVE TRAVEL.
Children and Young Peoples Services,Head of Education and Skills,Transport,230007,Contract Hire,02/05/2023,4128713-3203,"2,124.95",KINGSWAY CABS LTD.
Children and Young Peoples Services,Head of Education and Skills,Transport,230009,Contract Hire,02/05/2023,4128713-3234,"3,360.28",KINGSWAY CABS LTD.
Children and Young Peoples Services,Head of Education and Skills,Transport,230008,Contract Hire,02/05/2023,4128728-5395,"3,020.00",LOCAL TRANSPORT LTD.
Children and Young Peoples Services,Head of Education and Skills,Transport,230012,Contract Hire,02/05/2023,4128728-5396,"1,836.09",LOCAL TRANSPORT LTD.
Children and Young Peoples Services,Head of Education and Skills,Transport,230008,Contract Hire,02/05/2023,4128728-5397,"2,207.77",LOCAL TRANSPORT LTD.
Children and Young Peoples Services,Head of Education and Skills,Transport,230008,Contract Hire,02/05/2023,4128728-5398,"2,014.34",LOCAL TRANSPORT LTD.
Children and Young Peoples Services,Head of Education and Skills,Transport,230007,Contract Hire,02/05/2023,4128768-1170-3039,"3,937.33",PBS TRAVEL LTD.
Children and Young Peoples Services,Head of Education and Skills,Transport,230008,Contract Hire,02/05/2023,4128771-811,"2,943.54",PETERLEE EXECUTIVE CARS.
Children and Young Peoples Services,Head of Education and Skills,Transport,230034,Contract Hire,02/05/2023,4128773-54246,600.00,PHOENIX TAXIS T/A PRATT`S TAXIS.
Children and Young Peoples Services,Head of Education and Skills,Transport,230016,Contract Hire,02/05/2023,4128785-SI-22143,933.25,RAPID MINIBUSES.
Children and Young Peoples Services,Head of Education and Skills,Transport,230007,Contract Hire,02/05/2023,4128864-7726,"4,187.75",WEARDALE PRIVATE HIRE.
Adult and Health Services,Public Health CC0450,Third Party Payments,460803,Contract Payments,02/05/2023,4128512-INV-0071,"1,000.00",23 LTD T/A SMOKE FREE.
Neighbourhoods and Climate Change,Partnerships & Community Engagement Div.,Cap Exp on Grants & Other Financial Assistance (REFCUS),918004,Contributions to other bodies 918004,02/05/2023,4128510-VOUCHER22NB-CHES035,"3,000.00",1507 (CHESTER LE STREET) SQUADRON.
Neighbourhoods and Climate Change,Partnerships & Community Engagement Div.,Cap Exp on Grants & Other Financial Assistance (REFCUS),918004,Contributions to other bodies 918004,02/05/2023,4128551-VOUCHER22AB-TEES013,"15,000.00",BARNARD CASTLE FOOTBALL CLUB (BOWES).
Neighbourhoods and Climate Change,Partnerships & Community Engagement Div.,Cap Exp on Grants & Other Financial Assistance (REFCUS),918004,Contributions to other bodies 918004,02/05/2023,4128597-VOUCHER21TVF-4TOG003,"10,000.00",CORNFORTH PARISH COUNCIL.
Neighbourhoods and Climate Change,Partnerships & Community Engagement Div.,Cap Exp on Grants & Other Financial Assistance (REFCUS),918004,Contributions to other bodies 918004,02/05/2023,4128648-VOUCHER22NB-4TOG013,"4,984.00",FERRYHILL LADDER CENTRE LTD.
Neighbourhoods and Climate Change,Partnerships & Community Engagement Div.,Cap Exp on Grants & Other Financial Assistance (REFCUS),918004,Contributions to other bodies 918004,02/05/2023,4128653-VOUCHER21TVF-EDRC005,"11,760.00",FISHBURN PARISH COUNCIL.
Neighbourhoods and Climate Change,Partnerships & Community Engagement Div.,Cap Exp on Grants & Other Financial Assistance (REFCUS),918004,Contributions to other bodies 918004,02/05/2023,4128730-VOUCHER22NB-DCTY050,"8,940.00",LOWES BARN COMMUNITY PROJECT CIO.
Neighbourhoods and Climate Change,Partnerships & Community Engagement Div.,Cap Exp on Grants & Other Financial Assistance (REFCUS),918004,Contributions to other bodies 918004,02/05/2023,4128764-VOUCHER23NB-EDUR005,"3,037.20",PARKSIDE & DISTRICT COMMUNITY ASSOCIATION.
Neighbourhoods and Climate Change,Partnerships & Community Engagement Div.,Cap Exp on Grants & Other Financial Assistance (REFCUS),918004,Contributions to other bodies 918004,02/05/2023,4128840-VOUCHER22MTVF-TEES003,"10,000.00",THE WITHAM HALL LTD.
Neighbourhoods and Climate Change,Partnerships & Community Engagement Div.,Cap Exp on Grants & Other Financial Assistance (REFCUS),918004,Contributions to other bodies 918004,02/05/2023,4128856-VOUCHER22AB-MDUR002,"10,186.00",USHAW COLLEGE.
Regeneration Economy and Growth,Culture Sport and Tourism,Premises,120037,Energy Costs,02/05/2023,4128570-36076475,"1,081.60",CALOR GAS LTD.
Neighbourhoods and Climate Change,Environmental Services,Supplies and Services,304259,Equipment and Materials,02/05/2023,4128553-18287,"39,175.00",BEAMER LTD.
Neighbourhoods and Climate Change,Highways,Supplies and Services,304221,Equipment and Materials,02/05/2023,4128539-SIN007131,647.70,ARBOR TIMBER & BUILDERS MERCHANTS LTD.
Neighbourhoods and Climate Change,Highways,Supplies and Services,304221,Equipment and Materials,02/05/2023,4128560-207R02603,640.09,BIFFA WASTE SERVICES LTD.
Regeneration Economy and Growth,Corporate Property and Land,Supplies and Services,304221,Equipment and Materials,02/05/2023,4128631-059-317290,"2,632.00",EDMUNDSON ELECTRICAL LTD.
Regeneration Economy and Growth,Corporate Property and Land,Supplies and Services,304221,Equipment and Materials,02/05/2023,4128631-059-317298,687.45,EDMUNDSON ELECTRICAL LTD.
Regeneration Economy and Growth,Corporate Property and Land,Supplies and Services,304221,Equipment and Materials,02/05/2023,4128631-059-317317,"2,600.00",EDMUNDSON ELECTRICAL LTD.
Regeneration Economy and Growth,Corporate Property and Land,Supplies and Services,304221,Equipment and Materials,02/05/2023,4128631-059-317328,511.42,EDMUNDSON ELECTRICAL LTD.
Dedicated Schools Grant BG0015,DSG High Needs Block,Supplies and Services,304259,Equipment and Materials,02/05/2023,4128644-343275,"2,838.00",ETAC LTD.
Resources BK0010,Digital Services,Supplies and Services,304303,Equipment and Materials,02/05/2023,4128672-INV0193037,"7,086.33",GVAV LTD.
Resources BK0010,Digital Services,Supplies and Services,304303,Equipment and Materials,02/05/2023,4128672-INV0193038,"3,258.85",GVAV LTD.
Regeneration Economy and Growth,Corporate Property and Land,Supplies and Services,304221,Equipment and Materials,02/05/2023,4128763-BR696707,"3,594.48",PARK ELECTRICAL DISTRIBUTORS LTD.
Neighbourhoods and Climate Change,Environmental Services,Supplies and Services,304259,Equipment and Materials,02/05/2023,4128790-00014891,"1,850.00",ROBERT ACTON PRODUCT DEVELOPMENTS.
Neighbourhoods and Climate Change,Highways,Supplies and Services,304221,Equipment and Materials,02/05/2023,4128826-9046747118,"1,350.59",TARMAC TRADING LTD.
Neighbourhoods and Climate Change,Highways,Supplies and Services,304221,Equipment and Materials,02/05/2023,4128853-245254,"2,289.67",TYNEDALE ROADSTONE LTD.
Regeneration Economy and Growth,Culture Sport and Tourism,Supplies and Services,384199,Miscellaneous Expenses,02/05/2023,4128546-0000083473,517.00,BADGEMASTER LTD.
Regeneration Economy and Growth,Business Durham CL0850,Supplies and Services,384199,Miscellaneous Expenses,02/05/2023,4128666-1067296,"1,216.00",GLOBAL EXPERIENCE SPECIALISTS (GES) LTD.
Neighbourhoods and Climate Change,Partnerships & Community Engagement Div.,Supplies and Services,384086,Miscellaneous Expenses,02/05/2023,4128720-VOUCHERSHIA02-23,950.00,"LEADGATE CAF (ARTS, CRAFTS & FRIENDSHIP GROUP)."
Neighbourhoods and Climate Change,Partnerships & Community Engagement Div.,Supplies and Services,384086,Miscellaneous Expenses,02/05/2023,4128818-VOUCHER23NB-WEAR001,"4,000.00",STANHOPE SILVER BAND.
Neighbourhoods and Climate Change,Partnerships & Community Engagement Div.,Supplies and Services,384086,Miscellaneous Expenses,02/05/2023,4128805-VOUCHER22NB-DCTY049,"1,000.00",SHADFORTH COMMUNITY ASSOCIATION.
Neighbourhoods and Climate Change,Environmental Services,Supplies and Services,384700,Miscellaneous Expenses,02/05/2023,4128719-AONB-02-06/04/2023,"1,000.00",REDACTED - PAYMENT TO INDIVIDUAL
Neighbourhoods and Climate Change,Partnerships & Community Engagement Div.,Supplies and Services,384086,Miscellaneous Expenses,02/05/2023,4128534-VOUCHERKCBELC01-23,600.00,ANNFIELD PLAIN ASSOCIATED FOOTBALL CLUB (AFC).
Regeneration Economy and Growth,Corporate Property and Land,Supplies and Services,384199,Miscellaneous Expenses,02/05/2023,4128544-23014777,"1,250.00",ATKINS GLOBAL.
Neighbourhoods and Climate Change,Partnerships & Community Engagement Div.,Supplies and Services,384086,Miscellaneous Expenses,02/05/2023,4128628-VOUCHER22NB-EDUR060,"8,893.00",EASINGTON COLLIERY REGENERATION PARTNERSHIP.
Neighbourhoods and Climate Change,Environmental Services,Supplies and Services,384956,Miscellaneous Expenses,02/05/2023,4128641-Y00011485T,"5,504.30",ENVIRONMENT AGENCY.
Neighbourhoods and Climate Change,Environmental Services,Supplies and Services,384956,Miscellaneous Expenses,02/05/2023,4128641-Y00011497T,"5,504.30",ENVIRONMENT AGENCY.
Neighbourhoods and Climate Change,Environmental Services,Supplies and Services,384194,Miscellaneous Expenses,02/05/2023,4128795-7401,"1,507.40",SAFE STRIP UK LTD.
Neighbourhoods and Climate Change,Environmental Services,Supplies and Services,384194,Miscellaneous Expenses,02/05/2023,4128795-7402,644.20,SAFE STRIP UK LTD.
Neighbourhoods and Climate Change,Environmental Services,Supplies and Services,384194,Miscellaneous Expenses,02/05/2023,4128795-7403,879.60,SAFE STRIP UK LTD.
Neighbourhoods and Climate Change,Environmental Services,Supplies and Services,384194,Miscellaneous Expenses,02/05/2023,4128795-7407,839.60,SAFE STRIP UK LTD.
Children and Young Peoples Services,Head of Education and Skills,Supplies and Services,312009,Newspapers books and periodicals E312,02/05/2023,4128543-6859770,913.52,ASKEWS & HOLTS LIBRARY SERVICES LTD.
Regeneration Economy and Growth,Culture Sport and Tourism,Supplies and Services,312013,Newspapers books and periodicals E312,02/05/2023,4128543-6867494,799.97,ASKEWS & HOLTS LIBRARY SERVICES LTD.
Regeneration Economy and Growth,Culture Sport and Tourism,Supplies and Services,312013,Newspapers books and periodicals E312,02/05/2023,4128543-6869719,765.35,ASKEWS & HOLTS LIBRARY SERVICES LTD.
Regeneration Economy and Growth,Culture Sport and Tourism,Supplies and Services,312013,Newspapers books and periodicals E312,02/05/2023,4128625-15042023,914.57,DURHAM CITY NEWSTORE.
Children and Young Peoples Services,Head of Education and Skills,Third Party Payments,440999,Other third party payments E440,02/05/2023,4128655-0000001320,"14,000.00",FOUNDATION OF LIGHT.
Regeneration Economy and Growth,Culture Sport and Tourism,Supplies and Services,340001,Postages E340,02/05/2023,4128792-1802633330,870.00,ROYAL MAIL GROUP PLC.
Regeneration Economy and Growth,Culture Sport and Tourism,Supplies and Services,324117,Provisions E324,02/05/2023,4128559-20801384,759.11,BIDFOOD.
Regeneration Economy and Growth,Culture Sport and Tourism,Supplies and Services,324117,Provisions E324,02/05/2023,4128559-20898477,616.86,BIDFOOD.
Adult and Health Services,Head of Adults,Third Party Payments,479102,Purchase of Care,02/05/2023,4128778-INV-0138,"7,679.56",POSITIVE CARE & SUPPORT LTD.
Children and Young Peoples Services,Head of Early Help Inclusion & Vulnerable Children.,Third Party Payments,410037,Rendered by Other Local Authorities,02/05/2023,4128607-6062,560.00,DAISY CHAIN PROJECT TEESSIDE.
Children and Young Peoples Services,Head of Early Help Inclusion & Vulnerable Children.,Third Party Payments,410037,Rendered by Other Local Authorities,02/05/2023,4128607-6095,640.00,DAISY CHAIN PROJECT TEESSIDE.
Children and Young Peoples Services,Head of Early Help Inclusion & Vulnerable Children.,Third Party Payments,410037,Rendered by Other Local Authorities,02/05/2023,4128607-6150,960.00,DAISY CHAIN PROJECT TEESSIDE.
Children and Young Peoples Services,Head of Early Help Inclusion & Vulnerable Children.,Third Party Payments,410037,Rendered by Other Local Authorities,02/05/2023,4128607-6198,720.00,DAISY CHAIN PROJECT TEESSIDE.
Children and Young Peoples Services,Head of Early Help Inclusion & Vulnerable Children.,Third Party Payments,410037,Rendered by Other Local Authorities,02/05/2023,4128753-INV-6949,"1,129.80",NUDGE EDUCATION LTD.
Children and Young Peoples Services,Head of Early Help Inclusion & Vulnerable Children.,Third Party Payments,410037,Rendered by Other Local Authorities,02/05/2023,4128753-INV-7001,908.82,NUDGE EDUCATION LTD.
Regeneration Economy and Growth,Corporate Property and Land,Third Party Payments,430100,Rendered by Private Contractors,02/05/2023,4128555-SI-7188,800.00,BELL CONTROL SOLUTIONS LTD.
Regeneration Economy and Growth,Culture Sport and Tourism,Third Party Payments,430100,Rendered by Private Contractors,02/05/2023,4128590-INV00803,516.75,COMPETITION LINE UK LTD T/A LIFESTYLE FITNESS.
Neighbourhoods and Climate Change,Highways,Third Party Payments,430127,Rendered by Private Contractors,02/05/2023,4128646-410,630.00,F WARD FARM.
Neighbourhoods and Climate Change,Highways,Third Party Payments,430128,Rendered by Private Contractors,02/05/2023,4128647-416,"1,727.50",F WARD FARM.
Neighbourhoods and Climate Change,Highways,Third Party Payments,430128,Rendered by Private Contractors,02/05/2023,4128647-421,"1,140.00",F WARD FARM.
Regeneration Economy and Growth,Corporate Property and Land,Third Party Payments,430100,Rendered by Private Contractors,02/05/2023,4128657-502200,778.00,FT LEISURE LTD.
Neighbourhoods and Climate Change,Highways,Third Party Payments,430100,Rendered by Private Contractors,02/05/2023,4128678-3508,"4,992.00",HIGHWAY CONSTRUCTION SERVICES LTD.
Regeneration Economy and Growth,Transport and Contracted Services,Third Party Payments,430105,Rendered by Private Contractors,02/05/2023,4128679-22982,"117,527.21",HODGSONS COACH OPERATORS LTD.
Regeneration Economy and Growth,Corporate Property and Land,Third Party Payments,430100,Rendered by Private Contractors,02/05/2023,4128688-14118,"2,840.00",INGLEFORD SCAFFOLDING LTD.
Neighbourhoods and Climate Change,Highways,Third Party Payments,430128,Rendered by Private Contractors,02/05/2023,4128709-INV-0043,"1,515.00",JW TEWARD & SONS (HAULAGE) LTD.
Regeneration Economy and Growth,Corporate Property and Land,Third Party Payments,430100,Rendered by Private Contractors,02/05/2023,4128746-41963,"2,225.89",NE & C WINDOWS & DOORS LTD.
Regeneration Economy and Growth,Corporate Property and Land,Third Party Payments,430100,Rendered by Private Contractors,02/05/2023,4128746-43191,504.40,NE & C WINDOWS & DOORS LTD.
Regeneration Economy and Growth,Corporate Property and Land,Third Party Payments,430100,Rendered by Private Contractors,02/05/2023,4128746-43361,"23,915.80",NE & C WINDOWS & DOORS LTD.
Regeneration Economy and Growth,Corporate Property and Land,Third Party Payments,430100,Rendered by Private Contractors,02/05/2023,4128758-5300,"22,260.03",ORA PROPERTY SERVICES LTD.
Neighbourhoods and Climate Change,Highways,Third Party Payments,430100,Rendered by Private Contractors,02/05/2023,4128776-6493,"5,669.12",PINKNEY BUILDING CONTRACTORS LTD.
Neighbourhoods and Climate Change,Highways,Third Party Payments,430100,Rendered by Private Contractors,02/05/2023,4128776-6499,"5,600.32",PINKNEY BUILDING CONTRACTORS LTD.
Neighbourhoods and Climate Change,Highways,Third Party Payments,430100,Rendered by Private Contractors,02/05/2023,4128776-6500,"7,017.60",PINKNEY BUILDING CONTRACTORS LTD.
Regeneration Economy and Growth,Corporate Property and Land,Third Party Payments,430100,Rendered by Private Contractors,02/05/2023,4128804-23329,"5,697.49",SEYMOUR (CIVIL ENGINEERING CONTRACTORS) LTD.
Regeneration Economy and Growth,Transport and Contracted Services,Third Party Payments,430105,Rendered by Private Contractors,02/05/2023,4128820-40722,"11,006.40",STANLEY TRAVEL (NORTH EAST) LTD.
Neighbourhoods and Climate Change,Environmental Services,Transport,215005,Running Costs of Vehicles,02/05/2023,4128870-1144769,"16,124.27",YOUR NRG LTD.
Regeneration Economy and Growth,Corporate Property and Land,Premises,108099,Service Repairs and Maintenance,02/05/2023,4128524-52150860,"1,289.14",ADT FIRE & SECURITY PLC.
Regeneration Economy and Growth,Corporate Property and Land,Premises,108099,Service Repairs and Maintenance,02/05/2023,4128606-4274-23,"1,054.88",CURTIS SITE SERVICES (NORTH EAST) LTD T/A CSS ELECTRICAL & MECHANICAL.
Regeneration Economy and Growth,Corporate Property and Land,Premises,108099,Service Repairs and Maintenance,02/05/2023,4128638-99159,"2,329.00",EIAT UK LTD (ELECTRICAL INSTALLATION & APPLIANCE TESTING UK).
Neighbourhoods and Climate Change,Environmental Services,Premises,108099,Service Repairs and Maintenance,02/05/2023,4128681-7081020574,797.68,HONEYWELL NOVAR SYSTEMS LTD.
Regeneration Economy and Growth,Business Durham CL0850,Premises,108099,Service Repairs and Maintenance,02/05/2023,4128700-28275,"19,449.04",JC MAINTENANCE SERVICES LTD.
Regeneration Economy and Growth,Corporate Property and Land,Premises,108099,Service Repairs and Maintenance,02/05/2023,4128700-28276,"4,077.00",JC MAINTENANCE SERVICES LTD.
Regeneration Economy and Growth,Corporate Property and Land,Premises,108099,Service Repairs and Maintenance,02/05/2023,4128795-7405,"1,300.00",SAFE STRIP UK LTD.
Regeneration Economy and Growth,Corporate Property and Land,Premises,108099,Service Repairs and Maintenance,02/05/2023,4128798-0006078088,"1,590.00",SAV SYSTEMS.
Neighbourhoods and Climate Change,Environmental Services,Supplies and Services,338066,Services,02/05/2023,4128674-196624,"1,153.00",H & H REEDS PRINTERS LTD.
Regeneration Economy and Growth,Culture Sport and Tourism,Supplies and Services,338047,Services,02/05/2023,4128639-GALA76,"1,000.00",REDACTED - PAYMENT TO INDIVIDUAL
Regeneration Economy and Growth,Culture Sport and Tourism,Supplies and Services,338047,Services,02/05/2023,4128639-GALA77,"2,000.00",REDACTED - PAYMENT TO INDIVIDUAL
Regeneration Economy and Growth,Corporate Property and Land,Supplies and Services,338027,Services,02/05/2023,4128544-23014775,"3,685.00",ATKINS GLOBAL.
Children and Young Peoples Services,Head of Education and Skills,Supplies and Services,338001,Services,02/05/2023,4128544-23014776,"40,800.00",ATKINS GLOBAL.
Resources BK0010,Corporate Finance & Commercial Services,Supplies and Services,338066,Services,02/05/2023,4128562-SIN042483,"5,572.43",BLOOM PROCUREMENT SERVICES LTD (FORMERLY NEPRO LTD).
Resources BK0010,Transactional & Customer Services,Supplies and Services,338066,Services,02/05/2023,4128584-C/BN270513,819.52,CIVICA UK LTD.
Children and Young Peoples Services,Head of Childrens Social Care,Supplies and Services,338044,Services,02/05/2023,4128591-110143,504.00,COMPLEMENT GENOMICS LTD.
Resources BK0010,Legal & Democratic Services,Supplies and Services,338101,Services,02/05/2023,4128599-3910021579,"20,796.60",COUNTY DURHAM & DARLINGTON NHS FOUNDATION TRUST (CDDFT).
Resources BK0010,Legal & Democratic Services,Supplies and Services,338042,Services,02/05/2023,4128613-358021/INVSRG275,758.33,DERE STREET BARRISTERS.
Children and Young Peoples Services,Head of Childrens Social Care,Supplies and Services,338044,Services,02/05/2023,4128623-JG-1-070722,601.40,DR URSULA CAWTHORNE T/A CAWTHORNE PSYCHOLOGICAL SERVICES LTD.
Resources BK0010,Legal & Democratic Services,Supplies and Services,338105,Services,02/05/2023,4128654-PNC20230079,500.00,FORENSIC PATHOLOGY LTD.
Neighbourhoods and Climate Change,Highways,Supplies and Services,338027,Services,02/05/2023,4128663-GEOLLK2905,599.00,GEOMATICS UK LTD.
Regeneration Economy and Growth,Business Durham CL0850,Supplies and Services,338066,Services,02/05/2023,4128735-INV-0630,660.00,MCDONOUGH MARKETING COMMUNICATIONS LTD T/A MMC.
Regeneration Economy and Growth,REG - Central Costs,Supplies and Services,338029,Services,02/05/2023,4128844-17328,531.00,TILE HILL INTERIM & EXECUTIVE LTD.
Neighbourhoods and Climate Change,Environmental Services,Supplies and Services,338078,Services,02/05/2023,4128860-INV-56936,"3,561.10",VISTECH SERVICES LTD.
Children and Young Peoples Services,Head of Early Help Inclusion & Vulnerable Children.,Supplies and Services,338078,Services,02/05/2023,4128860-INV-56937,"8,131.23",VISTECH SERVICES LTD.
Neighbourhoods and Climate Change,Environmental Services,Supplies and Services,338078,Services,02/05/2023,4128860-INV-56938,"1,192.00",VISTECH SERVICES LTD.
Neighbourhoods and Climate Change,Environmental Services,Supplies and Services,338078,Services,02/05/2023,4128860-INV-56939,"3,441.90",VISTECH SERVICES LTD.
Neighbourhoods and Climate Change,Environmental Services,Supplies and Services,338078,Services,02/05/2023,4128860-INV-56940,"4,037.90",VISTECH SERVICES LTD.
Regeneration Economy and Growth,Culture Sport and Tourism,Supplies and Services,338047,Services,02/05/2023,4128862-23136550,764.00,WARNER BROS ENTERTAINMENT UK LTD.
Resources BK0010,Digital Services,Intangible Assets,917001,Software capitalised licence fees,02/05/2023,4128783-93014098,"50,844.50",QUADIENT FINANCE UK LTD FORMERLY NEOPOST LTD.
Resources BK0010,Digital Services,Stock A926,926900,Stock in hand-Inventory system,02/05/2023,4128690-2100572275,"8,250.30",INSIGHT DIRECT (UK) LTD.
Neighbourhoods and Climate Change,Highways,Stock A926,926900,Stock in hand-Inventory system,02/05/2023,4128691-880900,"3,477.60",INSTARMAC GROUP PLC.
Neighbourhoods and Climate Change,Highways,Stock A926,926900,Stock in hand-Inventory system,02/05/2023,4128691-880984,"2,788.80",INSTARMAC GROUP PLC.
Neighbourhoods and Climate Change,Highways,Stock A926,926900,Stock in hand-Inventory system,02/05/2023,4128763-XL298775,"3,180.00",PARK ELECTRICAL DISTRIBUTORS LTD.
Children and Young Peoples Services,Head of Education and Skills,Supplies and Services,372009,Subscriptions E372,02/05/2023,4128650-SI-001202,"4,426.95",FFT EDUCATION LTD.
Regeneration Economy and Growth,Business Durham CL0850,Supplies and Services,344033,Telephones,02/05/2023,4128837-005327479,"1,053.28",THE PHONE CO-OP.
Non-Service Specific,Non Service Specific-Financing,Long Term Debtors,924001,Car loans,03/05/2023,4129478-120655,575.00,ARRIVA NORTHUMBRIA LTD.
Regeneration Economy and Growth,Business Durham CL0850,Premises,106082,Centrally Controlled Rep and Maint,03/05/2023,4129591-28076,"13,325.42",JC MAINTENANCE SERVICES LTD.
Regeneration Economy and Growth,Culture Sport and Tourism,Premises,145023,Cleaning and Domestic Supplies,03/05/2023,4129501-22SI2287216,558.88,BRENNTAG UK LTD.
Resources BK0010,Digital Services,Supplies and Services,342033,Computers and Communications,03/05/2023,4129584-2100571426,743.34,INSIGHT DIRECT (UK) LTD.
Children and Young Peoples Services,Head of Education and Skills,Transport,230006,Contract Hire,03/05/2023,4129610-1620-MAR23,"1,620.00",L&D TAXIS NE LTD.
Dedicated Schools Grant BG0015,DSG High Needs Block,Transport,230009,Contract Hire,03/05/2023,4129610-4044,"1,705.72",L&D TAXIS NE LTD.
Children and Young Peoples Services,Head of Education and Skills,Transport,230008,Contract Hire,03/05/2023,4129610-4051,"1,120.00",L&D TAXIS NE LTD.
Children and Young Peoples Services,Head of Education and Skills,Transport,230006,Contract Hire,03/05/2023,4129610-4052,"1,260.00",L&D TAXIS NE LTD.
Children and Young Peoples Services,Head of Education and Skills,Transport,230008,Contract Hire,03/05/2023,4129467-MAR23-E202,"3,162.37",REDACTED - PAYMENT TO INDIVIDUAL
Children and Young Peoples Services,Head of Education and Skills,Transport,230009,Contract Hire,03/05/2023,4129468-7-7384-MAR23,"2,026.84",REDACTED - PAYMENT TO INDIVIDUAL
Children and Young Peoples Services,Head of Education and Skills,Transport,230003,Contract Hire,03/05/2023,4129508-47669,"3,850.43",REDACTED - PAYMENT TO INDIVIDUAL
Children and Young Peoples Services,Head of Education and Skills,Transport,230003,Contract Hire,03/05/2023,4129508-47670/47674,"3,853.20",REDACTED - PAYMENT TO INDIVIDUAL
Children and Young Peoples Services,Head of Education and Skills,Transport,230034,Contract Hire,03/05/2023,4129525-13,"2,544.00",REDACTED - PAYMENT TO INDIVIDUAL
Children and Young Peoples Services,Head of Education and Skills,Transport,230006,Contract Hire,03/05/2023,4129526-B80,"1,260.00",REDACTED - PAYMENT TO INDIVIDUAL
Children and Young Peoples Services,Head of Education and Skills,Transport,230006,Contract Hire,03/05/2023,4129529-94MAR2023,"2,700.00",REDACTED - PAYMENT TO INDIVIDUAL
Children and Young Peoples Services,Head of Education and Skills,Transport,230009,Contract Hire,03/05/2023,4129533-03-2023-3466,"2,604.22",REDACTED - PAYMENT TO INDIVIDUAL
Children and Young Peoples Services,Head of Education and Skills,Transport,230006,Contract Hire,03/05/2023,4129533-03-2023-F127,"2,893.55",REDACTED - PAYMENT TO INDIVIDUAL
Children and Young Peoples Services,Head of Education and Skills,Transport,230006,Contract Hire,03/05/2023,4129533-03-2023-F220,"5,677.20",REDACTED - PAYMENT TO INDIVIDUAL
Children and Young Peoples Services,Head of Education and Skills,Transport,230006,Contract Hire,03/05/2023,4129533-03-2023-F230,"3,291.11",REDACTED - PAYMENT TO INDIVIDUAL
Children and Young Peoples Services,Head of Education and Skills,Transport,230006,Contract Hire,03/05/2023,4129533-03-2023-F246,980.00,REDACTED - PAYMENT TO INDIVIDUAL
Children and Young Peoples Services,Head of Education and Skills,Transport,230012,Contract Hire,03/05/2023,4129533-03-2023-M035,"3,326.06",REDACTED - PAYMENT TO INDIVIDUAL
Children and Young Peoples Services,Head of Education and Skills,Transport,230006,Contract Hire,03/05/2023,4129533-03/2023-W098,"1,564.21",REDACTED - PAYMENT TO INDIVIDUAL
Children and Young Peoples Services,Head of Education and Skills,Transport,230006,Contract Hire,03/05/2023,4129562-TT-BC2303,"1,490.56",REDACTED - PAYMENT TO INDIVIDUAL
Children and Young Peoples Services,Head of Education and Skills,Transport,230006,Contract Hire,03/05/2023,4129562-TT-NC2303,"1,371.20",REDACTED - PAYMENT TO INDIVIDUAL
Children and Young Peoples Services,Head of Education and Skills,Transport,230010,Contract Hire,03/05/2023,4129596-294,"2,954.08",REDACTED - PAYMENT TO INDIVIDUAL
Children and Young Peoples Services,Head of Education and Skills,Transport,230006,Contract Hire,03/05/2023,4129630-19-F894,"4,831.48",REDACTED - PAYMENT TO INDIVIDUAL
Children and Young Peoples Services,Head of Education and Skills,Transport,230006,Contract Hire,03/05/2023,4129631-F262-MAR23,"2,850.00",REDACTED - PAYMENT TO INDIVIDUAL
Children and Young Peoples Services,Head of Education and Skills,Transport,230008,Contract Hire,03/05/2023,4129631-N086-MAR23,"4,255.00",REDACTED - PAYMENT TO INDIVIDUAL
Children and Young Peoples Services,Head of Education and Skills,Transport,230008,Contract Hire,03/05/2023,4129631-S024-MAR 23,"3,714.33",REDACTED - PAYMENT TO INDIVIDUAL
Adult and Health Services,Head of Adults,Transport,230005,Contract Hire,03/05/2023,4129634-43/2023,"1,068.69",REDACTED - PAYMENT TO INDIVIDUAL
Children and Young Peoples Services,Head of Education and Skills,Transport,230009,Contract Hire,03/05/2023,4129635-DCC/009/23,"2,669.84",REDACTED - PAYMENT TO INDIVIDUAL
Children and Young Peoples Services,Head of Education and Skills,Transport,230006,Contract Hire,03/05/2023,4129636-3011,"4,314.76",REDACTED - PAYMENT TO INDIVIDUAL
Children and Young Peoples Services,Head of Education and Skills,Transport,230034,Contract Hire,03/05/2023,4129638-4501MAR23,"2,933.44",REDACTED - PAYMENT TO INDIVIDUAL
Children and Young Peoples Services,Head of Education and Skills,Transport,230006,Contract Hire,03/05/2023,4129639-F283/03/23,561.81,REDACTED - PAYMENT TO INDIVIDUAL
Children and Young Peoples Services,Head of Education and Skills,Transport,230010,Contract Hire,03/05/2023,4129640-07-BL043-MAR23,"3,465.41",REDACTED - PAYMENT TO INDIVIDUAL
Adult and Health Services,Head of Adults,Transport,230005,Contract Hire,03/05/2023,4129640-11-010423,"1,410.65",REDACTED - PAYMENT TO INDIVIDUAL
Children and Young Peoples Services,Head of Education and Skills,Transport,230010,Contract Hire,03/05/2023,4129641-FERRY0323,"3,661.38",REDACTED - PAYMENT TO INDIVIDUAL
Children and Young Peoples Services,Head of Education and Skills,Transport,230006,Contract Hire,03/05/2023,4129642-CBA007,824.70,REDACTED - PAYMENT TO INDIVIDUAL
Children and Young Peoples Services,Head of Education and Skills,Transport,230034,Contract Hire,03/05/2023,4129642-TNB37,"2,878.37",REDACTED - PAYMENT TO INDIVIDUAL
Children and Young Peoples Services,Head of Education and Skills,Transport,230006,Contract Hire,03/05/2023,4129673-F234-MAR23,"3,150.00",REDACTED - PAYMENT TO INDIVIDUAL
Children and Young Peoples Services,Head of Education and Skills,Transport,230007,Contract Hire,03/05/2023,4129708-128,"1,929.18",REDACTED - PAYMENT TO INDIVIDUAL
Children and Young Peoples Services,Head of Education and Skills,Transport,230035,Contract Hire,03/05/2023,4129735-3233493,"1,947.62",REDACTED - PAYMENT TO INDIVIDUAL
Children and Young Peoples Services,Head of Education and Skills,Transport,230034,Contract Hire,03/05/2023,4129457-32304,"1,218.70",24/7 TAXI SERVICES (PETERLEE) LTD.
Children and Young Peoples Services,Head of Education and Skills,Transport,230008,Contract Hire,03/05/2023,4129458-0323/SD,"2,549.05",AABAT TAXIS.
Children and Young Peoples Services,Head of Education and Skills,Transport,230010,Contract Hire,03/05/2023,4129459-0590,"3,415.44",ABC & OUSTON CABS.
Children and Young Peoples Services,Head of Education and Skills,Transport,230006,Contract Hire,03/05/2023,4129460-901,748.92,AC TAXIS.
Children and Young Peoples Services,Head of Education and Skills,Transport,230007,Contract Hire,03/05/2023,4129461-AC2062,"1,762.60",ACE TAXIS (WINSTON).
Children and Young Peoples Services,Head of Education and Skills,Transport,230007,Contract Hire,03/05/2023,4129464-401,"1,819.76",ALANS TAXIS BARNARD CASTLE.
Children and Young Peoples Services,Head of Education and Skills,Transport,230007,Contract Hire,03/05/2023,4129464-405,"2,573.70",ALANS TAXIS BARNARD CASTLE.
Adult and Health Services,Head of Adults,Transport,230005,Contract Hire,03/05/2023,4129482-DCC17MAR23,900.00,ATLAS TAXIS MANAGEMENT LTD.
Children and Young Peoples Services,Head of Education and Skills,Transport,230008,Contract Hire,03/05/2023,4129482-DCC5MAR23,900.00,ATLAS TAXIS MANAGEMENT LTD.
Children and Young Peoples Services,Head of Education and Skills,Transport,230007,Contract Hire,03/05/2023,4129486-SH-PITT0323,"1,376.21",BENS TAXIS.
Children and Young Peoples Services,Head of Education and Skills,Transport,230007,Contract Hire,03/05/2023,4129491-INV-695,"1,999.85",BILL SCOTT TAXIS LTD.
Adult and Health Services,Head of Adults,Transport,230005,Contract Hire,03/05/2023,4129492-0720,988.08,BIRDS TAXIS LTD.
Children and Young Peoples Services,Head of Education and Skills,Transport,230035,Contract Hire,03/05/2023,4129495-02487,"2,665.20",BLUELINE SOUTH INCORPORATING NAVIGATION TAXIS T/A BLUELINE TAXIS.
Children and Young Peoples Services,Head of Education and Skills,Transport,230006,Contract Hire,03/05/2023,4129495-INV02138,"1,042.50",BLUELINE SOUTH INCORPORATING NAVIGATION TAXIS T/A BLUELINE TAXIS.
Children and Young Peoples Services,Head of Education and Skills,Transport,230008,Contract Hire,03/05/2023,4129498-N116-MAR23,"1,100.00",BON VOYAGE TAXIS LTD.
Children and Young Peoples Services,Head of Education and Skills,Transport,230008,Contract Hire,03/05/2023,4129498-W141-MAR23,"4,600.00",BON VOYAGE TAXIS LTD.
Children and Young Peoples Services,Head of Education and Skills,Transport,230008,Contract Hire,03/05/2023,4129512-32,"1,459.20",CONNORS MINI BUSES.*
Children and Young Peoples Services,Head of Education and Skills,Transport,230008,Contract Hire,03/05/2023,4129513-15,"3,600.00",CONSETT CONTRACTS LTD.
Children and Young Peoples Services,Head of Education and Skills,Transport,230008,Contract Hire,03/05/2023,4129513-4,"5,980.00",CONSETT CONTRACTS LTD.
Children and Young Peoples Services,Head of Education and Skills,Transport,230008,Contract Hire,03/05/2023,4129520-115550,"1,568.80",CROFT BUSINESS SERVICES LTD T/A CROFT TRAVEL.
Children and Young Peoples Services,Head of Education and Skills,Transport,230008,Contract Hire,03/05/2023,4129520-115555,"2,416.04",CROFT BUSINESS SERVICES LTD T/A CROFT TRAVEL.
Children and Young Peoples Services,Head of Education and Skills,Transport,230008,Contract Hire,03/05/2023,4129520-115557,"2,601.76",CROFT BUSINESS SERVICES LTD T/A CROFT TRAVEL.
Children and Young Peoples Services,Head of Education and Skills,Transport,230034,Contract Hire,03/05/2023,4129543-1523,520.00,EAST DURHAM TAXIS.
Children and Young Peoples Services,Head of Education and Skills,Transport,230008,Contract Hire,03/05/2023,4129543-1539,"4,370.80",EAST DURHAM TAXIS.
Children and Young Peoples Services,Head of Education and Skills,Transport,230008,Contract Hire,03/05/2023,4129552-E128/0323,"3,605.40",ELLIOTTS OF TRIMDON.
Children and Young Peoples Services,Head of Education and Skills,Transport,230006,Contract Hire,03/05/2023,4129557-F242-MAR23,"2,377.96",FREEDOM PRIVATE HIRE.
Children and Young Peoples Services,Head of Education and Skills,Transport,230008,Contract Hire,03/05/2023,4129559-103353,"1,152.00",G & P JOHNSON LTD T/A NIGHTINGALE COACHES.
Adult and Health Services,Head of Adults,Transport,230005,Contract Hire,03/05/2023,4129559-103362,"2,116.00",G & P JOHNSON LTD T/A NIGHTINGALE COACHES.
Children and Young Peoples Services,Head of Education and Skills,Transport,230007,Contract Hire,03/05/2023,4129560-24469,"17,072.21",GARNETTS LTD (COACHES).
Children and Young Peoples Services,Head of Education and Skills,Transport,230034,Contract Hire,03/05/2023,4129576-15-010423,"1,950.33",HORNDALE TAXIS.
Children and Young Peoples Services,Head of Education and Skills,Transport,230006,Contract Hire,03/05/2023,4129588-6549-310323,"1,632.00",J YOUNG T/A VIP TAXIS.
Children and Young Peoples Services,Head of Education and Skills,Transport,230006,Contract Hire,03/05/2023,4129594-82-MAR23,"1,400.00",JOHN CRAKE & SONS MINI BUSES LTD.
Children and Young Peoples Services,Head of Education and Skills,Transport,230010,Contract Hire,03/05/2023,4129599-1390,"3,546.00",K & R TAXIS (STANLEY).
Children and Young Peoples Services,Head of Education and Skills,Transport,230010,Contract Hire,03/05/2023,4129605-3233,"4,683.00",KINGSWAY CABS LTD.
Adult and Health Services,Head of Adults,Transport,230005,Contract Hire,03/05/2023,4129605-MAR23-NCL001,"2,895.67",KINGSWAY CABS LTD.
Children and Young Peoples Services,Head of Education and Skills,Transport,230008,Contract Hire,03/05/2023,4129608-MARCH23-N064,723.63,LARS CARS LTD T/A STREETCARS.
Children and Young Peoples Services,Head of Education and Skills,Transport,230003,Contract Hire,03/05/2023,4129611-32387,"5,134.52",LEE`S COACHES LTD.
Children and Young Peoples Services,Head of Education and Skills,Transport,230008,Contract Hire,03/05/2023,4129622-INV03-2023-38,756.00,MARK & JOHN CHISHOLM T/A (CHEVRON).
Children and Young Peoples Services,Head of Education and Skills,Transport,230010,Contract Hire,03/05/2023,4129622-INV03/2023-13,"2,626.75",MARK & JOHN CHISHOLM T/A (CHEVRON).
Children and Young Peoples Services,Head of Education and Skills,Transport,230008,Contract Hire,03/05/2023,4129622-INV03/2023-36,"4,286.40",MARK & JOHN CHISHOLM T/A (CHEVRON).
Children and Young Peoples Services,Head of Education and Skills,Transport,230006,Contract Hire,03/05/2023,4129622-INV03/2023-39,"1,050.00",MARK & JOHN CHISHOLM T/A (CHEVRON).
Children and Young Peoples Services,Head of Education and Skills,Transport,230007,Contract Hire,03/05/2023,4129622-INV03/2023-41,"1,936.00",MARK & JOHN CHISHOLM T/A (CHEVRON).
Children and Young Peoples Services,Head of Education and Skills,Transport,230006,Contract Hire,03/05/2023,4129653-MAR23-F806,"1,501.77",ND TAXIS.
Children and Young Peoples Services,Head of Education and Skills,Transport,230007,Contract Hire,03/05/2023,4129671-3508-MAR23,"1,819.76",PB PRIVATE HIRE.
Children and Young Peoples Services,Head of Education and Skills,Transport,230006,Contract Hire,03/05/2023,4129676-54244,"5,880.72",PHOENIX TAXIS T/A PRATT`S TAXIS.
Children and Young Peoples Services,Head of Education and Skills,Transport,230008,Contract Hire,03/05/2023,4129683-MH3,"3,616.00",PRESTYS HACKNEY & PRIVATE HIRE TAXIS.
Children and Young Peoples Services,Head of Education and Skills,Transport,230006,Contract Hire,03/05/2023,4129683-ST19,"3,638.93",PRESTYS HACKNEY & PRIVATE HIRE TAXIS.
Children and Young Peoples Services,Head of Education and Skills,Transport,230006,Contract Hire,03/05/2023,4129686-SI-2453,"4,000.00",PTL TAXIS LTD.
Children and Young Peoples Services,Head of Education and Skills,Transport,230006,Contract Hire,03/05/2023,4129686-SI-2467,"3,898.49",PTL TAXIS LTD.
Children and Young Peoples Services,Head of Education and Skills,Transport,230007,Contract Hire,03/05/2023,4129691-7-4005310323,"5,138.89",RAYNERS COACHES.
Children and Young Peoples Services,Head of Education and Skills,Transport,230007,Contract Hire,03/05/2023,4129691-7-4006,"3,634.00",RAYNERS COACHES.
Children and Young Peoples Services,Head of Education and Skills,Transport,230007,Contract Hire,03/05/2023,4129696-1929,"6,785.00",ROBERTS TOURS.
Children and Young Peoples Services,Head of Education and Skills,Transport,230008,Contract Hire,03/05/2023,4129700-W178/26,"2,030.67",S & S TRAVEL LTD.
Children and Young Peoples Services,Head of Education and Skills,Transport,230009,Contract Hire,03/05/2023,4129704-3469,"1,975.00",SIMONS TAXIS.
Children and Young Peoples Services,Head of Education and Skills,Transport,230010,Contract Hire,03/05/2023,4129707-08299,"2,267.55",STANLEY TRAVEL (NORTH EAST) LTD.
Children and Young Peoples Services,Head of Education and Skills,Transport,230006,Contract Hire,03/05/2023,4129707-08301,"1,040.63",STANLEY TRAVEL (NORTH EAST) LTD.
Children and Young Peoples Services,Head of Education and Skills,Transport,230006,Contract Hire,03/05/2023,4129707-08315,"2,720.26",STANLEY TRAVEL (NORTH EAST) LTD.
Children and Young Peoples Services,Head of Education and Skills,Transport,230006,Contract Hire,03/05/2023,4129707-08318,"2,813.70",STANLEY TRAVEL (NORTH EAST) LTD.
Adult and Health Services,Head of Adults,Transport,230005,Contract Hire,03/05/2023,4129707-08323,"1,144.00",STANLEY TRAVEL (NORTH EAST) LTD.
Children and Young Peoples Services,Head of Education and Skills,Transport,230003,Contract Hire,03/05/2023,4129707-62165,"3,634.46",STANLEY TRAVEL (NORTH EAST) LTD.
Children and Young Peoples Services,Head of Education and Skills,Transport,230008,Contract Hire,03/05/2023,4129711-M052-MAR23,"3,920.00",TAILORMADE TRAVEL.
Adult and Health Services,Public Health CC0450,Third Party Payments,460803,Contract Payments,03/05/2023,4129462-INV06721,"4,250.00",ADFERIAD RECOVERY LTD.
Regeneration Economy and Growth,Corporate Property and Land,Supplies and Services,304221,Equipment and Materials,03/05/2023,4129545-059-317326,"1,814.12",EDMUNDSON ELECTRICAL LTD.
Neighbourhoods and Climate Change,Highways,Supplies and Services,304358,Equipment and Materials,03/05/2023,4129595-32427,"1,269.50",JOHN R BUTTERFIELD LTD.
Neighbourhoods and Climate Change,Highways,Supplies and Services,304358,Equipment and Materials,03/05/2023,4129595-32436,"1,269.50",JOHN R BUTTERFIELD LTD.
Neighbourhoods and Climate Change,Highways,Supplies and Services,304358,Equipment and Materials,03/05/2023,4129595-32442,"1,269.50",JOHN R BUTTERFIELD LTD.
Neighbourhoods and Climate Change,Highways,Supplies and Services,304358,Equipment and Materials,03/05/2023,4129595-32443,"1,507.00",JOHN R BUTTERFIELD LTD.
Neighbourhoods and Climate Change,Highways,Supplies and Services,304358,Equipment and Materials,03/05/2023,4129595-32453,"3,171.40",JOHN R BUTTERFIELD LTD.
Neighbourhoods and Climate Change,Highways,Supplies and Services,304358,Equipment and Materials,03/05/2023,4129595-32454,674.25,JOHN R BUTTERFIELD LTD.
Neighbourhoods and Climate Change,Highways,Supplies and Services,304358,Equipment and Materials,03/05/2023,4129595-32455,"1,532.50",JOHN R BUTTERFIELD LTD.
Neighbourhoods and Climate Change,Highways,Supplies and Services,304358,Equipment and Materials,03/05/2023,4129603-4452,555.50,KEVIN SNOWDON GROUNDWORKS LTD.
Neighbourhoods and Climate Change,Highways,Supplies and Services,304358,Equipment and Materials,03/05/2023,4129603-4453,934.25,KEVIN SNOWDON GROUNDWORKS LTD.
Neighbourhoods and Climate Change,Highways,Supplies and Services,304358,Equipment and Materials,03/05/2023,4129603-4455,984.75,KEVIN SNOWDON GROUNDWORKS LTD.
Neighbourhoods and Climate Change,Highways,Supplies and Services,304358,Equipment and Materials,03/05/2023,4129603-4456,934.25,KEVIN SNOWDON GROUNDWORKS LTD.
Neighbourhoods and Climate Change,Highways,Supplies and Services,304358,Equipment and Materials,03/05/2023,4129603-4457,934.25,KEVIN SNOWDON GROUNDWORKS LTD.
Neighbourhoods and Climate Change,Highways,Supplies and Services,304358,Equipment and Materials,03/05/2023,4129603-4458,934.25,KEVIN SNOWDON GROUNDWORKS LTD.
Neighbourhoods and Climate Change,Highways,Supplies and Services,304358,Equipment and Materials,03/05/2023,4129603-4459,623.00,KEVIN SNOWDON GROUNDWORKS LTD.
Neighbourhoods and Climate Change,Highways,Supplies and Services,304358,Equipment and Materials,03/05/2023,4129603-4460,980.50,KEVIN SNOWDON GROUNDWORKS LTD.
Neighbourhoods and Climate Change,Highways,Supplies and Services,304358,Equipment and Materials,03/05/2023,4129603-4461,"1,334.25",KEVIN SNOWDON GROUNDWORKS LTD.
Neighbourhoods and Climate Change,Highways,Supplies and Services,304358,Equipment and Materials,03/05/2023,4129603-4462,"1,170.13",KEVIN SNOWDON GROUNDWORKS LTD.
Neighbourhoods and Climate Change,Highways,Supplies and Services,304358,Equipment and Materials,03/05/2023,4129603-4463,868.13,KEVIN SNOWDON GROUNDWORKS LTD.
Neighbourhoods and Climate Change,Highways,Supplies and Services,304358,Equipment and Materials,03/05/2023,4129603-4464,"1,157.50",KEVIN SNOWDON GROUNDWORKS LTD.
Neighbourhoods and Climate Change,Highways,Supplies and Services,304358,Equipment and Materials,03/05/2023,4129603-4468,"1,125.00",KEVIN SNOWDON GROUNDWORKS LTD.
Neighbourhoods and Climate Change,Highways,Supplies and Services,304358,Equipment and Materials,03/05/2023,4129603-4472,"1,320.00",KEVIN SNOWDON GROUNDWORKS LTD.
Neighbourhoods and Climate Change,Highways,Supplies and Services,304358,Equipment and Materials,03/05/2023,4129655-NC/224/BW,650.00,NEDCO CONTRACTS (NE) LTD.
Neighbourhoods and Climate Change,Highways,Supplies and Services,304358,Equipment and Materials,03/05/2023,4129655-NC/225/BW,650.00,NEDCO CONTRACTS (NE) LTD.
Neighbourhoods and Climate Change,Highways,Supplies and Services,304358,Equipment and Materials,03/05/2023,4129734-51810,"2,570.00",W MARLEY AGRICULTURAL CONTRACTORS LTD.
Neighbourhoods and Climate Change,Highways,Supplies and Services,304358,Equipment and Materials,03/05/2023,4129745-9307,846.45,YOULL CONSTRUCTION LTD.
Regeneration Economy and Growth,Business Durham CL0850,Supplies and Services,384199,Miscellaneous Expenses,03/05/2023,4129563-1069135,515.58,GLOBAL EXPERIENCE SPECIALISTS (GES) LTD.
Adult and Health Services,Head of Adults,Supplies and Services,384199,Miscellaneous Expenses,03/05/2023,4129527-4100828411,"1,200.00",REDACTED - PAYMENT TO INDIVIDUAL
Dedicated Schools Grant BG0015,DSG High Needs Block,Supplies and Services,384302,Miscellaneous Expenses,03/05/2023,4129547-CPDC2021-22/3/23,"22,500.00",EDUCATION PLUS NE LTD.
Regeneration Economy and Growth,Culture Sport and Tourism,Supplies and Services,384199,Miscellaneous Expenses,03/05/2023,4129606-PO/4100828296,"1,152.00",KJF PRODUCTION SERVICES (THEATRE SUPPLIER).
Children and Young Peoples Services,Head of Early Help Inclusion & Vulnerable Children.,Supplies and Services,384409,Miscellaneous Expenses,03/05/2023,4129614-00020,"17,309.66",LISA MCGEE EDUCATION LTD.
Regeneration Economy and Growth,Culture Sport and Tourism,Supplies and Services,312013,Newspapers books and periodicals E312,03/05/2023,4129497-118884,825.67,BOLINDA DIGITAL LTD.
Regeneration Economy and Growth,Culture Sport and Tourism,Supplies and Services,312013,Newspapers books and periodicals E312,03/05/2023,4129497-119586,600.49,BOLINDA DIGITAL LTD.
Resources BK0010,Transactional & Customer Services,Third Party Payments,440999,Other third party payments E440,03/05/2023,4129542-RES-04-2023-495,"35,000.00",EAST DURHAM COMMUNITY DEVELOPMENT TRUST LTD T/A EAST DURHAM TRUST.
Children and Young Peoples Services,Head of Education and Skills,Third Party Payments,440999,Other third party payments E440,03/05/2023,4129579-SI-HK-000857,"57,750.00",HUMANKIND CHARITY.
Resources BK0010,Legal & Democratic Services,Supplies and Services,340001,Postages E340,03/05/2023,4129698-9067183918,"25,355.99",ROYAL MAIL GROUP PLC.
Adult and Health Services,Head of Adults,Third Party Payments,478101,Purchase of Care,03/05/2023,4129725-SMR482244,"11,191.44",UNITED RESPONSE.
Neighbourhoods and Climate Change,Environmental Services,Third Party Payments,430100,Rendered by Private Contractors,03/05/2023,4129556-01-2023,750.00,FOREST INVENTORY.
Regeneration Economy and Growth,Corporate Property and Land,Third Party Payments,430100,Rendered by Private Contractors,03/05/2023,4129505-748,"5,366.60",CEILINGS DIRECT LTD.
Regeneration Economy and Growth,Corporate Property and Land,Third Party Payments,430100,Rendered by Private Contractors,03/05/2023,4129505-754,"38,839.89",CEILINGS DIRECT LTD.
Neighbourhoods and Climate Change,Highways,Third Party Payments,430127,Rendered by Private Contractors,03/05/2023,4129581-3110,"3,260.00",IAN C LIDDLE T/A IC LIDDLE SERVICES.
Neighbourhoods and Climate Change,Highways,Third Party Payments,430127,Rendered by Private Contractors,03/05/2023,4129581-3111,"3,727.50",IAN C LIDDLE T/A IC LIDDLE SERVICES.
Neighbourhoods and Climate Change,Highways,Third Party Payments,430127,Rendered by Private Contractors,03/05/2023,4129581-3113,"1,197.50",IAN C LIDDLE T/A IC LIDDLE SERVICES.
Neighbourhoods and Climate Change,Environmental Services,Third Party Payments,430100,Rendered by Private Contractors,03/05/2023,4129581-3120,"4,900.50",IAN C LIDDLE T/A IC LIDDLE SERVICES.
Neighbourhoods and Climate Change,Highways,Third Party Payments,430100,Rendered by Private Contractors,03/05/2023,4129619-6383,"4,561.20",MAKEPEACE MOTORS.
Regeneration Economy and Growth,Corporate Property and Land,Third Party Payments,430100,Rendered by Private Contractors,03/05/2023,4129667-3422,"190,000.00",PARAMOUNT CEILINGS & PARTITIONS LTD.
Neighbourhoods and Climate Change,Highways,Third Party Payments,430100,Rendered by Private Contractors,03/05/2023,4129678-6488,"5,356.08",PINKNEY BUILDING CONTRACTORS LTD.
Neighbourhoods and Climate Change,Highways,Third Party Payments,430100,Rendered by Private Contractors,03/05/2023,4129678-6489,"5,356.08",PINKNEY BUILDING CONTRACTORS LTD.
Neighbourhoods and Climate Change,Environmental Services,Transport,215005,Running Costs of Vehicles,03/05/2023,4129746-1140673,"13,658.34",YOUR NRG LTD.
Neighbourhoods and Climate Change,Environmental Services,Transport,215005,Running Costs of Vehicles,03/05/2023,4129746-1141148,"1,159.26",YOUR NRG LTD.
Neighbourhoods and Climate Change,Environmental Services,Transport,215005,Running Costs of Vehicles,03/05/2023,4129746-1144260,"4,582.40",YOUR NRG LTD.
Children and Young Peoples Services,Head of Childrens Social Care,Third Party Payments,486020,Service level agreements E486,03/05/2023,4129583-DM030423-280423,"8,400.00",INCLUDE `IN` AUTISM.
Children and Young Peoples Services,Head of Childrens Social Care,Third Party Payments,486020,Service level agreements E486,03/05/2023,4129583-DM030423-2804231,"8,400.00",INCLUDE `IN` AUTISM.
Regeneration Economy and Growth,Corporate Property and Land,Premises,108099,Service Repairs and Maintenance,03/05/2023,4129591-28309,"14,968.23",JC MAINTENANCE SERVICES LTD.
Adult and Health Services,Head of Adults,Supplies and Services,338066,Services,03/05/2023,4129537-PC/MH/PJ/MB,709.90,REDACTED - PAYMENT TO INDIVIDUAL
Adult and Health Services,Head of Adults,Supplies and Services,338066,Services,03/05/2023,4129538-SWMARH/2023,526.80,REDACTED - PAYMENT TO INDIVIDUAL
Regeneration Economy and Growth,Culture Sport and Tourism,Supplies and Services,338047,Services,03/05/2023,4129484-574152,"5,712.88",AVALON PROMOTIONS LTD.
Regeneration Economy and Growth,Culture Sport and Tourism,Supplies and Services,338066,Services,03/05/2023,4129494-SIN042671,"34,191.87",BLOOM PROCUREMENT SERVICES LTD (FORMERLY NEPRO LTD).
Adult and Health Services,Adults Excluded,Supplies and Services,338066,Services,03/05/2023,4129494-SIN042673,"34,450.00",BLOOM PROCUREMENT SERVICES LTD (FORMERLY NEPRO LTD).
Neighbourhoods and Climate Change,Environmental Services,Supplies and Services,338066,Services,03/05/2023,4129586-RES-04-2023-499,"3,512.58",J & J CLARK & SONS.
Regeneration Economy and Growth,Culture Sport and Tourism,Supplies and Services,338047,Services,03/05/2023,4129656-INV0009102,"6,774.05",NORTHERN BALLET THEATRE LTD.
Regeneration Economy and Growth,Business Durham CL0850,Supplies and Services,338099,Services,03/05/2023,4129701-17799,"3,106.32",SAFEGUARD SECURITY (NE) LTD.
Resources BK0010,Legal & Democratic Services,Supplies and Services,338042,Services,03/05/2023,4129720-302332/INVLS192,665.00,TRINITY CHAMBERS.
Resources BK0010,Legal & Democratic Services,Supplies and Services,338042,Services,03/05/2023,4129720-303407/INPCA42,720.00,TRINITY CHAMBERS.
Regeneration Economy and Growth,Culture Sport and Tourism,Supplies and Services,338047,Services,03/05/2023,4129726-22314549171-1,"1,693.54",UNIVERSAL PICTURES INTERNATIONAL UK & EIRE LTD.
Neighbourhoods and Climate Change,Environmental Services,Supplies and Services,338066,Services,03/05/2023,4129744-RES-04-2023-500,"4,258.93",YORKSHIRE WILDLIFE TRUST.
Neighbourhoods and Climate Change,Highways,Stock A926,926900,Stock in hand-Inventory system,03/05/2023,4129746-1139713,963.54,YOUR NRG LTD.
Neighbourhoods and Climate Change,Highways,Stock A926,926900,Stock in hand-Inventory system,03/05/2023,4129746-1143464,585.78,YOUR NRG LTD.
Resources BK0010,Digital Services,Supplies and Services,344015,Telephones,03/05/2023,4129732-SE46528,868.00,VODAFONE CORPORATE LTD.
Resources BK0010,Digital Services,Supplies and Services,344015,Telephones,03/05/2023,4129732-SE83656,"1,760.00",VODAFONE CORPORATE LTD.
Resources BK0010,Digital Services,Supplies and Services,344015,Telephones,03/05/2023,4129732-SE99654,"1,160.00",VODAFONE CORPORATE LTD.
Regeneration Economy and Growth,Planning & Housing,Premises,135005,Water Services,03/05/2023,4129658-094981020024996814,"4,360.94",NORTHUMBRIAN WATER LTD.
Regeneration Economy and Growth,Planning & Housing,Supplies and Services,336005,Advertising E336,04/05/2023,4130000-42519372,693.33,NEWSQUEST (YORKSHIRE & NORTH EAST) LTD.
Neighbourhoods and Climate Change,Highways,Supplies and Services,336005,Advertising E336,04/05/2023,4130000-42520090,561.67,NEWSQUEST (YORKSHIRE & NORTH EAST) LTD.
Neighbourhoods and Climate Change,Environmental Services,Supplies and Services,336005,Advertising E336,04/05/2023,4130014-11445,796.00,OFFSTONE PUBLISHING.
Children and Young Peoples Services,Head of Childrens Social Care,Employees,080025,Agency Staff,04/05/2023,4129883-2470444,"158,945.30",GEOMETRIC RESULTS INTERNATIONAL.
Children and Young Peoples Services,Head of Early Help Inclusion & Vulnerable Children.,Employees,080025,Agency Staff,04/05/2023,4130096-25/04/2023,"1,442.00",TEACHERACTIVE LTD.
Adult and Health Services,Head of Adults,Premises,145009,Cleaning and Domestic Supplies,04/05/2023,4129839-1013,"1,895.00",REDACTED - PAYMENT TO INDIVIDUAL
Regeneration Economy and Growth,Culture Sport and Tourism,Premises,145023,Cleaning and Domestic Supplies,04/05/2023,4129888-06/220040,519.28,GREENHAM TRADING LTD.
Neighbourhoods and Climate Change,Environmental Services,Supplies and Services,328041,Clothing uniforms and laundry E328,04/05/2023,4129891-120691,555.83,GUSTHARTS LTD.
Regeneration Economy and Growth,Transport and Contracted Services,Construction work A908,908105,Construction work,04/05/2023,4129924-27624,"1,259.84",JACK COUPE & SONS LTD T/A COUPE LINE.
Children and Young Peoples Services,Head of Education and Skills,Transport,230006,Contract Hire,04/05/2023,4129769-01005,"2,234.40",REDACTED - PAYMENT TO INDIVIDUAL
Children and Young Peoples Services,Head of Education and Skills,Transport,230006,Contract Hire,04/05/2023,4129769-01013,500.00,REDACTED - PAYMENT TO INDIVIDUAL
Children and Young Peoples Services,Head of Education and Skills,Transport,230008,Contract Hire,04/05/2023,4129769-01018,890.00,REDACTED - PAYMENT TO INDIVIDUAL
Neighbourhoods and Climate Change,Environmental Services,Transport,230005,Contract Hire,04/05/2023,4129776-HI3112504,569.96,ARNOLD CLARK CAR & VAN RENTAL.
Children and Young Peoples Services,Head of Education and Skills,Transport,230008,Contract Hire,04/05/2023,4129814-24/23,"3,160.00",CLARKS TAXIS LTD.
Children and Young Peoples Services,Head of Education and Skills,Transport,230007,Contract Hire,04/05/2023,4129857-003,"1,992.00",DURHAM DALES PRIVATE HIRE.
Children and Young Peoples Services,Head of Education and Skills,Transport,230007,Contract Hire,04/05/2023,4129965-6395,"3,080.01",MAKEPEACE MOTORS.
Neighbourhoods and Climate Change,Environmental Services,Transport,230005,Contract Hire,04/05/2023,4130008-SL07665347INV,586.88,NORTHGATE VEHICLE HIRE LTD.
Neighbourhoods and Climate Change,Environmental Services,Transport,230005,Contract Hire,04/05/2023,4130008-SL07666879INV,"1,052.24",NORTHGATE VEHICLE HIRE LTD.
Adult and Health Services,Public Health CC0450,Third Party Payments,460803,Contract Payments,04/05/2023,4130059-INV-S321981,"80,000.00",SAFELIVES.
Neighbourhoods and Climate Change,Highways,Third Party Payments,460224,Contract Payments,04/05/2023,4129785-10210825,"1,063.50",BEVAN BRITTAN LLP.
Regeneration Economy and Growth,Culture Sport and Tourism,Premises,120021,Energy Costs,04/05/2023,4129912-17504,"8,781.15",IMPALA ESTATES LTD.
Adult and Health Services,Head of Adults,Supplies and Services,304516,Equipment and Materials,04/05/2023,4129747-16065,545.00,1AB TAXIS LTD.
Neighbourhoods and Climate Change,Highways,Supplies and Services,304221,Equipment and Materials,04/05/2023,4129756-34106094,"6,790.56",AGGREGATE INDUSTRIES UK LTD.
Regeneration Economy and Growth,Culture Sport and Tourism,Supplies and Services,304259,Equipment and Materials,04/05/2023,4129761-177826,758.00,ALBANY OFFICE EQUIPMENT (WHOLESALE) LTD.
Adult and Health Services,Head of Adults,Supplies and Services,304516,Equipment and Materials,04/05/2023,4129789-INV-710,755.50,BILL SCOTT TAXIS LTD.
Regeneration Economy and Growth,Corporate Property and Land,Supplies and Services,304221,Equipment and Materials,04/05/2023,4129863-059-317062,682.41,EDMUNDSON ELECTRICAL LTD.
Regeneration Economy and Growth,Corporate Property and Land,Supplies and Services,304221,Equipment and Materials,04/05/2023,4129863-059-317208,662.04,EDMUNDSON ELECTRICAL LTD.
Regeneration Economy and Growth,Corporate Property and Land,Supplies and Services,304221,Equipment and Materials,04/05/2023,4129863-059-317349,"1,182.00",EDMUNDSON ELECTRICAL LTD.
Regeneration Economy and Growth,Corporate Property and Land,Supplies and Services,304221,Equipment and Materials,04/05/2023,4129863-059-317387,"3,768.24",EDMUNDSON ELECTRICAL LTD.
Regeneration Economy and Growth,Corporate Property and Land,Supplies and Services,304221,Equipment and Materials,04/05/2023,4129863-059-317403,"1,036.32",EDMUNDSON ELECTRICAL LTD.
Resources BK0010,Digital Services,Supplies and Services,304303,Equipment and Materials,04/05/2023,4129892-INV0192958,"9,310.00",GVAV LTD.
Regeneration Economy and Growth,Corporate Property and Land,Supplies and Services,304358,Equipment and Materials,04/05/2023,4129923-5306796,"1,465.50",JA GILSON (AGRICULTURAL CONTRACTORS) LTD.
Neighbourhoods and Climate Change,Environmental Services,Supplies and Services,304083,Equipment and Materials,04/05/2023,4129927-53445,604.00,JBL SERVICES LTD.
Regeneration Economy and Growth,Corporate Property and Land,Supplies and Services,304221,Equipment and Materials,04/05/2023,4129935-0113/00044408,525.30,JT DOVE LTD.
Regeneration Economy and Growth,Corporate Property and Land,Supplies and Services,304221,Equipment and Materials,04/05/2023,4129935-0213/00866389,874.25,JT DOVE LTD.
Neighbourhoods and Climate Change,Highways,Supplies and Services,304358,Equipment and Materials,04/05/2023,4129963-MS4210,784.80,M SPENCE SURFACING LTD.
Neighbourhoods and Climate Change,Highways,Supplies and Services,304358,Equipment and Materials,04/05/2023,4129963-MS4216,823.72,M SPENCE SURFACING LTD.
Neighbourhoods and Climate Change,Highways,Supplies and Services,304221,Equipment and Materials,04/05/2023,4129965-6384,"3,489.20",MAKEPEACE MOTORS.
Neighbourhoods and Climate Change,Highways,Supplies and Services,304221,Equipment and Materials,04/05/2023,4129965-6385,"3,125.60",MAKEPEACE MOTORS.
Neighbourhoods and Climate Change,Highways,Supplies and Services,304221,Equipment and Materials,04/05/2023,4129978-0045/45047738,897.00,MKM BUILDING SUPPLIES LTD.
Neighbourhoods and Climate Change,Highways,Supplies and Services,304221,Equipment and Materials,04/05/2023,4129995-0000118417,"1,057.65",NAL LTD.
Neighbourhoods and Climate Change,Highways,Supplies and Services,304358,Equipment and Materials,04/05/2023,4130056-3633,"1,385.00",S & R LANDSCAPES.
Neighbourhoods and Climate Change,Highways,Supplies and Services,304358,Equipment and Materials,04/05/2023,4130056-3634,"1,106.00",S & R LANDSCAPES.
Neighbourhoods and Climate Change,Highways,Supplies and Services,304358,Equipment and Materials,04/05/2023,4130056-3635,"1,036.00",S & R LANDSCAPES.
Neighbourhoods and Climate Change,Highways,Supplies and Services,304358,Equipment and Materials,04/05/2023,4130056-3638,"1,212.00",S & R LANDSCAPES.
Neighbourhoods and Climate Change,Highways,Supplies and Services,304358,Equipment and Materials,04/05/2023,4130056-3641,"1,106.00",S & R LANDSCAPES.
Neighbourhoods and Climate Change,Highways,Supplies and Services,304358,Equipment and Materials,04/05/2023,4130056-3642,858.00,S & R LANDSCAPES.
Neighbourhoods and Climate Change,Highways,Supplies and Services,304358,Equipment and Materials,04/05/2023,4130056-3643,840.00,S & R LANDSCAPES.
Neighbourhoods and Climate Change,Highways,Supplies and Services,304358,Equipment and Materials,04/05/2023,4130056-3644,958.00,S & R LANDSCAPES.
Regeneration Economy and Growth,Corporate Property and Land,Supplies and Services,304221,Equipment and Materials,04/05/2023,4130091-979506,"2,004.02",T CROSSLING & CO LTD.
Regeneration Economy and Growth,Corporate Property and Land,Supplies and Services,304221,Equipment and Materials,04/05/2023,4130091-985288,"1,220.49",T CROSSLING & CO LTD.
Regeneration Economy and Growth,Corporate Property and Land,Supplies and Services,304221,Equipment and Materials,04/05/2023,4130091-985305,942.38,T CROSSLING & CO LTD.
Regeneration Economy and Growth,Corporate Property and Land,Supplies and Services,304221,Equipment and Materials,04/05/2023,4130091-985315,"3,584.30",T CROSSLING & CO LTD.
Regeneration Economy and Growth,Corporate Property and Land,Supplies and Services,304221,Equipment and Materials,04/05/2023,4130091-985417,"1,118.43",T CROSSLING & CO LTD.
Regeneration Economy and Growth,Corporate Property and Land,Supplies and Services,304221,Equipment and Materials,04/05/2023,4130091-985421,856.81,T CROSSLING & CO LTD.
Regeneration Economy and Growth,Corporate Property and Land,Supplies and Services,304221,Equipment and Materials,04/05/2023,4130091-985422,"1,620.44",T CROSSLING & CO LTD.
Neighbourhoods and Climate Change,Highways,Supplies and Services,304221,Equipment and Materials,04/05/2023,4130094-9046747117,"1,822.69",TARMAC TRADING LTD.
Regeneration Economy and Growth,Corporate Property and Land,Supplies and Services,304221,Equipment and Materials,04/05/2023,4130119-11018846,"1,824.72",TRADECHOICE DISTRIBUTION LTD.
Neighbourhoods and Climate Change,Highways,Supplies and Services,304221,Equipment and Materials,04/05/2023,4130126-245251,"4,145.40",TYNEDALE ROADSTONE LTD.
Neighbourhoods and Climate Change,Highways,Supplies and Services,304221,Equipment and Materials,04/05/2023,4130144-145520746,"4,966.72",ZG LIGHTING (UK) LTD.
Neighbourhoods and Climate Change,Highways,Supplies and Services,304245,Equipment and Materials,04/05/2023,4130144-145520747,"12,669.93",ZG LIGHTING (UK) LTD.
Children and Young Peoples Services,Head of Early Help Inclusion & Vulnerable Children.,Supplies and Services,308011,Furniture,04/05/2023,4129761-177851,"9,685.00",ALBANY OFFICE EQUIPMENT (WHOLESALE) LTD.
Children and Young Peoples Services,Head of Early Help Inclusion & Vulnerable Children.,Supplies and Services,308011,Furniture,04/05/2023,4129761-177856,580.00,ALBANY OFFICE EQUIPMENT (WHOLESALE) LTD.
Resources BK0010,Digital Services,Supplies and Services,308011,Furniture,04/05/2023,4130037-INV1091157,884.55,POSTURITE (UK) LTD.
Non-Service Specific,Insurances,Expenditure 8INSEX,810001,Insurance Expenditure,04/05/2023,4130145-019921,"228,409.90",ZURICH INSURANCE PLC.
Neighbourhoods and Climate Change,Highways,Supplies and Services,384199,Miscellaneous Expenses,04/05/2023,4129750-2020012507,"1,980.00",AARDVARK FX LTD.
Neighbourhoods and Climate Change,Partnerships & Community Engagement Div.,Supplies and Services,384086,Miscellaneous Expenses,04/05/2023,4129804-VOUCHERHUTG01-23,500.00,CASSOP CUM QUARRINGTON PCC.
Regeneration Economy and Growth,Planning & Housing,Supplies and Services,384956,Miscellaneous Expenses,04/05/2023,4129873-INV-3238,"12,870.00",ENTITLEDTO LTD.
Regeneration Economy and Growth,Culture Sport and Tourism,Supplies and Services,384199,Miscellaneous Expenses,04/05/2023,4129933-11042023,"1,085.00",REDACTED - PAYMENT TO INDIVIDUAL
Neighbourhoods and Climate Change,Environmental Services,Supplies and Services,384700,Miscellaneous Expenses,04/05/2023,4129877-RES-05-2023-010,"3,996.00",FAWSIDE LTD.
Regeneration Economy and Growth,Culture Sport and Tourism,Supplies and Services,384199,Miscellaneous Expenses,04/05/2023,4130100-INV-37158,513.60,TEVALIS LTD.
Resources BK0010,Procurement Sales & Business Services,Supplies and Services,384199,Miscellaneous Expenses,04/05/2023,4129763-C75500,"2,963.23",ALLIED PUBLICITY SERVICES (MANCHESTER) LTD.
Regeneration Economy and Growth,Culture Sport and Tourism,Supplies and Services,384199,Miscellaneous Expenses,04/05/2023,4129837-4315415,"9,539.63",DARLINGTON BOROUGH COUNCIL.
Regeneration Economy and Growth,Business Durham CL0850,Supplies and Services,384199,Miscellaneous Expenses,04/05/2023,4129918-TW3244,686.00,IW ADAMSON LTD T/A COMPLETE WEED CONTROL (TYNE & WEAR).
Regeneration Economy and Growth,Culture Sport and Tourism,Supplies and Services,384199,Miscellaneous Expenses,04/05/2023,4129959-1038,600.00,LUNA CREATIVE LTD.
Regeneration Economy and Growth,Culture Sport and Tourism,Supplies and Services,384199,Miscellaneous Expenses,04/05/2023,4129959-1039,"2,250.00",LUNA CREATIVE LTD.
Neighbourhoods and Climate Change,Environmental Services,Supplies and Services,384199,Miscellaneous Expenses,04/05/2023,4129968-1373,"38,527.50",MARSDEN AES LTD.
Children and Young Peoples Services,Head of Early Help Inclusion & Vulnerable Children.,Supplies and Services,384409,Miscellaneous Expenses,04/05/2023,4130003-2208,"4,590.00",NMC SPORTS.
Neighbourhoods and Climate Change,Partnerships & Community Engagement Div.,Supplies and Services,384086,Miscellaneous Expenses,04/05/2023,4130080-VOUCHERHOOC02-23,500.00,SOUTH HETTON PARISH COUNCIL.
Regeneration Economy and Growth,Culture Sport and Tourism,Supplies and Services,312013,Newspapers books and periodicals E312,04/05/2023,4129794-118738,608.54,BOLINDA DIGITAL LTD.
Resources BK0010,Transactional & Customer Services,Third Party Payments,440999,Other third party payments E440,04/05/2023,4129854-RES-05-2023-009,"50,000.00",DURHAM CHRISTIAN PARTNERSHIP.
Children and Young Peoples Services,Head of Education and Skills,Third Party Payments,440999,Other third party payments E440,04/05/2023,4129921-1427,"3,680.58",J & K TRAINING LTD.
Children and Young Peoples Services,Head of Education and Skills,Third Party Payments,440999,Other third party payments E440,04/05/2023,4129993-1047,"11,475.00",MYBE AWARDS LTD.
Children and Young Peoples Services,Head of Education and Skills,Third Party Payments,440999,Other third party payments E440,04/05/2023,4130007-750,"1,179.77",NORTHERN RIGHTS COMMUNITY INTEREST COMPANY (CIC)..
Regeneration Economy and Growth,Culture Sport and Tourism,Supplies and Services,324117,Provisions E324,04/05/2023,4129787-20767467,721.40,BIDFOOD.
Regeneration Economy and Growth,Culture Sport and Tourism,Supplies and Services,324117,Provisions E324,04/05/2023,4129787-20947975,663.66,BIDFOOD.
Regeneration Economy and Growth,Culture Sport and Tourism,Supplies and Services,324117,Provisions E324,04/05/2023,4129787-20991351,"1,109.43",BIDFOOD.
Regeneration Economy and Growth,Culture Sport and Tourism,Supplies and Services,324117,Provisions E324,04/05/2023,4129787-21111335,"1,577.82",BIDFOOD.
Regeneration Economy and Growth,Corporate Property and Land,Supplies and Services,324117,Provisions E324,04/05/2023,4129922-24612,516.30,J MORAN LTD T/A CAFFE VINCI.
Neighbourhoods and Climate Change,Environmental Services,Supplies and Services,324117,Provisions E324,04/05/2023,4129922-24782,559.16,J MORAN LTD T/A CAFFE VINCI.
Regeneration Economy and Growth,Culture Sport and Tourism,Supplies and Services,324117,Provisions E324,04/05/2023,4130035-546,588.53,PIONEER FOOD SERVICE.
Adult and Health Services,Commissioning inc Supporting People,Third Party Payments,479102,Purchase of Care,04/05/2023,4129802-SIN031751,"2,250.00",CARERS UK.
Adult and Health Services,Head of Adults,Third Party Payments,479102,Purchase of Care,04/05/2023,4129799-INV-3875,"2,352.00",BYKARE SOLUTIONS LTD.
Adult and Health Services,Head of Adults,Third Party Payments,479102,Purchase of Care,04/05/2023,4129822-2104,"1,193.19",CONNECTED VOICE.
Adult and Health Services,Head of Adults,Third Party Payments,479102,Purchase of Care,04/05/2023,4129825-125,"5,352.00",COUNT CARE SERVICES LTD.
Adult and Health Services,Head of Adults,Third Party Payments,479102,Purchase of Care,04/05/2023,4129825-126,"5,352.00",COUNT CARE SERVICES LTD.
Adult and Health Services,Head of Adults,Third Party Payments,479102,Purchase of Care,04/05/2023,4129825-127,"4,696.00",COUNT CARE SERVICES LTD.
Children and Young Peoples Services,Head of Early Help Inclusion & Vulnerable Children.,Third Party Payments,410037,Rendered by Other Local Authorities,04/05/2023,4130012-INV-7466,"1,211.76",NUDGE EDUCATION LTD.
Children and Young Peoples Services,Head of Early Help Inclusion & Vulnerable Children.,Third Party Payments,410037,Rendered by Other Local Authorities,04/05/2023,4130012-INV-7477,757.35,NUDGE EDUCATION LTD.
Neighbourhoods and Climate Change,Environmental Services,Third Party Payments,430100,Rendered by Private Contractors,04/05/2023,4130123-904481,"8,520.00",TRIPLE POINT LEASE PARTNERS.
Neighbourhoods and Climate Change,Environmental Services,Third Party Payments,430100,Rendered by Private Contractors,04/05/2023,4130123-904482,535.00,TRIPLE POINT LEASE PARTNERS.
Regeneration Economy and Growth,Corporate Property and Land,Third Party Payments,430100,Rendered by Private Contractors,04/05/2023,4129805-11073,"5,185.42",CATHEDRAL LOCK & SAFE SERVICES LTD.
Regeneration Economy and Growth,Transport and Contracted Services,Third Party Payments,430106,Rendered by Private Contractors,04/05/2023,4129881-SR31032023,"215,553.80",GATESHEAD CENTRAL TAXIS LTD.
Neighbourhoods and Climate Change,Environmental Services,Third Party Payments,430100,Rendered by Private Contractors,04/05/2023,4129901-10094,537.81,HILLCREST AUTO ELECTRICS.
Neighbourhoods and Climate Change,Environmental Services,Third Party Payments,430100,Rendered by Private Contractors,04/05/2023,4129902-92992,"1,055.55",HOGARTH COACHWORKS LTD.
Neighbourhoods and Climate Change,Environmental Services,Third Party Payments,430100,Rendered by Private Contractors,04/05/2023,4129908-3131,933.00,IAN C LIDDLE T/A IC LIDDLE SERVICES.
Regeneration Economy and Growth,Corporate Property and Land,Third Party Payments,430100,Rendered by Private Contractors,04/05/2023,4129914-14064,"1,671.60",INGLEFORD SCAFFOLDING LTD.
Neighbourhoods and Climate Change,Highways,Third Party Payments,430127,Rendered by Private Contractors,04/05/2023,4129920-0039/2023,630.00,J & JG GILL & SONS LTD.
Regeneration Economy and Growth,Corporate Property and Land,Third Party Payments,430100,Rendered by Private Contractors,04/05/2023,4129927-52668,742.00,JBL SERVICES LTD.
Neighbourhoods and Climate Change,Environmental Services,Third Party Payments,430100,Rendered by Private Contractors,04/05/2023,4129954-DFE80206192,"1,611.78",LINK TREASURY SERVICES LTD.
Neighbourhoods and Climate Change,Highways,Third Party Payments,430100,Rendered by Private Contractors,04/05/2023,4130040-14897,"18,550.22",QUANTUM POWER CONNECTIONS LTD.
Regeneration Economy and Growth,Transport and Contracted Services,Third Party Payments,430100,Rendered by Private Contractors,04/05/2023,4130093-INV-32749,606.90,T3 SECURITY LTD.
Children and Young Peoples Services,Head of Childrens Social Care,Third Party Payments,425028,Rendered by Voluntary Organisations,04/05/2023,4130102-12345,900.00,THE BOUNCE HOUSE (NE) LTD.
Neighbourhoods and Climate Change,Environmental Services,Transport,210057,Repair and Maintenance of Vehicles,04/05/2023,4129782-35243523,919.84,BELL TRUCK SALES LTD T/A BELL TRUCK & VAN.
Neighbourhoods and Climate Change,Environmental Services,Transport,210057,Repair and Maintenance of Vehicles,04/05/2023,4129844-96439161,"3,199.02",DENNIS EAGLE LTD T/A TERBERG MATEC (UK) LTD.
Neighbourhoods and Climate Change,Environmental Services,Transport,210057,Repair and Maintenance of Vehicles,04/05/2023,4129844-96439251,"1,590.26",DENNIS EAGLE LTD T/A TERBERG MATEC (UK) LTD.
Neighbourhoods and Climate Change,Environmental Services,Transport,210057,Repair and Maintenance of Vehicles,04/05/2023,4129880-IN231603,887.40,FM STEELSTOCK LTD.
Neighbourhoods and Climate Change,Environmental Services,Transport,210057,Repair and Maintenance of Vehicles,04/05/2023,4129889-280326,656.02,GREENLAY T/A THOMAS SHERRIFF & CO LTD.
Neighbourhoods and Climate Change,Environmental Services,Transport,210057,Repair and Maintenance of Vehicles,04/05/2023,4130004-86368,"2,016.60",NORPLAST LTD.
Neighbourhoods and Climate Change,Environmental Services,Transport,210057,Repair and Maintenance of Vehicles,04/05/2023,4130004-86370,908.80,NORPLAST LTD.
Neighbourhoods and Climate Change,Environmental Services,Transport,210057,Repair and Maintenance of Vehicles,04/05/2023,4130021-22839629,"3,304.35",PARTSPLUS.
Regeneration Economy and Growth,Business Durham CL0850,Premises,108125,Service Repairs and Maintenance,04/05/2023,4129918-TW3241,"2,250.00",IW ADAMSON LTD T/A COMPLETE WEED CONTROL (TYNE & WEAR).
Regeneration Economy and Growth,Business Durham CL0850,Premises,108125,Service Repairs and Maintenance,04/05/2023,4129918-TW3242,840.00,IW ADAMSON LTD T/A COMPLETE WEED CONTROL (TYNE & WEAR).
Regeneration Economy and Growth,Business Durham CL0850,Premises,108125,Service Repairs and Maintenance,04/05/2023,4129918-TW3243,822.00,IW ADAMSON LTD T/A COMPLETE WEED CONTROL (TYNE & WEAR).
Neighbourhoods and Climate Change,Environmental Services,Supplies and Services,338066,Services,04/05/2023,4130105-3801,"3,300.00",THE PUBLIC ART COMPANY.
Resources BK0010,Legal & Democratic Services,Supplies and Services,338101,Services,04/05/2023,4129850-3/2023,"4,500.00",REDACTED - PAYMENT TO INDIVIDUAL
Regeneration Economy and Growth,Culture Sport and Tourism,Supplies and Services,338047,Services,04/05/2023,4130042-ALICE2301,"1,000.00",REDACTED - PAYMENT TO INDIVIDUAL
Regeneration Economy and Growth,Culture Sport and Tourism,Supplies and Services,338047,Services,04/05/2023,4129818-10606,"3,060.00",COMEDY STORE MANAGEMENT T/A THE COMEDY STORE LTD.
Resources BK0010,Legal & Democratic Services,Supplies and Services,338042,Services,04/05/2023,4129846-373613/INVTD1027,875.00,DERE STREET BARRISTERS.
Resources BK0010,Legal & Democratic Services,Supplies and Services,338042,Services,04/05/2023,4129846-375331/INVCF459,775.00,DERE STREET BARRISTERS.
Resources BK0010,Legal & Democratic Services,Supplies and Services,338042,Services,04/05/2023,4129846-376608/INVCF461,875.00,DERE STREET BARRISTERS.
Resources BK0010,Legal & Democratic Services,Supplies and Services,338042,Services,04/05/2023,4129846-377088/INVSEB1X332,775.00,DERE STREET BARRISTERS.
Resources BK0010,Legal & Democratic Services,Supplies and Services,338042,Services,04/05/2023,4129846-383230/INVSEB1X333,775.00,DERE STREET BARRISTERS.
Resources BK0010,Legal & Democratic Services,Supplies and Services,338042,Services,04/05/2023,4129846-385990/INVSEB1X334,875.00,DERE STREET BARRISTERS.
Regeneration Economy and Growth,Planning & Housing,Supplies and Services,338099,Services,04/05/2023,4129911-111227,995.00,IMPACT MARKETING & PUBLICITY.
Regeneration Economy and Growth,Planning & Housing,Supplies and Services,338099,Services,04/05/2023,4129911-111242,995.00,IMPACT MARKETING & PUBLICITY.
Regeneration Economy and Growth,Business Durham CL0850,Supplies and Services,338099,Services,04/05/2023,4130044-20769,"2,705.00",RADECAL SIGNS GRAPHICS & ADVERTISING.
Neighbourhoods and Climate Change,Highways,Stock A926,926900,Stock in hand-Inventory system,04/05/2023,4129888-06/219976,"1,081.90",GREENHAM TRADING LTD.
Neighbourhoods and Climate Change,Highways,Stock A926,926900,Stock in hand-Inventory system,04/05/2023,4130020-XL300274,"1,360.00",PARK ELECTRICAL DISTRIBUTORS LTD.
Neighbourhoods and Climate Change,Highways,Stock A926,926900,Stock in hand-Inventory system,04/05/2023,4130144-145514313,"2,618.50",ZG LIGHTING (UK) LTD.
Neighbourhoods and Climate Change,Highways,Stock A926,926900,Stock in hand-Inventory system,04/05/2023,4130144-145518772,"1,188.00",ZG LIGHTING (UK) LTD.
Neighbourhoods and Climate Change,Highways,Stock A926,926900,Stock in hand-Inventory system,04/05/2023,4130144-145519305,600.00,ZG LIGHTING (UK) LTD.
Adult and Health Services,Commissioning inc Supporting People,Third Party Payments,442002,Supporting People E442,04/05/2023,4129751-18784,"29,500.00",ACTION DEAFNESS.
Regeneration Economy and Growth,Planning & Housing,Supplies and Services,344033,Telephones,04/05/2023,4129796-20035932,"1,323.00",BRITISH TELECOMMUNICATIONS PLC.
Resources BK0010,Digital Services,Supplies and Services,344015,Telephones,04/05/2023,4130132-SF36811,"1,540.00",VODAFONE CORPORATE LTD.
Dedicated Schools Grant BG0015,DSG High Needs Block,Central Support and Other Recharges,689996,Unclassified E690,04/05/2023,4129772-RES-05-2023-016,"53,125.00",APOLLO SCHOOLS TRUST T/A ENDEAVOUR ACADEMY.
Regeneration Economy and Growth,Planning & Housing,Premises,135005,Water Services,04/05/2023,4130010-26-APR-2023,"1,099.00",NORTHUMBRIAN WATER LTD.
Neighbourhoods and Climate Change,Highways,Premises,150015,Apportioned Exps of Operational Blds,05/05/2023,4130584-230032389,680.80,WERNICK HIRE LTD.
Neighbourhoods and Climate Change,Highways,Premises,150015,Apportioned Exps of Operational Blds,05/05/2023,4130584-230032391,728.30,WERNICK HIRE LTD.
Neighbourhoods and Climate Change,Environmental Services,Premises,150015,Apportioned Exps of Operational Blds,05/05/2023,4130584-230032435,680.80,WERNICK HIRE LTD.
Regeneration Economy and Growth,Corporate Property and Land,Premises,150015,Apportioned Exps of Operational Blds,05/05/2023,4130584-230032436,780.39,WERNICK HIRE LTD.
Regeneration Economy and Growth,Corporate Property and Land,Premises,106080,Centrally Controlled Rep and Maint,05/05/2023,4130359-28334,"4,051.70",JC MAINTENANCE SERVICES LTD.
Regeneration Economy and Growth,Corporate Property and Land,Premises,106082,Centrally Controlled Rep and Maint,05/05/2023,4130575-2784,920.00,VENTILATION HYGIENE SPECIALISTS (VHS) LTD.
Resources BK0010,Digital Services,Vehicles Equipment Furniture and Fittings,912701,Computer equipment,05/05/2023,4130257-7402910435,"377,797.50",DELL COMPUTER CORPORATION LTD.
Children and Young Peoples Services,Head of Education and Skills,Supplies and Services,342051,Computers and Communications,05/05/2023,4130523-INVUK816547,"1,846.26",SOFTCAT PLC.
Children and Young Peoples Services,Head of Education and Skills,Supplies and Services,342055,Computers and Communications,05/05/2023,4130544-DMSEXTEN001,"1,041.00",TEACHING GADGET LTD.
Resources BK0010,Legal & Democratic Services,Supplies and Services,352001,Conference Expenses,05/05/2023,4130396-64008305,"3,035.40",LOCAL GOVERNMENT ASSOCIATION.
Children and Young Peoples Services,Head of Education and Skills,Construction work A908,908105,Construction work,05/05/2023,4130287-178206,"466,175.02",ESH CONSTRUCTION LTD FORMERLY LUMSDEN & CARROLL CONSTRUCTION LTD.
Regeneration Economy and Growth,Transport and Contracted Services,Construction work A908,908105,Construction work,05/05/2023,4130453-1800011825691,"69,772.81",NEWCASTLE UPON TYNE CITY COUNCIL.
Regeneration Economy and Growth,Business Durham CL0850,Construction work A908,908105,Construction work,05/05/2023,4130499-23100009,"61,874.35",ROBERTSON CAPITAL PROJECTS.
Children and Young Peoples Services,Head of Education and Skills,Transport,230006,Contract Hire,05/05/2023,4130156-131,"1,406.00",REDACTED - PAYMENT TO INDIVIDUAL
Children and Young Peoples Services,Head of Education and Skills,Transport,230008,Contract Hire,05/05/2023,4130165-76,"2,044.80",REDACTED - PAYMENT TO INDIVIDUAL
Children and Young Peoples Services,Head of Education and Skills,Transport,230008,Contract Hire,05/05/2023,4130165-77,"1,675.00",REDACTED - PAYMENT TO INDIVIDUAL
Adult and Health Services,Head of Adults,Transport,230005,Contract Hire,05/05/2023,4130167-8APR23,672.00,REDACTED - PAYMENT TO INDIVIDUAL
Children and Young Peoples Services,Head of Education and Skills,Transport,230008,Contract Hire,05/05/2023,4130169-0150,"1,750.00",REDACTED - PAYMENT TO INDIVIDUAL
Children and Young Peoples Services,Head of Education and Skills,Transport,230008,Contract Hire,05/05/2023,4130208-BIL0307,726.90,REDACTED - PAYMENT TO INDIVIDUAL
Adult and Health Services,Head of Adults,Transport,230005,Contract Hire,05/05/2023,4130223-EAS199APR23,926.50,REDACTED - PAYMENT TO INDIVIDUAL
Children and Young Peoples Services,Head of Education and Skills,Transport,230007,Contract Hire,05/05/2023,4130224-47686,"1,599.80",REDACTED - PAYMENT TO INDIVIDUAL
Children and Young Peoples Services,Head of Education and Skills,Transport,230007,Contract Hire,05/05/2023,4130224-47687,"1,808.50",REDACTED - PAYMENT TO INDIVIDUAL
Children and Young Peoples Services,Head of Education and Skills,Transport,230003,Contract Hire,05/05/2023,4130224-47688,"1,674.10",REDACTED - PAYMENT TO INDIVIDUAL
Children and Young Peoples Services,Head of Education and Skills,Transport,230003,Contract Hire,05/05/2023,4130224-47689,"1,690.00",REDACTED - PAYMENT TO INDIVIDUAL
Children and Young Peoples Services,Head of Education and Skills,Transport,230010,Contract Hire,05/05/2023,4130246-BL048APR23,"1,076.28",REDACTED - PAYMENT TO INDIVIDUAL
Children and Young Peoples Services,Head of Education and Skills,Transport,230013,Contract Hire,05/05/2023,4130250-3492-APR23,"1,700.00",REDACTED - PAYMENT TO INDIVIDUAL
Children and Young Peoples Services,Head of Education and Skills,Transport,230008,Contract Hire,05/05/2023,4130263-03-2023-S052,"5,869.50",REDACTED - PAYMENT TO INDIVIDUAL
Children and Young Peoples Services,Head of Education and Skills,Transport,230008,Contract Hire,05/05/2023,4130263-03-2023-W016,"7,350.88",REDACTED - PAYMENT TO INDIVIDUAL
Children and Young Peoples Services,Head of Education and Skills,Transport,230008,Contract Hire,05/05/2023,4130263-03-2023-W184,"2,604.22",REDACTED - PAYMENT TO INDIVIDUAL
Children and Young Peoples Services,Head of Education and Skills,Transport,230012,Contract Hire,05/05/2023,4130263-04/2023-M035,"1,458.80",REDACTED - PAYMENT TO INDIVIDUAL
Children and Young Peoples Services,Head of Education and Skills,Transport,230008,Contract Hire,05/05/2023,4130263-04/2023-S052,"3,081.00",REDACTED - PAYMENT TO INDIVIDUAL
Children and Young Peoples Services,Head of Education and Skills,Transport,230008,Contract Hire,05/05/2023,4130263-04/2023-W184,"1,142.20",REDACTED - PAYMENT TO INDIVIDUAL
Children and Young Peoples Services,Head of Education and Skills,Transport,230008,Contract Hire,05/05/2023,4130263-04/2023-w016,"2,956.00",REDACTED - PAYMENT TO INDIVIDUAL
Children and Young Peoples Services,Head of Education and Skills,Transport,230006,Contract Hire,05/05/2023,4130310-1APR23,"1,100.94",REDACTED - PAYMENT TO INDIVIDUAL
Children and Young Peoples Services,Head of Education and Skills,Transport,230006,Contract Hire,05/05/2023,4130310-2APR23,"1,625.82",REDACTED - PAYMENT TO INDIVIDUAL
Children and Young Peoples Services,Head of Education and Skills,Transport,230007,Contract Hire,05/05/2023,4130328-08-APR23,531.10,REDACTED - PAYMENT TO INDIVIDUAL
Children and Young Peoples Services,Head of Education and Skills,Transport,230007,Contract Hire,05/05/2023,4130347-4409-apr23,548.20,REDACTED - PAYMENT TO INDIVIDUAL
Adult and Health Services,Head of Adults,Transport,230005,Contract Hire,05/05/2023,4130347-CLS078-APR23,"1,107.20",REDACTED - PAYMENT TO INDIVIDUAL
Children and Young Peoples Services,Head of Education and Skills,Transport,230006,Contract Hire,05/05/2023,4130347-F877-APR23,746.48,REDACTED - PAYMENT TO INDIVIDUAL
Children and Young Peoples Services,Head of Education and Skills,Transport,230007,Contract Hire,05/05/2023,4130357-DCCDA07,913.70,REDACTED - PAYMENT TO INDIVIDUAL
Children and Young Peoples Services,Head of Education and Skills,Transport,230034,Contract Hire,05/05/2023,4130377-BC008,"1,290.00",REDACTED - PAYMENT TO INDIVIDUAL
Children and Young Peoples Services,Head of Education and Skills,Transport,230006,Contract Hire,05/05/2023,4130377-HC009,"1,220.00",REDACTED - PAYMENT TO INDIVIDUAL
Children and Young Peoples Services,Head of Education and Skills,Transport,230009,Contract Hire,05/05/2023,4130377-UM005,980.00,REDACTED - PAYMENT TO INDIVIDUAL
Children and Young Peoples Services,Head of Education and Skills,Transport,230007,Contract Hire,05/05/2023,4130381-009APR23,627.20,REDACTED - PAYMENT TO INDIVIDUAL
Children and Young Peoples Services,Head of Education and Skills,Transport,230008,Contract Hire,05/05/2023,4130389-0113,"2,061.00",REDACTED - PAYMENT TO INDIVIDUAL
Children and Young Peoples Services,Head of Education and Skills,Transport,230008,Contract Hire,05/05/2023,4130389-0114,"1,466.30",REDACTED - PAYMENT TO INDIVIDUAL
Children and Young Peoples Services,Head of Education and Skills,Transport,230010,Contract Hire,05/05/2023,4130407-0130,"1,698.00",REDACTED - PAYMENT TO INDIVIDUAL
Children and Young Peoples Services,Head of Education and Skills,Transport,230008,Contract Hire,05/05/2023,4130407-0131,"1,630.00",REDACTED - PAYMENT TO INDIVIDUAL
Children and Young Peoples Services,Head of Education and Skills,Transport,230008,Contract Hire,05/05/2023,4130407-0132,"1,311.80",REDACTED - PAYMENT TO INDIVIDUAL
Children and Young Peoples Services,Head of Education and Skills,Transport,230007,Contract Hire,05/05/2023,4130411-6075APR23,"1,800.00",REDACTED - PAYMENT TO INDIVIDUAL
Children and Young Peoples Services,Head of Education and Skills,Transport,230008,Contract Hire,05/05/2023,4130411-A011APR23,"2,453.00",REDACTED - PAYMENT TO INDIVIDUAL
Children and Young Peoples Services,Head of Education and Skills,Transport,230006,Contract Hire,05/05/2023,4130411-F831APR23,"1,500.00",REDACTED - PAYMENT TO INDIVIDUAL
Children and Young Peoples Services,Head of Education and Skills,Transport,230006,Contract Hire,05/05/2023,4130412-INV271,798.00,REDACTED - PAYMENT TO INDIVIDUAL
Children and Young Peoples Services,Head of Education and Skills,Transport,230008,Contract Hire,05/05/2023,4130419-W082APR23,"1,930.90",REDACTED - PAYMENT TO INDIVIDUAL
Children and Young Peoples Services,Head of Education and Skills,Transport,230006,Contract Hire,05/05/2023,4130420-726,945.70,REDACTED - PAYMENT TO INDIVIDUAL
Children and Young Peoples Services,Head of Education and Skills,Transport,230008,Contract Hire,05/05/2023,4130422-CROFT1/04-23,"1,075.26",REDACTED - PAYMENT TO INDIVIDUAL
Children and Young Peoples Services,Head of Education and Skills,Transport,230008,Contract Hire,05/05/2023,4130422-DTR1/04-23,"1,294.00",REDACTED - PAYMENT TO INDIVIDUAL
Children and Young Peoples Services,Head of Education and Skills,Transport,230008,Contract Hire,05/05/2023,4130422-OAK204-23,"1,307.50",REDACTED - PAYMENT TO INDIVIDUAL
Children and Young Peoples Services,Head of Education and Skills,Transport,230012,Contract Hire,05/05/2023,4130423-E054-APR23,"1,162.50",REDACTED - PAYMENT TO INDIVIDUAL
Children and Young Peoples Services,Head of Education and Skills,Transport,230008,Contract Hire,05/05/2023,4130423-E110-APR23,891.00,REDACTED - PAYMENT TO INDIVIDUAL
Children and Young Peoples Services,Head of Education and Skills,Transport,230009,Contract Hire,05/05/2023,4130424-APRIL302023,941.20,REDACTED - PAYMENT TO INDIVIDUAL
Children and Young Peoples Services,Head of Education and Skills,Transport,230035,Contract Hire,05/05/2023,4130424-WHITAPRIL302023,688.90,REDACTED - PAYMENT TO INDIVIDUAL
Children and Young Peoples Services,Head of Education and Skills,Transport,230008,Contract Hire,05/05/2023,4130425-N014April23,"1,790.00",REDACTED - PAYMENT TO INDIVIDUAL
Children and Young Peoples Services,Head of Education and Skills,Transport,230008,Contract Hire,05/05/2023,4130425-N086 - APRIL 23,"1,850.00",REDACTED - PAYMENT TO INDIVIDUAL
Children and Young Peoples Services,Head of Education and Skills,Transport,230008,Contract Hire,05/05/2023,4130425-S014-APRIL23,"1,549.10",REDACTED - PAYMENT TO INDIVIDUAL
Children and Young Peoples Services,Head of Education and Skills,Transport,230007,Contract Hire,05/05/2023,4130427-BR/05/23,570.56,REDACTED - PAYMENT TO INDIVIDUAL
Children and Young Peoples Services,Head of Education and Skills,Transport,230008,Contract Hire,05/05/2023,4130429-A007APR23,"2,770.00",REDACTED - PAYMENT TO INDIVIDUAL
Children and Young Peoples Services,Head of Education and Skills,Transport,230007,Contract Hire,05/05/2023,4130429-APR23-4536,880.00,REDACTED - PAYMENT TO INDIVIDUAL
Children and Young Peoples Services,Head of Education and Skills,Transport,230008,Contract Hire,05/05/2023,4130429-N012APR23,"2,652.00",REDACTED - PAYMENT TO INDIVIDUAL
Children and Young Peoples Services,Head of Education and Skills,Transport,230008,Contract Hire,05/05/2023,4130429-N038APR23,"1,878.30",REDACTED - PAYMENT TO INDIVIDUAL
Children and Young Peoples Services,Head of Education and Skills,Transport,230008,Contract Hire,05/05/2023,4130429-N041APR23,"1,914.60",REDACTED - PAYMENT TO INDIVIDUAL
Children and Young Peoples Services,Head of Education and Skills,Transport,230008,Contract Hire,05/05/2023,4130429-N077APR23,"2,730.00",REDACTED - PAYMENT TO INDIVIDUAL
Children and Young Peoples Services,Head of Education and Skills,Transport,230008,Contract Hire,05/05/2023,4130429-W034APR23,"3,200.00",REDACTED - PAYMENT TO INDIVIDUAL
Children and Young Peoples Services,Head of Education and Skills,Transport,230007,Contract Hire,05/05/2023,4130430-128,"1,200.00",REDACTED - PAYMENT TO INDIVIDUAL
Children and Young Peoples Services,Head of Education and Skills,Transport,230007,Contract Hire,05/05/2023,4130431-8APR23,"1,498.40",REDACTED - PAYMENT TO INDIVIDUAL
Children and Young Peoples Services,Head of Education and Skills,Transport,230034,Contract Hire,05/05/2023,4130432-DCC-011-23,"1,250.00",REDACTED - PAYMENT TO INDIVIDUAL
Children and Young Peoples Services,Head of Education and Skills,Transport,230006,Contract Hire,05/05/2023,4130432-DCC-012-23,840.00,REDACTED - PAYMENT TO INDIVIDUAL
Children and Young Peoples Services,Head of Education and Skills,Transport,230006,Contract Hire,05/05/2023,4130432-DCC-013-23,819.84,REDACTED - PAYMENT TO INDIVIDUAL
Children and Young Peoples Services,Head of Education and Skills,Transport,230008,Contract Hire,05/05/2023,4130433-478,"1,300.00",REDACTED - PAYMENT TO INDIVIDUAL
Children and Young Peoples Services,Head of Education and Skills,Transport,230008,Contract Hire,05/05/2023,4130433-479,"1,264.80",REDACTED - PAYMENT TO INDIVIDUAL
Children and Young Peoples Services,Head of Education and Skills,Transport,230006,Contract Hire,05/05/2023,4130433-480,"1,400.00",REDACTED - PAYMENT TO INDIVIDUAL
Children and Young Peoples Services,Head of Education and Skills,Transport,230008,Contract Hire,05/05/2023,4130433-482,"1,100.00",REDACTED - PAYMENT TO INDIVIDUAL
Children and Young Peoples Services,Head of Education and Skills,Transport,230012,Contract Hire,05/05/2023,4130433-483,883.60,REDACTED - PAYMENT TO INDIVIDUAL
Children and Young Peoples Services,Head of Education and Skills,Transport,230008,Contract Hire,05/05/2023,4130433-484,"1,176.98",REDACTED - PAYMENT TO INDIVIDUAL
Children and Young Peoples Services,Head of Education and Skills,Transport,230034,Contract Hire,05/05/2023,4130434-DCC101,"2,600.00",REDACTED - PAYMENT TO INDIVIDUAL
Adult and Health Services,Head of Adults,Transport,230005,Contract Hire,05/05/2023,4130435-DW144APR23,"1,440.00",REDACTED - PAYMENT TO INDIVIDUAL
Children and Young Peoples Services,Head of Education and Skills,Transport,230008,Contract Hire,05/05/2023,4130436-3253-N325,"1,312.60",REDACTED - PAYMENT TO INDIVIDUAL
Children and Young Peoples Services,Head of Education and Skills,Transport,230008,Contract Hire,05/05/2023,4130437-091APR23,853.20,REDACTED - PAYMENT TO INDIVIDUAL
Children and Young Peoples Services,Head of Education and Skills,Transport,230006,Contract Hire,05/05/2023,4130438-HOUGH0323,"3,214.99",REDACTED - PAYMENT TO INDIVIDUAL
Children and Young Peoples Services,Head of Education and Skills,Transport,230008,Contract Hire,05/05/2023,4130440-215536,"1,372.00",REDACTED - PAYMENT TO INDIVIDUAL
Children and Young Peoples Services,Head of Education and Skills,Transport,230006,Contract Hire,05/05/2023,4130440-215537,600.00,REDACTED - PAYMENT TO INDIVIDUAL
Children and Young Peoples Services,Head of Education and Skills,Transport,230035,Contract Hire,05/05/2023,4130440-215538,"1,071.30",REDACTED - PAYMENT TO INDIVIDUAL
Children and Young Peoples Services,Head of Education and Skills,Transport,230009,Contract Hire,05/05/2023,4130440-215539,522.00,REDACTED - PAYMENT TO INDIVIDUAL
Children and Young Peoples Services,Head of Education and Skills,Transport,230008,Contract Hire,05/05/2023,4130440-215541,"1,650.00",REDACTED - PAYMENT TO INDIVIDUAL
Children and Young Peoples Services,Head of Education and Skills,Transport,230006,Contract Hire,05/05/2023,4130440-215542,"1,837.98",REDACTED - PAYMENT TO INDIVIDUAL
Children and Young Peoples Services,Head of Education and Skills,Transport,230035,Contract Hire,05/05/2023,4130440-215640,931.00,REDACTED - PAYMENT TO INDIVIDUAL
Children and Young Peoples Services,Head of Education and Skills,Transport,230008,Contract Hire,05/05/2023,4130450-97,"1,350.44",REDACTED - PAYMENT TO INDIVIDUAL
Children and Young Peoples Services,Head of Education and Skills,Transport,230034,Contract Hire,05/05/2023,4130469-5456APR23,"1,400.00",REDACTED - PAYMENT TO INDIVIDUAL
Children and Young Peoples Services,Head of Education and Skills,Transport,230007,Contract Hire,05/05/2023,4130474-179,535.57,REDACTED - PAYMENT TO INDIVIDUAL
Children and Young Peoples Services,Head of Education and Skills,Transport,230034,Contract Hire,05/05/2023,4130478-7,"2,272.70",REDACTED - PAYMENT TO INDIVIDUAL
Children and Young Peoples Services,Head of Education and Skills,Transport,230008,Contract Hire,05/05/2023,4130519-000022,"1,783.60",REDACTED - PAYMENT TO INDIVIDUAL
Children and Young Peoples Services,Head of Education and Skills,Transport,230008,Contract Hire,05/05/2023,4130519-000023,"1,252.17",REDACTED - PAYMENT TO INDIVIDUAL
Children and Young Peoples Services,Head of Education and Skills,Transport,230034,Contract Hire,05/05/2023,4130531-137APR23,748.50,REDACTED - PAYMENT TO INDIVIDUAL
Children and Young Peoples Services,Head of Education and Skills,Transport,230034,Contract Hire,05/05/2023,4130532-2030001,600.00,REDACTED - PAYMENT TO INDIVIDUAL
Adult and Health Services,Head of Adults,Transport,230005,Contract Hire,05/05/2023,4130553-DM223APR23,618.60,REDACTED - PAYMENT TO INDIVIDUAL
Children and Young Peoples Services,Head of Education and Skills,Transport,230006,Contract Hire,05/05/2023,4130553-F628-APR23,"2,984.28",REDACTED - PAYMENT TO INDIVIDUAL
Children and Young Peoples Services,Head of Education and Skills,Transport,230034,Contract Hire,05/05/2023,4130581-4233493,978.80,REDACTED - PAYMENT TO INDIVIDUAL
Children and Young Peoples Services,Head of Education and Skills,Transport,230035,Contract Hire,05/05/2023,4130147-32305,"2,163.84",24/7 TAXI SERVICES (PETERLEE) LTD.
Children and Young Peoples Services,Head of Childrens Social Care,Transport,230005,Contract Hire,05/05/2023,4130147-32350,"1,980.00",24/7 TAXI SERVICES (PETERLEE) LTD.
Children and Young Peoples Services,Head of Education and Skills,Transport,230008,Contract Hire,05/05/2023,4130155-019APRIL2023,"1,149.73",AIRPORT TRANSFER DURHAM.
Children and Young Peoples Services,Head of Education and Skills,Transport,230007,Contract Hire,05/05/2023,4130157-404,"1,299.96",ALANS TAXIS BARNARD CASTLE.
Children and Young Peoples Services,Head of Education and Skills,Transport,230008,Contract Hire,05/05/2023,4130179-DCC03APRIL23,"1,725.70",ATLAS TAXIS BISHOP AUCKLAND.
Children and Young Peoples Services,Head of Education and Skills,Transport,230008,Contract Hire,05/05/2023,4130179-DCC04APRIL23,"2,007.90",ATLAS TAXIS BISHOP AUCKLAND.
Children and Young Peoples Services,Head of Education and Skills,Transport,230008,Contract Hire,05/05/2023,4130179-DCC10APRIL23,"2,486.70",ATLAS TAXIS BISHOP AUCKLAND.
Children and Young Peoples Services,Head of Education and Skills,Transport,230008,Contract Hire,05/05/2023,4130179-DCC7APRIL23,"1,931.70",ATLAS TAXIS BISHOP AUCKLAND.
Children and Young Peoples Services,Head of Education and Skills,Transport,230008,Contract Hire,05/05/2023,4130179-DCC8APRIL23,"2,561.30",ATLAS TAXIS BISHOP AUCKLAND.
Children and Young Peoples Services,Head of Education and Skills,Transport,230008,Contract Hire,05/05/2023,4130180-DCC-9-MAR2023,"3,974.08",ATLAS TAXIS MANAGEMENT LTD.
Children and Young Peoples Services,Head of Education and Skills,Transport,230008,Contract Hire,05/05/2023,4130180-DCC111048L23,"1,603.90",ATLAS TAXIS MANAGEMENT LTD.
Children and Young Peoples Services,Head of Education and Skills,Transport,230008,Contract Hire,05/05/2023,4130180-DCC14APRIL23,"2,743.20",ATLAS TAXIS MANAGEMENT LTD.
Children and Young Peoples Services,Head of Education and Skills,Transport,230008,Contract Hire,05/05/2023,4130180-DCC15APRIL23,"2,040.00",ATLAS TAXIS MANAGEMENT LTD.
Children and Young Peoples Services,Head of Education and Skills,Transport,230008,Contract Hire,05/05/2023,4130180-DCC2APRIL2023,"2,506.40",ATLAS TAXIS MANAGEMENT LTD.
Children and Young Peoples Services,Head of Education and Skills,Transport,230008,Contract Hire,05/05/2023,4130180-DCC5APRIL23,"1,620.00",ATLAS TAXIS MANAGEMENT LTD.
Children and Young Peoples Services,Head of Education and Skills,Transport,230008,Contract Hire,05/05/2023,4130180-DCC9APRIL2023,"1,769.20",ATLAS TAXIS MANAGEMENT LTD.
Children and Young Peoples Services,Head of Education and Skills,Transport,230006,Contract Hire,05/05/2023,4130181-184,"1,420.00",AUCKLAND TRAVEL.
Children and Young Peoples Services,Head of Education and Skills,Transport,230008,Contract Hire,05/05/2023,4130181-185,"1,961.80",AUCKLAND TRAVEL.
Children and Young Peoples Services,Head of Education and Skills,Transport,230008,Contract Hire,05/05/2023,4130181-186,"1,649.50",AUCKLAND TRAVEL.
Children and Young Peoples Services,Head of Education and Skills,Transport,230008,Contract Hire,05/05/2023,4130181-187,"1,188.00",AUCKLAND TRAVEL.
Children and Young Peoples Services,Head of Education and Skills,Transport,230008,Contract Hire,05/05/2023,4130181-188,"2,241.00",AUCKLAND TRAVEL.
Children and Young Peoples Services,Head of Education and Skills,Transport,230007,Contract Hire,05/05/2023,4130182-280423,"1,100.00",AVALON TAXIS.
Children and Young Peoples Services,Head of Education and Skills,Transport,230034,Contract Hire,05/05/2023,4130182-2842023,"1,563.64",AVALON TAXIS.
Children and Young Peoples Services,Head of Education and Skills,Transport,230006,Contract Hire,05/05/2023,4130191-2-APR23,960.00,BH TRAVEL.
Dedicated Schools Grant BG0015,DSG High Needs Block,Transport,230009,Contract Hire,05/05/2023,4130193-6045,"1,747.26",BIG MAMA`S TAXI.
Adult and Health Services,Head of Adults,Transport,230005,Contract Hire,05/05/2023,4130194-0729,"1,432.16",BIRDS TAXIS LTD.
Children and Young Peoples Services,Head of Education and Skills,Transport,230035,Contract Hire,05/05/2023,4130197-24-APR23,"1,056.10",BL TAXIS.
Children and Young Peoples Services,Head of Education and Skills,Transport,230007,Contract Hire,05/05/2023,4130198-INV01687,942.56,BLUELINE SOUTH INCORPORATING NAVIGATION TAXIS T/A BLUELINE TAXIS.
Children and Young Peoples Services,Head of Education and Skills,Transport,230007,Contract Hire,05/05/2023,4130198-INV01691,"1,247.40",BLUELINE SOUTH INCORPORATING NAVIGATION TAXIS T/A BLUELINE TAXIS.
Children and Young Peoples Services,Head of Education and Skills,Transport,230008,Contract Hire,05/05/2023,4130198-INV01903,949.00,BLUELINE SOUTH INCORPORATING NAVIGATION TAXIS T/A BLUELINE TAXIS.
Children and Young Peoples Services,Head of Education and Skills,Transport,230007,Contract Hire,05/05/2023,4130198-INV01919,553.11,BLUELINE SOUTH INCORPORATING NAVIGATION TAXIS T/A BLUELINE TAXIS.
Children and Young Peoples Services,Head of Education and Skills,Transport,230034,Contract Hire,05/05/2023,4130198-INV01923,975.00,BLUELINE SOUTH INCORPORATING NAVIGATION TAXIS T/A BLUELINE TAXIS.
Adult and Health Services,Head of Adults,Transport,230005,Contract Hire,05/05/2023,4130198-INV01934,750.00,BLUELINE SOUTH INCORPORATING NAVIGATION TAXIS T/A BLUELINE TAXIS.
Adult and Health Services,Head of Adults,Transport,230005,Contract Hire,05/05/2023,4130198-INV01962,518.00,BLUELINE SOUTH INCORPORATING NAVIGATION TAXIS T/A BLUELINE TAXIS.
Children and Young Peoples Services,Head of Education and Skills,Transport,230007,Contract Hire,05/05/2023,4130198-INV01972,798.42,BLUELINE SOUTH INCORPORATING NAVIGATION TAXIS T/A BLUELINE TAXIS.
Children and Young Peoples Services,Head of Education and Skills,Transport,230008,Contract Hire,05/05/2023,4130198-INV02364,"3,139.73",BLUELINE SOUTH INCORPORATING NAVIGATION TAXIS T/A BLUELINE TAXIS.
Adult and Health Services,Head of Adults,Transport,230005,Contract Hire,05/05/2023,4130198-INV02425,650.00,BLUELINE SOUTH INCORPORATING NAVIGATION TAXIS T/A BLUELINE TAXIS.
Children and Young Peoples Services,Head of Education and Skills,Transport,230034,Contract Hire,05/05/2023,4130198-INV02426,"1,495.00",BLUELINE SOUTH INCORPORATING NAVIGATION TAXIS T/A BLUELINE TAXIS.
Children and Young Peoples Services,Head of Education and Skills,Transport,230008,Contract Hire,05/05/2023,4130198-INV02449,"1,449.50",BLUELINE SOUTH INCORPORATING NAVIGATION TAXIS T/A BLUELINE TAXIS.
Children and Young Peoples Services,Head of Education and Skills,Transport,230007,Contract Hire,05/05/2023,4130200-S2,980.00,BOBS TAXIS.
Children and Young Peoples Services,Head of Education and Skills,Transport,230007,Contract Hire,05/05/2023,4130201-005APR23,803.40,BOWBURN TAXIS.
Children and Young Peoples Services,Head of Education and Skills,Transport,230008,Contract Hire,05/05/2023,4130207-S006040,"2,601.68",C & R TAXIS.
Children and Young Peoples Services,Head of Education and Skills,Transport,230035,Contract Hire,05/05/2023,4130221-084-APR23,"1,000.00",CHANNER`S CABS.
Children and Young Peoples Services,Head of Education and Skills,Transport,230006,Contract Hire,05/05/2023,4130222-2216,"1,620.00",CHEVRON TAXIS LTD.
Children and Young Peoples Services,Head of Education and Skills,Transport,230008,Contract Hire,05/05/2023,4130227-E017LL - 0423,640.00,CJ`S EXECUTIVE TRAVEL LTD.
Children and Young Peoples Services,Head of Education and Skills,Transport,230008,Contract Hire,05/05/2023,4130227-E031-LR0423,"2,041.80",CJ`S EXECUTIVE TRAVEL LTD.
Children and Young Peoples Services,Head of Education and Skills,Transport,230008,Contract Hire,05/05/2023,4130227-E032-CE0423,"1,190.25",CJ`S EXECUTIVE TRAVEL LTD.
Children and Young Peoples Services,Head of Education and Skills,Transport,230008,Contract Hire,05/05/2023,4130227-E040-LRB0423,"1,260.81",CJ`S EXECUTIVE TRAVEL LTD.
Children and Young Peoples Services,Head of Education and Skills,Transport,230008,Contract Hire,05/05/2023,4130227-M031-BR0423,"1,431.00",CJ`S EXECUTIVE TRAVEL LTD.
Children and Young Peoples Services,Head of Education and Skills,Transport,230008,Contract Hire,05/05/2023,4130227-N049-JM0423,"2,095.18",CJ`S EXECUTIVE TRAVEL LTD.
Children and Young Peoples Services,Head of Education and Skills,Transport,230006,Contract Hire,05/05/2023,4130227-N120RW - 0423,"1,791.00",CJ`S EXECUTIVE TRAVEL LTD.
Children and Young Peoples Services,Head of Education and Skills,Transport,230008,Contract Hire,05/05/2023,4130234-33,"1,130.00",CONNORS MINI BUSES.*
Children and Young Peoples Services,Head of Education and Skills,Transport,230008,Contract Hire,05/05/2023,4130234-34,949.20,CONNORS MINI BUSES.*
Children and Young Peoples Services,Head of Education and Skills,Transport,230006,Contract Hire,05/05/2023,4130242-115548,"4,494.63",CROFT BUSINESS SERVICES LTD T/A CROFT TRAVEL.
Children and Young Peoples Services,Head of Education and Skills,Transport,230008,Contract Hire,05/05/2023,4130242-115551,"3,922.42",CROFT BUSINESS SERVICES LTD T/A CROFT TRAVEL.
Children and Young Peoples Services,Head of Education and Skills,Transport,230034,Contract Hire,05/05/2023,4130249-331-4270,"1,274.50",DANNY`S TRAVEL.
Children and Young Peoples Services,Head of Education and Skills,Transport,230007,Contract Hire,05/05/2023,4130249-331-4277,"2,015.70",DANNY`S TRAVEL.
Children and Young Peoples Services,Head of Education and Skills,Transport,230008,Contract Hire,05/05/2023,4130255-0423-001,"1,156.60",DCM TAXIS.
Children and Young Peoples Services,Head of Childrens Social Care,Transport,230005,Contract Hire,05/05/2023,4130262-DH2309C,798.00,DH2 CABS.
Children and Young Peoples Services,Head of Childrens Social Care,Transport,230005,Contract Hire,05/05/2023,4130262-DH2309M,606.00,DH2 CABS.
Children and Young Peoples Services,Head of Childrens Social Care,Transport,230005,Contract Hire,05/05/2023,4130262-DH2309Q,550.00,DH2 CABS.
Children and Young Peoples Services,Head of Childrens Social Care,Transport,230005,Contract Hire,05/05/2023,4130262-DH2309R,580.00,DH2 CABS.
Children and Young Peoples Services,Head of Childrens Social Care,Transport,230005,Contract Hire,05/05/2023,4130262-DH2309ZB,550.00,DH2 CABS.
Children and Young Peoples Services,Head of Childrens Social Care,Transport,230005,Contract Hire,05/05/2023,4130262-DH2312B,500.00,DH2 CABS.
Children and Young Peoples Services,Head of Childrens Social Care,Transport,230005,Contract Hire,05/05/2023,4130262-DH2312C,903.00,DH2 CABS.
Children and Young Peoples Services,Head of Childrens Social Care,Transport,230005,Contract Hire,05/05/2023,4130262-DH2312R,770.00,DH2 CABS.
Children and Young Peoples Services,Head of Childrens Social Care,Transport,230005,Contract Hire,05/05/2023,4130262-DH2312U,613.00,DH2 CABS.
Children and Young Peoples Services,Head of Childrens Social Care,Transport,230005,Contract Hire,05/05/2023,4130262-DH2312ZA,640.00,DH2 CABS.
Children and Young Peoples Services,Head of Childrens Social Care,Transport,230005,Contract Hire,05/05/2023,4130262-DH2312ZK,690.00,DH2 CABS.
Children and Young Peoples Services,Head of Childrens Social Care,Transport,230005,Contract Hire,05/05/2023,4130262-DH2313B,500.00,DH2 CABS.
Children and Young Peoples Services,Head of Childrens Social Care,Transport,230005,Contract Hire,05/05/2023,4130262-DH2313R,500.00,DH2 CABS.
Children and Young Peoples Services,Head of Childrens Social Care,Transport,230005,Contract Hire,05/05/2023,4130262-DH2313V,550.00,DH2 CABS.
Children and Young Peoples Services,Head of Childrens Social Care,Transport,230005,Contract Hire,05/05/2023,4130262-DH2313ZI,690.00,DH2 CABS.
Children and Young Peoples Services,Head of Childrens Social Care,Transport,230005,Contract Hire,05/05/2023,4130262-DH2314E,500.00,DH2 CABS.
Children and Young Peoples Services,Head of Childrens Social Care,Transport,230005,Contract Hire,05/05/2023,4130262-DH2315B,504.00,DH2 CABS.
Children and Young Peoples Services,Head of Early Help Inclusion & Vulnerable Children.,Transport,230005,Contract Hire,05/05/2023,4130262-DH2316A,547.00,DH2 CABS.
Children and Young Peoples Services,Head of Childrens Social Care,Transport,230005,Contract Hire,05/05/2023,4130262-DH2316C,500.00,DH2 CABS.
Children and Young Peoples Services,Head of Childrens Social Care,Transport,230005,Contract Hire,05/05/2023,4130262-DH2316P,538.00,DH2 CABS.
Children and Young Peoples Services,Head of Childrens Social Care,Transport,230005,Contract Hire,05/05/2023,4130262-DH2316U,550.00,DH2 CABS.
Children and Young Peoples Services,Head of Childrens Social Care,Transport,230005,Contract Hire,05/05/2023,4130262-DH2316ZF,680.00,DH2 CABS.
Children and Young Peoples Services,Head of Education and Skills,Transport,230007,Contract Hire,05/05/2023,4130270-004,"1,176.00",DURHAM DALES PRIVATE HIRE.
Children and Young Peoples Services,Head of Education and Skills,Transport,230007,Contract Hire,05/05/2023,4130300-2616,916.30,FMR SILVA PITA.
Children and Young Peoples Services,Head of Education and Skills,Transport,230008,Contract Hire,05/05/2023,4130309-103389,"1,940.40",G & P JOHNSON LTD T/A NIGHTINGALE COACHES.
Children and Young Peoples Services,Head of Education and Skills,Transport,230008,Contract Hire,05/05/2023,4130309-103390,"1,433.40",G & P JOHNSON LTD T/A NIGHTINGALE COACHES.
Adult and Health Services,Head of Adults,Transport,230005,Contract Hire,05/05/2023,4130309-103391,"1,490.00",G & P JOHNSON LTD T/A NIGHTINGALE COACHES.
Children and Young Peoples Services,Head of Education and Skills,Transport,230003,Contract Hire,05/05/2023,4130312-3003/24522,"2,390.00",GARNETTS LTD (COACHES).
Children and Young Peoples Services,Head of Education and Skills,Transport,230003,Contract Hire,05/05/2023,4130312-3004/24522,"2,305.90",GARNETTS LTD (COACHES).
Children and Young Peoples Services,Head of Education and Skills,Transport,230003,Contract Hire,05/05/2023,4130312-3005/24522,"3,368.40",GARNETTS LTD (COACHES).
Children and Young Peoples Services,Head of Education and Skills,Transport,230003,Contract Hire,05/05/2023,4130312-3007/24518,"1,578.40",GARNETTS LTD (COACHES).
Children and Young Peoples Services,Head of Education and Skills,Transport,230003,Contract Hire,05/05/2023,4130312-3008/24522,"1,910.20",GARNETTS LTD (COACHES).
Children and Young Peoples Services,Head of Education and Skills,Transport,230003,Contract Hire,05/05/2023,4130312-3020/24520,"1,627.70",GARNETTS LTD (COACHES).
Children and Young Peoples Services,Head of Education and Skills,Transport,230007,Contract Hire,05/05/2023,4130312-3024/24520,"1,345.10",GARNETTS LTD (COACHES).
Children and Young Peoples Services,Head of Education and Skills,Transport,230007,Contract Hire,05/05/2023,4130312-3027/24520,"1,435.50",GARNETTS LTD (COACHES).
Children and Young Peoples Services,Head of Education and Skills,Transport,230003,Contract Hire,05/05/2023,4130312-3028/24520,"1,571.10",GARNETTS LTD (COACHES).
Children and Young Peoples Services,Head of Education and Skills,Transport,230007,Contract Hire,05/05/2023,4130312-3029/24520,"1,616.40",GARNETTS LTD (COACHES).
Children and Young Peoples Services,Head of Education and Skills,Transport,230007,Contract Hire,05/05/2023,4130312-3199/24520,"1,537.20",GARNETTS LTD (COACHES).
Children and Young Peoples Services,Head of Education and Skills,Transport,230006,Contract Hire,05/05/2023,4130312-3203/24522,"2,248.40",GARNETTS LTD (COACHES).
Children and Young Peoples Services,Head of Education and Skills,Transport,230003,Contract Hire,05/05/2023,4130312-3223/24522,"2,690.00",GARNETTS LTD (COACHES).
Children and Young Peoples Services,Head of Education and Skills,Transport,230003,Contract Hire,05/05/2023,4130312-3254/245224,"1,684.20",GARNETTS LTD (COACHES).
Children and Young Peoples Services,Head of Education and Skills,Transport,230003,Contract Hire,05/05/2023,4130312-3262/24522,"2,113.70",GARNETTS LTD (COACHES).
Children and Young Peoples Services,Head of Education and Skills,Transport,230003,Contract Hire,05/05/2023,4130312-3301/24521,"1,590.00",GARNETTS LTD (COACHES).
Children and Young Peoples Services,Head of Education and Skills,Transport,230003,Contract Hire,05/05/2023,4130312-3302/24521,"1,790.00",GARNETTS LTD (COACHES).
Children and Young Peoples Services,Head of Education and Skills,Transport,230003,Contract Hire,05/05/2023,4130312-3303/24521,"1,790.00",GARNETTS LTD (COACHES).
Children and Young Peoples Services,Head of Education and Skills,Transport,230007,Contract Hire,05/05/2023,4130312-3315/24518,"1,482.40",GARNETTS LTD (COACHES).
Children and Young Peoples Services,Head of Education and Skills,Transport,230003,Contract Hire,05/05/2023,4130312-3333/24522,"1,899.00",GARNETTS LTD (COACHES).
Children and Young Peoples Services,Head of Education and Skills,Transport,230007,Contract Hire,05/05/2023,4130312-3435/24518,"2,005.00",GARNETTS LTD (COACHES).
Children and Young Peoples Services,Head of Education and Skills,Transport,230007,Contract Hire,05/05/2023,4130312-4034/24519,"1,482.40",GARNETTS LTD (COACHES).
Children and Young Peoples Services,Head of Education and Skills,Transport,230007,Contract Hire,05/05/2023,4130312-4035/24519,"1,566.40",GARNETTS LTD (COACHES).
Children and Young Peoples Services,Head of Education and Skills,Transport,230007,Contract Hire,05/05/2023,4130312-4037/24519,"3,094.90",GARNETTS LTD (COACHES).
Children and Young Peoples Services,Head of Education and Skills,Transport,230007,Contract Hire,05/05/2023,4130312-4038/24519,"1,759.70",GARNETTS LTD (COACHES).
Children and Young Peoples Services,Head of Education and Skills,Transport,230007,Contract Hire,05/05/2023,4130312-4404/24517,"7,422.70",GARNETTS LTD (COACHES).
Children and Young Peoples Services,Head of Education and Skills,Transport,230007,Contract Hire,05/05/2023,4130312-5022/24515,"2,814.50",GARNETTS LTD (COACHES).
Children and Young Peoples Services,Head of Education and Skills,Transport,230007,Contract Hire,05/05/2023,4130312-5199/24516,"2,769.40",GARNETTS LTD (COACHES).
Children and Young Peoples Services,Head of Education and Skills,Transport,230008,Contract Hire,05/05/2023,4130312-S011/24523,"1,763.30",GARNETTS LTD (COACHES).
Children and Young Peoples Services,Head of Education and Skills,Transport,230008,Contract Hire,05/05/2023,4130312-W041/24548,"2,400.15",GARNETTS LTD (COACHES).
Children and Young Peoples Services,Head of Education and Skills,Transport,230008,Contract Hire,05/05/2023,4130317-037,"1,849.80",GMC TAXIS NORTH EAST.
Children and Young Peoples Services,Head of Education and Skills,Transport,230006,Contract Hire,05/05/2023,4130320-90/298,"3,114.81",GRAHAMS MOTOR SERVICES LTD.
Children and Young Peoples Services,Head of Education and Skills,Transport,230006,Contract Hire,05/05/2023,4130320-90/299,"2,041.92",GRAHAMS MOTOR SERVICES LTD.
Children and Young Peoples Services,Head of Education and Skills,Transport,230034,Contract Hire,05/05/2023,4130339-25APR23,900.30,HORNDALE TAXIS.
Children and Young Peoples Services,Head of Education and Skills,Transport,230034,Contract Hire,05/05/2023,4130339-26APR23,"1,171.45",HORNDALE TAXIS.
Children and Young Peoples Services,Head of Education and Skills,Transport,230008,Contract Hire,05/05/2023,4130346-1148,"1,784.43",I & R EXECUTIVE TRAVEL.
Children and Young Peoples Services,Head of Education and Skills,Transport,230008,Contract Hire,05/05/2023,4130346-1149,949.50,I & R EXECUTIVE TRAVEL.
Adult and Health Services,Head of Adults,Transport,230005,Contract Hire,05/05/2023,4130346-1150,"2,276.40",I & R EXECUTIVE TRAVEL.
Children and Young Peoples Services,Head of Education and Skills,Transport,230008,Contract Hire,05/05/2023,4130355-0962,"1,244.50",JACKSON`S TAXI.
Adult and Health Services,Head of Adults,Transport,230005,Contract Hire,05/05/2023,4130355-0963,"2,543.58",JACKSON`S TAXI.
Adult and Health Services,Head of Adults,Transport,230005,Contract Hire,05/05/2023,4130355-0965,682.00,JACKSON`S TAXI.
Children and Young Peoples Services,Head of Education and Skills,Transport,230007,Contract Hire,05/05/2023,4130355-0966,"1,167.20",JACKSON`S TAXI.
Children and Young Peoples Services,Head of Education and Skills,Transport,230008,Contract Hire,05/05/2023,4130355-0967,"1,360.90",JACKSON`S TAXI.
Adult and Health Services,Head of Adults,Transport,230005,Contract Hire,05/05/2023,4130355-0968,734.20,JACKSON`S TAXI.
Children and Young Peoples Services,Head of Education and Skills,Transport,230008,Contract Hire,05/05/2023,4130361-INV3273,"1,004.80",JEFF ANDERSON COACHES LTD.
Children and Young Peoples Services,Head of Education and Skills,Transport,230008,Contract Hire,05/05/2023,4130361-INV3274,"1,303.90",JEFF ANDERSON COACHES LTD.
Children and Young Peoples Services,Head of Education and Skills,Transport,230007,Contract Hire,05/05/2023,4130361-INV3275,859.00,JEFF ANDERSON COACHES LTD.
Children and Young Peoples Services,Head of Education and Skills,Transport,230007,Contract Hire,05/05/2023,4130361-INV3276,"1,469.40",JEFF ANDERSON COACHES LTD.
Adult and Health Services,Head of Adults,Transport,230005,Contract Hire,05/05/2023,4130366-84APR23,"1,642.14",JOHN CRAKE & SONS MINI BUSES LTD.
Children and Young Peoples Services,Head of Education and Skills,Transport,230008,Contract Hire,05/05/2023,4130370-M00958,"1,800.00",JOVIAL PRIVATE HIRE.
Children and Young Peoples Services,Head of Education and Skills,Transport,230008,Contract Hire,05/05/2023,4130370-M01619,746.60,JOVIAL PRIVATE HIRE.
Children and Young Peoples Services,Head of Education and Skills,Transport,230008,Contract Hire,05/05/2023,4130370-N030020,"1,555.20",JOVIAL PRIVATE HIRE.
Children and Young Peoples Services,Head of Education and Skills,Transport,230008,Contract Hire,05/05/2023,4130373-1403,"1,509.00",K & R TAXIS (STANLEY).
Children and Young Peoples Services,Head of Education and Skills,Transport,230008,Contract Hire,05/05/2023,4130373-1404,"2,480.72",K & R TAXIS (STANLEY).
Children and Young Peoples Services,Head of Education and Skills,Transport,230008,Contract Hire,05/05/2023,4130373-1405,"2,637.46",K & R TAXIS (STANLEY).
Children and Young Peoples Services,Head of Education and Skills,Transport,230008,Contract Hire,05/05/2023,4130373-1406,"2,622.56",K & R TAXIS (STANLEY).
Children and Young Peoples Services,Head of Education and Skills,Transport,230008,Contract Hire,05/05/2023,4130373-1408,"1,902.67",K & R TAXIS (STANLEY).
Children and Young Peoples Services,Head of Education and Skills,Transport,230008,Contract Hire,05/05/2023,4130373-1409,"1,535.80",K & R TAXIS (STANLEY).
Children and Young Peoples Services,Head of Education and Skills,Transport,230012,Contract Hire,05/05/2023,4130373-14101,"1,855.70",K & R TAXIS (STANLEY).
Children and Young Peoples Services,Head of Education and Skills,Transport,230008,Contract Hire,05/05/2023,4130373-1411,"1,980.00",K & R TAXIS (STANLEY).
Children and Young Peoples Services,Head of Education and Skills,Transport,230008,Contract Hire,05/05/2023,4130373-1412,"1,960.00",K & R TAXIS (STANLEY).
Children and Young Peoples Services,Head of Education and Skills,Transport,230012,Contract Hire,05/05/2023,4130373-1413,"1,840.20",K & R TAXIS (STANLEY).
Children and Young Peoples Services,Head of Education and Skills,Transport,230008,Contract Hire,05/05/2023,4130375-08APR23,"1,386.50",KD TAXIS.
Children and Young Peoples Services,Head of Education and Skills,Transport,230034,Contract Hire,05/05/2023,4130385-MARCH23-5463,847.68,LARS CARS LTD T/A STREETCARS.
Children and Young Peoples Services,Head of Education and Skills,Transport,230007,Contract Hire,05/05/2023,4130387-32488,"1,124.70",LEE`S COACHES LTD.
Children and Young Peoples Services,Head of Education and Skills,Transport,230007,Contract Hire,05/05/2023,4130387-32489,"2,136.30",LEE`S COACHES LTD.
Children and Young Peoples Services,Head of Education and Skills,Transport,230007,Contract Hire,05/05/2023,4130387-32490,"1,599.80",LEE`S COACHES LTD.
Children and Young Peoples Services,Head of Education and Skills,Transport,230007,Contract Hire,05/05/2023,4130387-32492,"1,800.00",LEE`S COACHES LTD.
Children and Young Peoples Services,Head of Education and Skills,Transport,230007,Contract Hire,05/05/2023,4130387-32493,"2,226.50",LEE`S COACHES LTD.
Children and Young Peoples Services,Head of Education and Skills,Transport,230008,Contract Hire,05/05/2023,4130392-019,"2,003.80",LIMASEC LTD T/A LIMA TRANSPORT.
Children and Young Peoples Services,Head of Education and Skills,Transport,230008,Contract Hire,05/05/2023,4130397-5401,959.90,LOCAL TRANSPORT LTD.
Children and Young Peoples Services,Head of Education and Skills,Transport,230008,Contract Hire,05/05/2023,4130406-INV04/2023-23,"1,477.20",MARK & JOHN CHISHOLM T/A (CHEVRON).
Children and Young Peoples Services,Head of Education and Skills,Transport,230008,Contract Hire,05/05/2023,4130406-INV04/2023-24,"1,459.50",MARK & JOHN CHISHOLM T/A (CHEVRON).
Children and Young Peoples Services,Head of Education and Skills,Transport,230008,Contract Hire,05/05/2023,4130406-INV04/2023-26,"2,620.80",MARK & JOHN CHISHOLM T/A (CHEVRON).
Children and Young Peoples Services,Head of Education and Skills,Transport,230008,Contract Hire,05/05/2023,4130406-INV04/2023-27,"1,880.00",MARK & JOHN CHISHOLM T/A (CHEVRON).
Children and Young Peoples Services,Head of Education and Skills,Transport,230008,Contract Hire,05/05/2023,4130406-INV04/2023-28,"2,599.25",MARK & JOHN CHISHOLM T/A (CHEVRON).
Children and Young Peoples Services,Head of Education and Skills,Transport,230008,Contract Hire,05/05/2023,4130406-INV04/2023-36,"1,842.40",MARK & JOHN CHISHOLM T/A (CHEVRON).
Children and Young Peoples Services,Head of Education and Skills,Transport,230008,Contract Hire,05/05/2023,4130406-INV04/202319,"1,450.40",MARK & JOHN CHISHOLM T/A (CHEVRON).
Children and Young Peoples Services,Head of Education and Skills,Transport,230006,Contract Hire,05/05/2023,4130447-8APR2023,"1,471.10",NC TAXI`S.
Neighbourhoods and Climate Change,Environmental Services,Transport,230005,Contract Hire,05/05/2023,4130448-161899,"3,100.00",ND BROWN LTD.
Neighbourhoods and Climate Change,Environmental Services,Transport,230005,Contract Hire,05/05/2023,4130448-161900,"2,192.01",ND BROWN LTD.
Neighbourhoods and Climate Change,Environmental Services,Transport,230005,Contract Hire,05/05/2023,4130448-162880,"3,000.00",ND BROWN LTD.
Neighbourhoods and Climate Change,Environmental Services,Transport,230005,Contract Hire,05/05/2023,4130448-162881,"2,121.30",ND BROWN LTD.
Children and Young Peoples Services,Head of Education and Skills,Transport,230008,Contract Hire,05/05/2023,4130475-815,"1,151.82",PETERLEE EXECUTIVE CARS.
Children and Young Peoples Services,Head of Education and Skills,Transport,230007,Contract Hire,05/05/2023,4130475-816,"1,575.60",PETERLEE EXECUTIVE CARS.
Children and Young Peoples Services,Head of Education and Skills,Transport,230008,Contract Hire,05/05/2023,4130475-817,"1,800.00",PETERLEE EXECUTIVE CARS.
Children and Young Peoples Services,Head of Education and Skills,Transport,230008,Contract Hire,05/05/2023,4130475-818,630.00,PETERLEE EXECUTIVE CARS.
Children and Young Peoples Services,Head of Education and Skills,Transport,230034,Contract Hire,05/05/2023,4130477-3422APR23,565.20,PETER`S TAXIS.
Children and Young Peoples Services,Head of Education and Skills,Transport,230035,Contract Hire,05/05/2023,4130477-3482APR23,913.90,PETER`S TAXIS.
Children and Young Peoples Services,Head of Education and Skills,Transport,230003,Contract Hire,05/05/2023,4130477-3501APR23,800.00,PETER`S TAXIS.
Children and Young Peoples Services,Head of Education and Skills,Transport,230007,Contract Hire,05/05/2023,4130477-5294APR23,917.30,PETER`S TAXIS.
Children and Young Peoples Services,Head of Education and Skills,Transport,230006,Contract Hire,05/05/2023,4130477-F116APR23,797.74,PETER`S TAXIS.
Children and Young Peoples Services,Head of Childrens Social Care,Transport,230005,Contract Hire,05/05/2023,4130487-SI-2305,970.00,PTL TAXIS LTD.
Children and Young Peoples Services,Head of Childrens Social Care,Transport,230005,Contract Hire,05/05/2023,4130487-SI-2406,582.00,PTL TAXIS LTD.
Children and Young Peoples Services,Head of Childrens Social Care,Transport,230005,Contract Hire,05/05/2023,4130487-SI-2417,970.00,PTL TAXIS LTD.
Children and Young Peoples Services,Head of Childrens Social Care,Transport,230005,Contract Hire,05/05/2023,4130487-SI-2418,568.50,PTL TAXIS LTD.
Children and Young Peoples Services,Head of Childrens Social Care,Transport,230005,Contract Hire,05/05/2023,4130487-SI-2419,565.00,PTL TAXIS LTD.
Children and Young Peoples Services,Head of Childrens Social Care,Transport,230005,Contract Hire,05/05/2023,4130487-SI-2421,516.00,PTL TAXIS LTD.
Children and Young Peoples Services,Head of Childrens Social Care,Transport,230005,Contract Hire,05/05/2023,4130487-SI-2423,715.00,PTL TAXIS LTD.
Children and Young Peoples Services,Head of Childrens Social Care,Transport,230005,Contract Hire,05/05/2023,4130487-SI-2436,565.00,PTL TAXIS LTD.
Children and Young Peoples Services,Head of Childrens Social Care,Transport,230005,Contract Hire,05/05/2023,4130487-SI-2437,970.00,PTL TAXIS LTD.
Children and Young Peoples Services,Head of Childrens Social Care,Transport,230005,Contract Hire,05/05/2023,4130487-SI-2438,568.50,PTL TAXIS LTD.
Children and Young Peoples Services,Head of Childrens Social Care,Transport,230005,Contract Hire,05/05/2023,4130487-SI-2440,516.00,PTL TAXIS LTD.
Children and Young Peoples Services,Head of Childrens Social Care,Transport,230005,Contract Hire,05/05/2023,4130487-SI-2442,715.00,PTL TAXIS LTD.
Children and Young Peoples Services,Head of Education and Skills,Transport,230034,Contract Hire,05/05/2023,4130487-SI-2463,"1,254.40",PTL TAXIS LTD.
Children and Young Peoples Services,Head of Education and Skills,Transport,230008,Contract Hire,05/05/2023,4130487-SI-2519,540.00,PTL TAXIS LTD.
Children and Young Peoples Services,Head of Education and Skills,Transport,230010,Contract Hire,05/05/2023,4130487-SI-2522,793.38,PTL TAXIS LTD.
Children and Young Peoples Services,Head of Education and Skills,Transport,230007,Contract Hire,05/05/2023,4130487-SI-2526,"1,031.00",PTL TAXIS LTD.
Children and Young Peoples Services,Head of Education and Skills,Transport,230007,Contract Hire,05/05/2023,4130493-3161/08,"1,500.00",RAYNERS COACHES.
Children and Young Peoples Services,Head of Education and Skills,Transport,230007,Contract Hire,05/05/2023,4130493-4004/08,821.20,RAYNERS COACHES.
Children and Young Peoples Services,Head of Education and Skills,Transport,230007,Contract Hire,05/05/2023,4130493-4005/08,"2,234.30",RAYNERS COACHES.
Children and Young Peoples Services,Head of Education and Skills,Transport,230007,Contract Hire,05/05/2023,4130493-4006/08,"1,580.00",RAYNERS COACHES.
Children and Young Peoples Services,Head of Education and Skills,Transport,230007,Contract Hire,05/05/2023,4130493-4062/08,798.80,RAYNERS COACHES.
Children and Young Peoples Services,Head of Education and Skills,Transport,230006,Contract Hire,05/05/2023,4130493-M007/08,"1,482.00",RAYNERS COACHES.
Children and Young Peoples Services,Head of Education and Skills,Transport,230006,Contract Hire,05/05/2023,4130497-SI-96,"1,011.00",ROBBIE`S PRIVATE HIRE.
Children and Young Peoples Services,Head of Education and Skills,Transport,230008,Contract Hire,05/05/2023,4130500-004,"1,589.00",RONS TAXI (CHESTER LE ST).
Children and Young Peoples Services,Head of Education and Skills,Transport,230003,Contract Hire,05/05/2023,4130502-ROXDCC313,"1,493.10",ROXBYS BUS HIRE.
Children and Young Peoples Services,Head of Education and Skills,Transport,230007,Contract Hire,05/05/2023,4130502-ROXDCC314,"2,800.00",ROXBYS BUS HIRE.
Children and Young Peoples Services,Head of Education and Skills,Transport,230003,Contract Hire,05/05/2023,4130502-ROXDCC315,"5,100.00",ROXBYS BUS HIRE.
Children and Young Peoples Services,Head of Education and Skills,Transport,230008,Contract Hire,05/05/2023,4130505-S009/44,"1,756.30",S & S TRAVEL LTD.
Children and Young Peoples Services,Head of Education and Skills,Transport,230008,Contract Hire,05/05/2023,4130505-S017/73,"1,247.40",S & S TRAVEL LTD.
Adult and Health Services,Head of Adults,Transport,230005,Contract Hire,05/05/2023,4130505-SED112/49,"1,609.76",S & S TRAVEL LTD.
Children and Young Peoples Services,Head of Education and Skills,Transport,230008,Contract Hire,05/05/2023,4130505-W014/45,"1,625.75",S & S TRAVEL LTD.
Children and Young Peoples Services,Head of Education and Skills,Transport,230008,Contract Hire,05/05/2023,4130505-W036/20,"1,632.00",S & S TRAVEL LTD.
Children and Young Peoples Services,Head of Education and Skills,Transport,230008,Contract Hire,05/05/2023,4130505-W05644,"1,265.00",S & S TRAVEL LTD.
Children and Young Peoples Services,Head of Education and Skills,Transport,230008,Contract Hire,05/05/2023,4130505-W067/44,"1,705.20",S & S TRAVEL LTD.
Children and Young Peoples Services,Head of Education and Skills,Transport,230008,Contract Hire,05/05/2023,4130505-W178-27,882.90,S & S TRAVEL LTD.
Children and Young Peoples Services,Head of Education and Skills,Transport,230008,Contract Hire,05/05/2023,4130505-w032/45,"1,667.70",S & S TRAVEL LTD.
Children and Young Peoples Services,Head of Education and Skills,Transport,230008,Contract Hire,05/05/2023,4130507-AGB1019,"1,417.60",SAFELINE TRAVEL.
Children and Young Peoples Services,Head of Education and Skills,Transport,230008,Contract Hire,05/05/2023,4130516-230501,"1,703.14",SHOTTON PRIVATE HIRE.
Children and Young Peoples Services,Head of Education and Skills,Transport,230008,Contract Hire,05/05/2023,4130516-230506,"1,767.50",SHOTTON PRIVATE HIRE.
Children and Young Peoples Services,Head of Education and Skills,Transport,230006,Contract Hire,05/05/2023,4130520-3465,"1,956.34",SIMONS TAXIS.
Children and Young Peoples Services,Head of Education and Skills,Transport,230008,Contract Hire,05/05/2023,4130525-80002,"1,279.80",SPENNYMOOR TAXIS.
Children and Young Peoples Services,Head of Education and Skills,Transport,230008,Contract Hire,05/05/2023,4130525-8001,"1,400.00",SPENNYMOOR TAXIS.
Children and Young Peoples Services,Head of Education and Skills,Transport,230008,Contract Hire,05/05/2023,4130525-AL80005,"1,000.00",SPENNYMOOR TAXIS.
Children and Young Peoples Services,Head of Education and Skills,Transport,230007,Contract Hire,05/05/2023,4130529-08300,"2,142.17",STANLEY TRAVEL (NORTH EAST) LTD.
Children and Young Peoples Services,Head of Education and Skills,Transport,230008,Contract Hire,05/05/2023,4130529-08311,"3,839.20",STANLEY TRAVEL (NORTH EAST) LTD.
Children and Young Peoples Services,Head of Childrens Social Care,Transport,230005,Contract Hire,05/05/2023,4130533-APR46/STL23,647.00,STL CABS LTD.
Children and Young Peoples Services,Head of Childrens Social Care,Transport,230005,Contract Hire,05/05/2023,4130533-APR52/STL23,534.00,STL CABS LTD.
Children and Young Peoples Services,Head of Childrens Social Care,Transport,230005,Contract Hire,05/05/2023,4130533-APR66/STL23,680.00,STL CABS LTD.
Children and Young Peoples Services,Head of Childrens Social Care,Transport,230005,Contract Hire,05/05/2023,4130533-MAR107/STL23,510.00,STL CABS LTD.
Children and Young Peoples Services,Head of Childrens Social Care,Transport,230005,Contract Hire,05/05/2023,4130533-MAR112/STL23,578.00,STL CABS LTD.
Children and Young Peoples Services,Head of Childrens Social Care,Transport,230005,Contract Hire,05/05/2023,4130533-MAR118/STL23,504.00,STL CABS LTD.
Children and Young Peoples Services,Head of Childrens Social Care,Transport,230005,Contract Hire,05/05/2023,4130533-MAR127/STL23,624.00,STL CABS LTD.
Children and Young Peoples Services,Head of Childrens Social Care,Transport,230005,Contract Hire,05/05/2023,4130533-MAR130/STL23,534.00,STL CABS LTD.
Children and Young Peoples Services,Head of Childrens Social Care,Transport,230005,Contract Hire,05/05/2023,4130533-MAR134/STL23,588.00,STL CABS LTD.
Children and Young Peoples Services,Head of Childrens Social Care,Transport,230005,Contract Hire,05/05/2023,4130533-MAR155/STL23,520.00,STL CABS LTD.
Children and Young Peoples Services,Head of Childrens Social Care,Transport,230005,Contract Hire,05/05/2023,4130533-MAR157/STL23,686.00,STL CABS LTD.
Children and Young Peoples Services,Head of Childrens Social Care,Transport,230005,Contract Hire,05/05/2023,4130533-MAR158/STL23,730.00,STL CABS LTD.
Children and Young Peoples Services,Head of Childrens Social Care,Transport,230005,Contract Hire,05/05/2023,4130533-MAR159/STL23,520.00,STL CABS LTD.
Children and Young Peoples Services,Head of Childrens Social Care,Transport,230005,Contract Hire,05/05/2023,4130533-MAR166/STL23,504.00,STL CABS LTD.
Children and Young Peoples Services,Head of Childrens Social Care,Transport,230005,Contract Hire,05/05/2023,4130533-MAR179/STL23,534.00,STL CABS LTD.
Children and Young Peoples Services,Head of Education and Skills,Transport,230009,Contract Hire,05/05/2023,4130542-DCC-2022-58,764.40,TAYLOR`S TAXIS.
Children and Young Peoples Services,Head of Education and Skills,Transport,230008,Contract Hire,05/05/2023,4130542-DCC-2022-60,"1,313.90",TAYLOR`S TAXIS.
Children and Young Peoples Services,Head of Education and Skills,Transport,230008,Contract Hire,05/05/2023,4130542-DCC-2022-61,"1,435.50",TAYLOR`S TAXIS.
Children and Young Peoples Services,Head of Education and Skills,Transport,230035,Contract Hire,05/05/2023,4130542-DCC-2022-62,767.80,TAYLOR`S TAXIS.
Children and Young Peoples Services,Head of Education and Skills,Transport,230006,Contract Hire,05/05/2023,4130542-DCC-2022-63,"1,848.52",TAYLOR`S TAXIS.
Adult and Health Services,Head of Adults,Transport,230005,Contract Hire,05/05/2023,4130542-DCC-2022-64,"1,224.00",TAYLOR`S TAXIS.
Children and Young Peoples Services,Head of Education and Skills,Transport,230008,Contract Hire,05/05/2023,4130542-DCC-2022-65,"1,980.00",TAYLOR`S TAXIS.
Children and Young Peoples Services,Head of Education and Skills,Transport,230006,Contract Hire,05/05/2023,4130556-1-APR23,"1,502.80",TONYS TAXIS (J BIRCH).
Children and Young Peoples Services,Head of Education and Skills,Transport,230008,Contract Hire,05/05/2023,4130556-3-APR23,"1,366.00",TONYS TAXIS (J BIRCH).
Adult and Health Services,Head of Adults,Transport,230005,Contract Hire,05/05/2023,4130556-4-APR23,"2,287.26",TONYS TAXIS (J BIRCH).
Children and Young Peoples Services,Head of Education and Skills,Transport,230034,Contract Hire,05/05/2023,4130561-SH00018,647.19,TRAVEL 6.
Children and Young Peoples Services,Head of Education and Skills,Transport,230010,Contract Hire,05/05/2023,4130561-WLS0002,"2,039.86",TRAVEL 6.
Children and Young Peoples Services,Head of Education and Skills,Transport,230007,Contract Hire,05/05/2023,4130583-7735,"1,778.50",WEARDALE PRIVATE HIRE.
Children and Young Peoples Services,Head of Education and Skills,Transport,230007,Contract Hire,05/05/2023,4130583-7736,"1,345.80",WEARDALE PRIVATE HIRE.
Children and Young Peoples Services,Head of Education and Skills,Transport,230008,Contract Hire,05/05/2023,4130583-7744,"1,548.40",WEARDALE PRIVATE HIRE.
Children and Young Peoples Services,Head of Education and Skills,Transport,230008,Contract Hire,05/05/2023,4130583-7745,"2,789.29",WEARDALE PRIVATE HIRE.
Neighbourhoods and Climate Change,Highways,Third Party Payments,460224,Contract Payments,05/05/2023,4130176-23196,"10,703.00",ARM PIPETEK LTD.
Adult and Health Services,Public Health CC0450,Third Party Payments,460803,Contract Payments,05/05/2023,4130512-1WHGP7VV2023-03-31,941.58,SH24 CIC.
Regeneration Economy and Growth,Business Durham CL0850,Third Party Payments,460305,Contract Payments,05/05/2023,4130570-RES-05-2023-103,"11,506.96",UMI COMMERCIAL LTD.
Regeneration Economy and Growth,Culture Sport and Tourism,Supplies and Services,304252,Equipment and Materials,05/05/2023,4130173-INV-0005,714.72,APPLIED TRADING LTD.
Regeneration Economy and Growth,Corporate Property and Land,Supplies and Services,304358,Equipment and Materials,05/05/2023,4130206-09813,660.00,BW HAULAGE LTD.
Regeneration Economy and Growth,Corporate Property and Land,Supplies and Services,304358,Equipment and Materials,05/05/2023,4130206-09814,540.00,BW HAULAGE LTD.
Neighbourhoods and Climate Change,Highways,Supplies and Services,304358,Equipment and Materials,05/05/2023,4130219-110560,625.50,CG ROBINSON & SONS LTD.
Neighbourhoods and Climate Change,Highways,Supplies and Services,304358,Equipment and Materials,05/05/2023,4130219-111689,616.25,CG ROBINSON & SONS LTD.
Neighbourhoods and Climate Change,Highways,Supplies and Services,304358,Equipment and Materials,05/05/2023,4130220-1924,"4,597.80",CG SIMPSON & SON.
Neighbourhoods and Climate Change,Environmental Services,Supplies and Services,304221,Equipment and Materials,05/05/2023,4130275-0000098975,760.20,EAST RIDING HORTICULTURE LTD.
Regeneration Economy and Growth,Corporate Property and Land,Supplies and Services,304221,Equipment and Materials,05/05/2023,4130276-059-317439,760.20,EDMUNDSON ELECTRICAL LTD.
Neighbourhoods and Climate Change,Highways,Supplies and Services,304357,Equipment and Materials,05/05/2023,4130311-DCC120323,"28,171.43",GAP GROUP LTD.
Neighbourhoods and Climate Change,Highways,Supplies and Services,304357,Equipment and Materials,05/05/2023,4130311-DCC190323,"21,670.55",GAP GROUP LTD.
Neighbourhoods and Climate Change,Highways,Supplies and Services,304357,Equipment and Materials,05/05/2023,4130311-DCC260323,"21,557.75",GAP GROUP LTD.
Neighbourhoods and Climate Change,Highways,Supplies and Services,304358,Equipment and Materials,05/05/2023,4130315-81279,"1,288.00",GEORGE VARDY HAULAGE.
Neighbourhoods and Climate Change,Highways,Supplies and Services,304358,Equipment and Materials,05/05/2023,4130315-81280,"1,288.00",GEORGE VARDY HAULAGE.
Neighbourhoods and Climate Change,Highways,Supplies and Services,304358,Equipment and Materials,05/05/2023,4130315-81281,"1,232.00",GEORGE VARDY HAULAGE.
Neighbourhoods and Climate Change,Highways,Supplies and Services,304358,Equipment and Materials,05/05/2023,4130353-5306800,"1,023.00",JA GILSON (AGRICULTURAL CONTRACTORS) LTD.
Neighbourhoods and Climate Change,Highways,Supplies and Services,304358,Equipment and Materials,05/05/2023,4130353-5306808,"1,054.00",JA GILSON (AGRICULTURAL CONTRACTORS) LTD.
Neighbourhoods and Climate Change,Highways,Supplies and Services,304358,Equipment and Materials,05/05/2023,4130353-5306820,826.00,JA GILSON (AGRICULTURAL CONTRACTORS) LTD.
Neighbourhoods and Climate Change,Highways,Supplies and Services,304358,Equipment and Materials,05/05/2023,4130367-32431,"2,310.00",JOHN R BUTTERFIELD LTD.
Neighbourhoods and Climate Change,Highways,Supplies and Services,304358,Equipment and Materials,05/05/2023,4130367-32468,"2,708.50",JOHN R BUTTERFIELD LTD.
Neighbourhoods and Climate Change,Highways,Supplies and Services,304221,Equipment and Materials,05/05/2023,4130445-0000118456,"1,222.10",NAL LTD.
Regeneration Economy and Growth,Culture Sport and Tourism,Supplies and Services,304083,Equipment and Materials,05/05/2023,4130456-26580147,"4,819.98",NISBETS PLC.
Regeneration Economy and Growth,Corporate Property and Land,Supplies and Services,304221,Equipment and Materials,05/05/2023,4130538-985952,"1,788.70",T CROSSLING & CO LTD.
Regeneration Economy and Growth,Corporate Property and Land,Supplies and Services,304221,Equipment and Materials,05/05/2023,4130538-986100,"1,081.43",T CROSSLING & CO LTD.
Regeneration Economy and Growth,Corporate Property and Land,Supplies and Services,304221,Equipment and Materials,05/05/2023,4130557-39130,"6,000.00",TOTAL PUMP SOLUTIONS LTD.
Neighbourhoods and Climate Change,Highways,Supplies and Services,304221,Equipment and Materials,05/05/2023,4130564-245253,"2,907.10",TYNEDALE ROADSTONE LTD.
Neighbourhoods and Climate Change,Highways,Supplies and Services,304221,Equipment and Materials,05/05/2023,4130564-245429,"1,422.99",TYNEDALE ROADSTONE LTD.
Neighbourhoods and Climate Change,Highways,Supplies and Services,304221,Equipment and Materials,05/05/2023,4130564-245430,"1,662.25",TYNEDALE ROADSTONE LTD.
Neighbourhoods and Climate Change,Highways,Supplies and Services,304221,Equipment and Materials,05/05/2023,4130564-245431,"1,531.03",TYNEDALE ROADSTONE LTD.
Regeneration Economy and Growth,Corporate Property and Land,Supplies and Services,304221,Equipment and Materials,05/05/2023,4130567-04037180,"2,899.60",UK ELECTRIC LTD.*
Regeneration Economy and Growth,Corporate Property and Land,Supplies and Services,304358,Equipment and Materials,05/05/2023,4130580-51841,560.00,W MARLEY AGRICULTURAL CONTRACTORS LTD.
Children and Young Peoples Services,Head of Education and Skills,Supplies and Services,384199,Miscellaneous Expenses,05/05/2023,4130284-DW0001,"2,428.80",ENDORPHINS GROUP LTD.
Regeneration Economy and Growth,Business Durham CL0850,Supplies and Services,384199,Miscellaneous Expenses,05/05/2023,4130161-94578,742.50,ALLWAG PROMOTIONS LTD.
Regeneration Economy and Growth,Culture Sport and Tourism,Supplies and Services,384199,Miscellaneous Expenses,05/05/2023,4130162-8748,"3,910.00",ALROSE PRODUCTIONS LTD.
Regeneration Economy and Growth,Planning & Housing,Supplies and Services,384999,Miscellaneous Expenses,05/05/2023,4130187-RINV/00003370,500.00,BELIEVE HOUSING LTD.
Children and Young Peoples Services,Head of Early Help Inclusion & Vulnerable Children.,Supplies and Services,384700,Miscellaneous Expenses,05/05/2023,4130196-RES-05-2023-047,"3,539.00",BISHOP WILKINSON CATHOLIC EDUCATION TRUST.
Children and Young Peoples Services,Head of Early Help Inclusion & Vulnerable Children.,Supplies and Services,384700,Miscellaneous Expenses,05/05/2023,4130273-RES-05-2023-046,"6,489.00",DURHAM UTC LTD (UNIVERSITY TECHNICAL COLLEGE).
Neighbourhoods and Climate Change,Environmental Services,Supplies and Services,384956,Miscellaneous Expenses,05/05/2023,4130285-Y00011479T,"3,161.00",ENVIRONMENT AGENCY.
Neighbourhoods and Climate Change,Environmental Services,Supplies and Services,384956,Miscellaneous Expenses,05/05/2023,4130285-Y00011486T,"3,002.95",ENVIRONMENT AGENCY.
Children and Young Peoples Services,Head of Education and Skills,Supplies and Services,384199,Miscellaneous Expenses,05/05/2023,4130291-SI-3135,"7,814.40",EVOLUTION TRAINING & CONSULTANCY SERVICES LTD.
Neighbourhoods and Climate Change,Environmental Services,Supplies and Services,384700,Miscellaneous Expenses,05/05/2023,4130369-RES-05-2023-076,"28,990.54",JOHN STRUTT CONSERVATION FOUNDATION.
Regeneration Economy and Growth,Culture Sport and Tourism,Supplies and Services,384199,Miscellaneous Expenses,05/05/2023,4130399-KILLHOPE004,"4,000.00",LONELY TOWER FILM & MEDIA.
Dedicated Schools Grant BG0015,DSG High Needs Block,Supplies and Services,384302,Miscellaneous Expenses,05/05/2023,4130457-NDASI36,"2,550.00",NORTH DURHAM ACADEMY.
Children and Young Peoples Services,Head of Early Help Inclusion & Vulnerable Children.,Supplies and Services,384700,Miscellaneous Expenses,05/05/2023,4130467-RES-05-2023-048,"3,539.00",PARK VIEW ACADEMY.
Neighbourhoods and Climate Change,Environmental Services,Supplies and Services,384199,Miscellaneous Expenses,05/05/2023,4130491-0000064463,697.50,RA DALTON LTD.
Children and Young Peoples Services,Head of Early Help Inclusion & Vulnerable Children.,Supplies and Services,384700,Miscellaneous Expenses,05/05/2023,4130586-RES-05-2023-045,"5,899.00",WOLSINGHAM SCHOOL & COMMUNITY COLLEGE.
Children and Young Peoples Services,Head of Education and Skills,Third Party Payments,440999,Other third party payments E440,05/05/2023,4130327-DUR120423,"20,586.00",HANDCRAFTED PROJECTS.
Adult and Health Services,Central/Other,Third Party Payments,440150,Other third party payments E440,05/05/2023,4130455-BCF/MAY2023,"1,672,011.00",NHS NORTH EAST & NORTH CUMBRIA ICB.
Children and Young Peoples Services,Head of Education and Skills,Third Party Payments,440999,Other third party payments E440,05/05/2023,4130528-491,"1,707.75",STANLEY EVENTS LTD.
Regeneration Economy and Growth,Corporate Property and Land,Supplies and Services,332047,Printing Stationery and Gen Off Exps,05/05/2023,4130402-6901698872,505.85,LYRECO UK LTD.
Children and Young Peoples Services,Head of Early Help Inclusion & Vulnerable Children.,Supplies and Services,324500,Provisions E324,05/05/2023,4130241-25161,"19,986.89",CREATIVE MANAGEMENT SERVICES LTD.
Regeneration Economy and Growth,Transport and Contracted Services,Third Party Payments,430100,Rendered by Private Contractors,05/05/2023,4130289-INV-2906,"35,000.00",EVENT TRAFFIC CONTROL LTD.
Regeneration Economy and Growth,Corporate Property and Land,Third Party Payments,430100,Rendered by Private Contractors,05/05/2023,4130172-INV-0034,"34,678.00",APEX ROOFING SPECIALISTS LTD.
Neighbourhoods and Climate Change,Highways,Third Party Payments,430100,Rendered by Private Contractors,05/05/2023,4130202-52219,"23,687.47",BRIDGEWAY CONSULTING LTD.
Neighbourhoods and Climate Change,Highways,Third Party Payments,430128,Rendered by Private Contractors,05/05/2023,4130341-GRIT/SNOW01-22/23,"3,477.50",HT DAVIES & PARTNERS.
Neighbourhoods and Climate Change,Highways,Third Party Payments,430100,Rendered by Private Contractors,05/05/2023,4130354-27588,"9,258.19",JACK COUPE & SONS LTD T/A COUPE LINE.
Neighbourhoods and Climate Change,Environmental Services,Third Party Payments,430100,Rendered by Private Contractors,05/05/2023,4130378-SI02-0390994,"2,483.00",KILLGERM CHEMICALS LTD.
Regeneration Economy and Growth,Corporate Property and Land,Third Party Payments,430100,Rendered by Private Contractors,05/05/2023,4130511-24333,"156,557.10",SEYMOUR (CIVIL ENGINEERING CONTRACTORS) LTD.
Neighbourhoods and Climate Change,Highways,Third Party Payments,430128,Rendered by Private Contractors,05/05/2023,4130580-51875,695.00,W MARLEY AGRICULTURAL CONTRACTORS LTD.
Neighbourhoods and Climate Change,Highways,Third Party Payments,430100,Rendered by Private Contractors,05/05/2023,4130592-145520911,"55,927.24",ZG LIGHTING (UK) LTD.
Neighbourhoods and Climate Change,Environmental Services,Transport,210057,Repair and Maintenance of Vehicles,05/05/2023,4130160-82899,"1,038.82",ALLAN FULLER LTD.
Neighbourhoods and Climate Change,Environmental Services,Transport,210057,Repair and Maintenance of Vehicles,05/05/2023,4130259-96439162,"1,579.83",DENNIS EAGLE LTD T/A TERBERG MATEC (UK) LTD.
Neighbourhoods and Climate Change,Environmental Services,Transport,210057,Repair and Maintenance of Vehicles,05/05/2023,4130259-96439164,797.10,DENNIS EAGLE LTD T/A TERBERG MATEC (UK) LTD.
Neighbourhoods and Climate Change,Environmental Services,Transport,210057,Repair and Maintenance of Vehicles,05/05/2023,4130259-96439330,"1,509.66",DENNIS EAGLE LTD T/A TERBERG MATEC (UK) LTD.
Neighbourhoods and Climate Change,Environmental Services,Transport,210057,Repair and Maintenance of Vehicles,05/05/2023,4130259-96439622,"1,125.22",DENNIS EAGLE LTD T/A TERBERG MATEC (UK) LTD.
Neighbourhoods and Climate Change,Environmental Services,Transport,210057,Repair and Maintenance of Vehicles,05/05/2023,4130259-96439755,556.53,DENNIS EAGLE LTD T/A TERBERG MATEC (UK) LTD.
Neighbourhoods and Climate Change,Environmental Services,Transport,210057,Repair and Maintenance of Vehicles,05/05/2023,4130260-DE11581665,527.42,DENNIS EAGLE LTD.
Neighbourhoods and Climate Change,Environmental Services,Transport,210057,Repair and Maintenance of Vehicles,05/05/2023,4130303-438375,"1,597.35",FORD & SLATER LTD.
Neighbourhoods and Climate Change,Environmental Services,Transport,210057,Repair and Maintenance of Vehicles,05/05/2023,4130303-438588,778.20,FORD & SLATER LTD.
Neighbourhoods and Climate Change,Environmental Services,Transport,210057,Repair and Maintenance of Vehicles,05/05/2023,4130304-272435,715.09,FORD & SLATER LTD.
Neighbourhoods and Climate Change,Environmental Services,Transport,210057,Repair and Maintenance of Vehicles,05/05/2023,4130321-SI-00002820,"6,096.50",GRAYS MACHINERY LTD.
Neighbourhoods and Climate Change,Environmental Services,Transport,210057,Repair and Maintenance of Vehicles,05/05/2023,4130395-560963,901.65,LLOYD LTD.
Neighbourhoods and Climate Change,Environmental Services,Transport,210057,Repair and Maintenance of Vehicles,05/05/2023,4130510-2023.1000006879,772.66,SCARAB SWEEPERS LTD.
Neighbourhoods and Climate Change,Environmental Services,Transport,215005,Running Costs of Vehicles,05/05/2023,4130590-1150289,"16,867.48",YOUR NRG LTD.
Neighbourhoods and Climate Change,Environmental Services,Transport,215005,Running Costs of Vehicles,05/05/2023,4130590-1150300,"3,406.17",YOUR NRG LTD.
Children and Young Peoples Services,Head of Childrens Social Care,Premises,108099,Service Repairs and Maintenance,05/05/2023,4130151-51486601,"2,229.00",ADT FIRE & SECURITY PLC.
Regeneration Economy and Growth,Corporate Property and Land,Premises,108099,Service Repairs and Maintenance,05/05/2023,4130151-52358006,"1,724.00",ADT FIRE & SECURITY PLC.
Regeneration Economy and Growth,Corporate Property and Land,Premises,108099,Service Repairs and Maintenance,05/05/2023,4130151-52368502,"4,140.55",ADT FIRE & SECURITY PLC.
Regeneration Economy and Growth,Corporate Property and Land,Premises,108099,Service Repairs and Maintenance,05/05/2023,4130175-0000038364,750.00,AQUAJET DRAIN CLEANING LTD.
Regeneration Economy and Growth,Corporate Property and Land,Premises,108099,Service Repairs and Maintenance,05/05/2023,4130281-99319,697.00,EIAT UK LTD (ELECTRICAL INSTALLATION & APPLIANCE TESTING UK).
Regeneration Economy and Growth,Corporate Property and Land,Premises,108099,Service Repairs and Maintenance,05/05/2023,4130281-99324,"1,028.50",EIAT UK LTD (ELECTRICAL INSTALLATION & APPLIANCE TESTING UK).
Regeneration Economy and Growth,Corporate Property and Land,Premises,108099,Service Repairs and Maintenance,05/05/2023,4130575-2766,690.00,VENTILATION HYGIENE SPECIALISTS (VHS) LTD.
Neighbourhoods and Climate Change,Environmental Services,Supplies and Services,338066,Services,05/05/2023,4130163-RES-05-2023-051,"1,000.00",ALTOGETHER ARCHAEOLOGY.
Regeneration Economy and Growth,Culture Sport and Tourism,Supplies and Services,338047,Services,05/05/2023,4130365-2023-04-037,"6,321.33",REDACTED - PAYMENT TO INDIVIDUAL
Adult and Health Services,Head of Adults,Supplies and Services,338066,Services,05/05/2023,4130268-DN23-04-01,540.30,REDACTED - PAYMENT TO INDIVIDUAL
Children and Young Peoples Services,Head of Education and Skills,Supplies and Services,338027,Services,05/05/2023,4130442-HN00258,"2,062.50",REDACTED - PAYMENT TO INDIVIDUAL
Children and Young Peoples Services,Head of Education and Skills,Supplies and Services,338027,Services,05/05/2023,4130530-0005,"3,259.38",REDACTED - PAYMENT TO INDIVIDUAL
Children and Young Peoples Services,Head of Childrens Social Care,Supplies and Services,338044,Services,05/05/2023,4130152-ACS102139,"1,828.80",ADVANCED CHILD CARE ASSESSMENTS LTD.
Neighbourhoods and Climate Change,Highways,Supplies and Services,338027,Services,05/05/2023,4130202-52325,"7,170.00",BRIDGEWAY CONSULTING LTD.
Adult and Health Services,Head of Adults,Supplies and Services,338364,Services,05/05/2023,4130211-90252,"1,366.45",CARE ABILITY HEALTHCARE LTD.
Adult and Health Services,Head of Adults,Supplies and Services,338364,Services,05/05/2023,4130211-90253,"1,965.60",CARE ABILITY HEALTHCARE LTD.
Adult and Health Services,Head of Adults,Supplies and Services,338364,Services,05/05/2023,4130211-90254,"1,170.44",CARE ABILITY HEALTHCARE LTD.
Children and Young Peoples Services,Head of Childrens Social Care,Supplies and Services,338045,Services,05/05/2023,4130245-INVSF-11093C,582.20,CY4OR LEGAL LTD.
Adult and Health Services,Head of Adults,Supplies and Services,338089,Services,05/05/2023,4130265-786,"1,800.00",DO THE WRITE THING LTD.
Neighbourhoods and Climate Change,Community Protection,Supplies and Services,338099,Services,05/05/2023,4130271-HIRE0323,"1,260.00",DURHAM ST NICHOLAS PCC.
Neighbourhoods and Climate Change,Environmental Services,Supplies and Services,338066,Services,05/05/2023,4130352-RES-05-2023-102,"1,312.55",J & J CLARK & SONS.
Children and Young Peoples Services,Head of Childrens Social Care,Supplies and Services,338044,Services,05/05/2023,4130391-289080,"1,301.00",LEXTOX.
Adult and Health Services,Head of Adults,Supplies and Services,338365,Services,05/05/2023,4130398-INV-43994,"1,463.00",LOCKWISE LTD.
Regeneration Economy and Growth,Culture Sport and Tourism,Supplies and Services,338047,Services,05/05/2023,4130550-7507,"1,900.00",THE LITTLE ANGEL THEATRE.
Resources BK0010,Legal & Democratic Services,Supplies and Services,338042,Services,05/05/2023,4130563-304774/INVGR581,612.50,TRINITY CHAMBERS.
Neighbourhoods and Climate Change,Partnerships & Community Engagement Div.,Supplies and Services,338019,Services,05/05/2023,4130569-TOPUPAPR23,"4,000.00",UKRAINIAN SUPPORT CARD SCHEME.
Resources BK0010,Digital Services,Intangible Assets,917001,Software capitalised licence fees,05/05/2023,4130489-92900986,"12,849.00",QUADIENT FINANCE UK LTD FORMERLY NEOPOST LTD.
Resources BK0010,Digital Services,Intangible Assets,917001,Software capitalised licence fees,05/05/2023,4130489-92901514,"7,665.00",QUADIENT FINANCE UK LTD FORMERLY NEOPOST LTD.
Resources BK0010,Digital Services,Intangible Assets,917001,Software capitalised licence fees,05/05/2023,4130489-92905723,"67,480.20",QUADIENT FINANCE UK LTD FORMERLY NEOPOST LTD.
Resources BK0010,Digital Services,Stock A926,926900,Stock in hand-Inventory system,05/05/2023,4130238-3830409,530.70,CPC (ELECTRICAL WHOLESALERS).
Children and Young Peoples Services,Head of Early Help Inclusion & Vulnerable Children.,Supplies and Services,344033,Telephones,05/05/2023,4130571-209390,572.70,UNIFY BUSINESS SOLUTIONS LTD.
Dedicated Schools Grant BG0015,DSG High Needs Block,Central Support and Other Recharges,689996,Unclassified E690,05/05/2023,4130337-RES-05-2023-050,"179,496.00",HOPE WOOD ACADEMY.
Children and Young Peoples Services,Head of Early Help Inclusion & Vulnerable Children.,Employees,080025,Agency Staff,09/05/2023,4130900-0000506876,"1,442.00",TEACHERACTIVE LTD.
Resources BK0010,Digital Services,Supplies and Services,342033,Computers and Communications,09/05/2023,4130684-7402907487,600.00,DELL COMPUTER CORPORATION LTD.
Resources BK0010,Digital Services,Supplies and Services,342051,Computers and Communications,09/05/2023,4130861-INV-AR1000489,"3,651.90",RISKONNECT ACTIVE RISK LTD.
Resources BK0010,Digital Services,Supplies and Services,342051,Computers and Communications,09/05/2023,4130881-INVUK819985,"5,661.70",SOFTCAT PLC.
Resources BK0010,Digital Services,Supplies and Services,342033,Computers and Communications,09/05/2023,4130891-144516,"3,339.87",SWITCHSHOP LTD.
Regeneration Economy and Growth,Culture Sport and Tourism,Construction work A908,908105,Construction work,09/05/2023,4130607-11335,"30,000.00",ALLIANCE LEISURE SERVICES LTD.
Regeneration Economy and Growth,Transport and Contracted Services,Construction work A908,908105,Construction work,09/05/2023,4130753-27722,"3,246.40",JACK COUPE & SONS LTD T/A COUPE LINE.
Regeneration Economy and Growth,Corporate Property and Land,Construction work A908,908105,Construction work,09/05/2023,4130777-CINV090385,"1,035.14",LIMELIGHT SIGNS LTD.
Children and Young Peoples Services,Head of Education and Skills,Construction work A908,908105,Construction work,09/05/2023,4130780-178250,800.00,LUCION ENVIRONMENTAL LLP LTD.
Regeneration Economy and Growth,Corporate Property and Land,Fees,901002,Professional fees 901002,09/05/2023,4130869-TEC621053,"3,700.00",RPS CONSULTING SERVICES LTD.
Regeneration Economy and Growth,Corporate Property and Land,Fees,901002,Consultants fees 901002,09/05/2023,4130869-TEC623128,918.34,RPS CONSULTING SERVICES LTD.
Neighbourhoods and Climate Change,Highways,Fees,901002,Consultants fees 901002,09/05/2023,4130928-10852403,"20,014.00",UNIVERSITY OF TEESSIDE.
Children and Young Peoples Services,Head of Education and Skills,Transport,230008,Contract Hire,09/05/2023,4130723-TT-OC2304,886.00,REDACTED - PAYMENT TO INDIVIDUAL
Children and Young Peoples Services,Head of Education and Skills,Transport,230006,Contract Hire,09/05/2023,4130733-07-APR23,"3,202.00",REDACTED - PAYMENT TO INDIVIDUAL
Children and Young Peoples Services,Head of Education and Skills,Transport,230008,Contract Hire,09/05/2023,4130761-30/04/23A,"1,927.80",REDACTED - PAYMENT TO INDIVIDUAL
Children and Young Peoples Services,Head of Education and Skills,Transport,230008,Contract Hire,09/05/2023,4130761-30/04/23G,"1,347.60",REDACTED - PAYMENT TO INDIVIDUAL
Children and Young Peoples Services,Head of Education and Skills,Transport,230008,Contract Hire,09/05/2023,4130761-30/04/23G-W161,"1,400.00",REDACTED - PAYMENT TO INDIVIDUAL
Children and Young Peoples Services,Head of Education and Skills,Transport,230008,Contract Hire,09/05/2023,4130761-S033APR23,"1,711.20",REDACTED - PAYMENT TO INDIVIDUAL
Adult and Health Services,Head of Adults,Transport,230005,Contract Hire,09/05/2023,4130763-01042023,835.44,REDACTED - PAYMENT TO INDIVIDUAL
Children and Young Peoples Services,Head of Education and Skills,Transport,230008,Contract Hire,09/05/2023,4130765-0050,"1,490.70",REDACTED - PAYMENT TO INDIVIDUAL
Children and Young Peoples Services,Head of Education and Skills,Transport,230008,Contract Hire,09/05/2023,4130785-KC3859,"1,167.10",REDACTED - PAYMENT TO INDIVIDUAL
Children and Young Peoples Services,Head of Education and Skills,Transport,230008,Contract Hire,09/05/2023,4130785-KW3558,"1,224.30",REDACTED - PAYMENT TO INDIVIDUAL
Children and Young Peoples Services,Head of Education and Skills,Transport,230008,Contract Hire,09/05/2023,4130785-LC-3860,"1,715.00",REDACTED - PAYMENT TO INDIVIDUAL
Children and Young Peoples Services,Head of Education and Skills,Transport,230008,Contract Hire,09/05/2023,4130796-W174/30,"1,480.68",REDACTED - PAYMENT TO INDIVIDUAL
Children and Young Peoples Services,Head of Education and Skills,Transport,230007,Contract Hire,09/05/2023,4130799-ESH0323,"1,717.18",REDACTED - PAYMENT TO INDIVIDUAL
Children and Young Peoples Services,Head of Education and Skills,Transport,230035,Contract Hire,09/05/2023,4130800-TNB38,"1,166.75",REDACTED - PAYMENT TO INDIVIDUAL
Children and Young Peoples Services,Head of Education and Skills,Transport,230008,Contract Hire,09/05/2023,4130804-115,846.20,REDACTED - PAYMENT TO INDIVIDUAL
Adult and Health Services,Head of Adults,Transport,230005,Contract Hire,09/05/2023,4130835-SED121APR23,"1,116.00",REDACTED - PAYMENT TO INDIVIDUAL
Adult and Health Services,Head of Adults,Transport,230005,Contract Hire,09/05/2023,4130835-SLD011APR23,868.20,REDACTED - PAYMENT TO INDIVIDUAL
Children and Young Peoples Services,Head of Education and Skills,Transport,230008,Contract Hire,09/05/2023,4130909-0002454,"4,555.80",REDACTED - PAYMENT TO INDIVIDUAL
Adult and Health Services,Head of Adults,Transport,230005,Contract Hire,09/05/2023,4130594-42325,"1,150.49",24/7 TAXI SERVICES (PETERLEE) LTD.
Children and Young Peoples Services,Head of Education and Skills,Transport,230008,Contract Hire,09/05/2023,4130594-42326,"1,740.33",24/7 TAXI SERVICES (PETERLEE) LTD.
Children and Young Peoples Services,Head of Education and Skills,Transport,230008,Contract Hire,09/05/2023,4130595-APRIL01(2023),"2,300.00",A & P TAXIS.
Children and Young Peoples Services,Head of Education and Skills,Transport,230008,Contract Hire,09/05/2023,4130596-0423/SB,730.80,AABAT TAXIS.
Children and Young Peoples Services,Head of Education and Skills,Transport,230008,Contract Hire,09/05/2023,4130596-0423/SF,890.00,AABAT TAXIS.
Children and Young Peoples Services,Head of Education and Skills,Transport,230007,Contract Hire,09/05/2023,4130596-0423/SG,"1,130.60",AABAT TAXIS.
Adult and Health Services,Head of Adults,Transport,230005,Contract Hire,09/05/2023,4130596-0423/SH,"1,013.40",AABAT TAXIS.
Children and Young Peoples Services,Head of Education and Skills,Transport,230008,Contract Hire,09/05/2023,4130596-0423/SJ,758.00,AABAT TAXIS.
Children and Young Peoples Services,Head of Education and Skills,Transport,230008,Contract Hire,09/05/2023,4130622-968,"1,793.20",AT TAXIS LTD.
Children and Young Peoples Services,Head of Education and Skills,Transport,230008,Contract Hire,09/05/2023,4130622-969,"1,581.62",AT TAXIS LTD.
Adult and Health Services,Head of Adults,Transport,230005,Contract Hire,09/05/2023,4130635-0732,610.38,BIRDS TAXIS LTD.
Adult and Health Services,Head of Adults,Transport,230005,Contract Hire,09/05/2023,4130635-0733,"1,994.04",BIRDS TAXIS LTD.
Adult and Health Services,Head of Adults,Transport,230005,Contract Hire,09/05/2023,4130635-0734,773.28,BIRDS TAXIS LTD.
Adult and Health Services,Head of Adults,Transport,230005,Contract Hire,09/05/2023,4130635-0735,610.38,BIRDS TAXIS LTD.
Adult and Health Services,Head of Adults,Transport,230005,Contract Hire,09/05/2023,4130635-0740,"1,080.00",BIRDS TAXIS LTD.
Children and Young Peoples Services,Head of Education and Skills,Transport,230008,Contract Hire,09/05/2023,4130635-0741,925.50,BIRDS TAXIS LTD.
Adult and Health Services,Head of Adults,Transport,230005,Contract Hire,09/05/2023,4130635-0743,"1,215.52",BIRDS TAXIS LTD.
Children and Young Peoples Services,Head of Education and Skills,Transport,230007,Contract Hire,09/05/2023,4130637-INV02308,733.24,BLUELINE SOUTH INCORPORATING NAVIGATION TAXIS T/A BLUELINE TAXIS.
Adult and Health Services,Head of Adults,Transport,230005,Contract Hire,09/05/2023,4130637-INV02439,"1,148.00",BLUELINE SOUTH INCORPORATING NAVIGATION TAXIS T/A BLUELINE TAXIS.
Children and Young Peoples Services,Head of Education and Skills,Transport,230008,Contract Hire,09/05/2023,4130638-W141APR23,"2,000.00",BON VOYAGE TAXIS LTD.
Children and Young Peoples Services,Head of Education and Skills,Transport,230008,Contract Hire,09/05/2023,4130639-W060APR23,"2,401.00",BON VOYAGE TRANSPORT LTD.
Adult and Health Services,Commissioning inc Supporting People,Transport,230005,Contract Hire,09/05/2023,4130645-BZ00456,500.00,BREZ`S TAXIS.
Children and Young Peoples Services,Head of Education and Skills,Transport,230008,Contract Hire,09/05/2023,4130651-S006041,"1,163.36",C & R TAXIS.
Children and Young Peoples Services,Head of Education and Skills,Transport,230006,Contract Hire,09/05/2023,4130651-S01508,912.20,C & R TAXIS.
Children and Young Peoples Services,Head of Education and Skills,Transport,230008,Contract Hire,09/05/2023,4130651-W046041,"1,277.80",C & R TAXIS.
Children and Young Peoples Services,Head of Education and Skills,Transport,230008,Contract Hire,09/05/2023,4130657-CW40,859.90,CHIPPERS TAXIS.
Children and Young Peoples Services,Head of Education and Skills,Transport,230008,Contract Hire,09/05/2023,4130657-SW19-APR23,"1,184.79",CHIPPERS TAXIS.
Children and Young Peoples Services,Head of Education and Skills,Transport,230010,Contract Hire,09/05/2023,4130671-115706,"1,094.21",CROFT BUSINESS SERVICES LTD T/A CROFT TRAVEL.
Children and Young Peoples Services,Head of Education and Skills,Transport,230008,Contract Hire,09/05/2023,4130671-115707,842.58,CROFT BUSINESS SERVICES LTD T/A CROFT TRAVEL.
Children and Young Peoples Services,Head of Education and Skills,Transport,230008,Contract Hire,09/05/2023,4130678-1820,904.30,DA TAXIS.
Children and Young Peoples Services,Head of Education and Skills,Transport,230008,Contract Hire,09/05/2023,4130678-1821,985.40,DA TAXIS.
Children and Young Peoples Services,Head of Education and Skills,Transport,230008,Contract Hire,09/05/2023,4130678-1824,"1,600.00",DA TAXIS.
Children and Young Peoples Services,Head of Education and Skills,Transport,230008,Contract Hire,09/05/2023,4130679-586,763.50,DA TRAVEL.
Adult and Health Services,Head of Adults,Transport,230005,Contract Hire,09/05/2023,4130679-587,"1,215.00",DA TRAVEL.
Children and Young Peoples Services,Head of Education and Skills,Transport,230010,Contract Hire,09/05/2023,4130695-1540,"4,275.40",EAST DURHAM TAXIS.
Children and Young Peoples Services,Head of Education and Skills,Transport,230008,Contract Hire,09/05/2023,4130695-1564,"2,650.00",EAST DURHAM TAXIS.
Children and Young Peoples Services,Head of Education and Skills,Transport,230010,Contract Hire,09/05/2023,4130695-1571,"1,822.80",EAST DURHAM TAXIS.
Children and Young Peoples Services,Head of Education and Skills,Transport,230034,Contract Hire,09/05/2023,4130696-INV0221,"1,773.05",EC UK TRANSPORT LTD T/A EMPIRE CARS.
Children and Young Peoples Services,Head of Education and Skills,Transport,230006,Contract Hire,09/05/2023,4130715-F242-APR23,"1,041.92",FREEDOM PRIVATE HIRE.
Children and Young Peoples Services,Head of Education and Skills,Transport,230008,Contract Hire,09/05/2023,4130716-103392,"2,401.04",G & P JOHNSON LTD T/A NIGHTINGALE COACHES.
Children and Young Peoples Services,Head of Education and Skills,Transport,230008,Contract Hire,09/05/2023,4130716-103393,"1,865.39",G & P JOHNSON LTD T/A NIGHTINGALE COACHES.
Children and Young Peoples Services,Head of Education and Skills,Transport,230008,Contract Hire,09/05/2023,4130716-103394,"1,667.37",G & P JOHNSON LTD T/A NIGHTINGALE COACHES.
Children and Young Peoples Services,Head of Education and Skills,Transport,230008,Contract Hire,09/05/2023,4130716-103397,"1,284.25",G & P JOHNSON LTD T/A NIGHTINGALE COACHES.
Children and Young Peoples Services,Head of Education and Skills,Transport,230008,Contract Hire,09/05/2023,4130716-103398,"2,167.95",G & P JOHNSON LTD T/A NIGHTINGALE COACHES.
Children and Young Peoples Services,Head of Education and Skills,Transport,230008,Contract Hire,09/05/2023,4130716-103401,"1,581.96",G & P JOHNSON LTD T/A NIGHTINGALE COACHES.
Children and Young Peoples Services,Head of Education and Skills,Transport,230008,Contract Hire,09/05/2023,4130716-103402,"2,175.59",G & P JOHNSON LTD T/A NIGHTINGALE COACHES.
Children and Young Peoples Services,Head of Education and Skills,Transport,230008,Contract Hire,09/05/2023,4130716-103405,"2,216.97",G & P JOHNSON LTD T/A NIGHTINGALE COACHES.
Children and Young Peoples Services,Head of Education and Skills,Transport,230008,Contract Hire,09/05/2023,4130716-103406,"3,322.70",G & P JOHNSON LTD T/A NIGHTINGALE COACHES.
Children and Young Peoples Services,Head of Education and Skills,Transport,230008,Contract Hire,09/05/2023,4130716-103407,"1,522.23",G & P JOHNSON LTD T/A NIGHTINGALE COACHES.
Adult and Health Services,Head of Adults,Transport,230005,Contract Hire,09/05/2023,4130716-103410,"2,086.00",G & P JOHNSON LTD T/A NIGHTINGALE COACHES.
Adult and Health Services,Head of Adults,Transport,230005,Contract Hire,09/05/2023,4130716-103411,"2,286.00",G & P JOHNSON LTD T/A NIGHTINGALE COACHES.
Children and Young Peoples Services,Head of Education and Skills,Transport,230008,Contract Hire,09/05/2023,4130734-HT713,"2,270.00",HARRY`S TAXI`S.
Children and Young Peoples Services,Head of Education and Skills,Transport,230008,Contract Hire,09/05/2023,4130734-HT715,"2,300.00",HARRY`S TAXI`S.
Children and Young Peoples Services,Head of Education and Skills,Transport,230009,Contract Hire,09/05/2023,4130734-HT716,988.10,HARRY`S TAXI`S.
Children and Young Peoples Services,Head of Education and Skills,Transport,230008,Contract Hire,09/05/2023,4130756-25103,"2,041.52",JDS PRIVATE HIRE DURHAM.
Children and Young Peoples Services,Head of Education and Skills,Transport,230008,Contract Hire,09/05/2023,4130756-25104,"1,760.80",JDS PRIVATE HIRE DURHAM.
Children and Young Peoples Services,Head of Education and Skills,Transport,230008,Contract Hire,09/05/2023,4130756-25105,"1,666.20",JDS PRIVATE HIRE DURHAM.
Children and Young Peoples Services,Head of Education and Skills,Transport,230008,Contract Hire,09/05/2023,4130756-25106,"1,278.90",JDS PRIVATE HIRE DURHAM.
Children and Young Peoples Services,Head of Education and Skills,Transport,230008,Contract Hire,09/05/2023,4130756-25107,"1,002.60",JDS PRIVATE HIRE DURHAM.
Children and Young Peoples Services,Head of Education and Skills,Transport,230003,Contract Hire,09/05/2023,4130775-32486,"2,232.40",LEE`S COACHES LTD.
Children and Young Peoples Services,Head of Education and Skills,Transport,230007,Contract Hire,09/05/2023,4130775-32487,"2,957.10",LEE`S COACHES LTD.
Children and Young Peoples Services,Head of Education and Skills,Transport,230008,Contract Hire,09/05/2023,4130778-5043,"1,374.10",LINCAB TAXIS.
Children and Young Peoples Services,Head of Education and Skills,Transport,230008,Contract Hire,09/05/2023,4130778-5044,"1,889.80",LINCAB TAXIS.
Children and Young Peoples Services,Head of Education and Skills,Transport,230008,Contract Hire,09/05/2023,4130779-W180APR23,"1,800.00",LORRAINES TAXIS.
Children and Young Peoples Services,Head of Education and Skills,Transport,230008,Contract Hire,09/05/2023,4130794-20230004,"2,786.00",MOSSOPS LUXURY TRAVEL.
Children and Young Peoples Services,Head of Education and Skills,Transport,230008,Contract Hire,09/05/2023,4130847-TH16,"3,082.10",PRESTYS HACKNEY & PRIVATE HIRE TAXIS.
Adult and Health Services,Head of Adults,Transport,230005,Contract Hire,09/05/2023,4130867-1937,767.88,RON`S TAXIS (FISHBURN).
Children and Young Peoples Services,Head of Education and Skills,Transport,230008,Contract Hire,09/05/2023,4130878-230406,"3,808.64",SHOTTON PRIVATE HIRE.
Children and Young Peoples Services,Head of Education and Skills,Transport,230007,Contract Hire,09/05/2023,4130878-230408,"3,226.53",SHOTTON PRIVATE HIRE.
Children and Young Peoples Services,Head of Education and Skills,Transport,230008,Contract Hire,09/05/2023,4130884-08445,"2,625.00",STANLEY TRAVEL (NORTH EAST) LTD.
Children and Young Peoples Services,Head of Education and Skills,Transport,230008,Contract Hire,09/05/2023,4130898-DCC/2022/59,"2,305.70",TAYLOR`S TAXIS.
Children and Young Peoples Services,Head of Education and Skills,Transport,230008,Contract Hire,09/05/2023,4130919-19,"1,160.37",TRIDENT TAXIS.
Children and Young Peoples Services,Head of Education and Skills,Transport,230008,Contract Hire,09/05/2023,4130935-0003653,"1,388.20",WATSONS OF SPENNYMOOR.
Children and Young Peoples Services,Head of Education and Skills,Transport,230008,Contract Hire,09/05/2023,4130935-0003654,"1,490.00",WATSONS OF SPENNYMOOR.
Children and Young Peoples Services,Head of Education and Skills,Transport,230008,Contract Hire,09/05/2023,4130936-18810,"2,551.50",WEARDALE MOTOR SERVICES LTD.
Adult and Health Services,Public Health CC0450,Third Party Payments,460803,Contract Payments,09/05/2023,4130942-INV-000210,"2,300.00",REDACTED - PAYMENT TO INDIVIDUAL
Neighbourhoods and Climate Change,Environmental Services,Third Party Payments,460305,Contract Payments,09/05/2023,4130660-7282,"4,908.00",CO-WHEELS CAR CLUB CIC.
Adult and Health Services,Public Health CC0450,Third Party Payments,460803,Contract Payments,09/05/2023,4130918-BHAWAICS2022/23-2,"11,667.00",TRADES UNION CONGRESS T/A BETTER HEALTH AT WORK AWARD.
Neighbourhoods and Climate Change,Partnerships & Community Engagement Div.,Cap Exp on Grants & Other Financial Assistance (REFCUS),918004,Contributions to other bodies 918004,09/05/2023,4130877-VOUCHER22NB-DCTY038,"1,950.00",SHINCLIFFE PARISH COUNCIL.
Neighbourhoods and Climate Change,Partnerships & Community Engagement Div.,Cap Exp on Grants & Other Financial Assistance (REFCUS),918004,Contributions to other bodies 918004,09/05/2023,4130612-VOUCHER22NB-STAN024,"2,550.00",ANNFIELD PLAIN CRICKET CLUB.
Neighbourhoods and Climate Change,Partnerships & Community Engagement Div.,Cap Exp on Grants & Other Financial Assistance (REFCUS),918004,Contributions to other bodies 918004,09/05/2023,4130641-VOUCHER23NB-CHES001,"2,000.00",BOURNMOOR CRICKET CLUB (SENIORS).
Neighbourhoods and Climate Change,Partnerships & Community Engagement Div.,Cap Exp on Grants & Other Financial Assistance (REFCUS),918004,Contributions to other bodies 918004,09/05/2023,4130642-VOUCHER22NB-EDRC024,"9,000.00",BOWBURN COMMUNITY ASSOCIATION.
Neighbourhoods and Climate Change,Partnerships & Community Engagement Div.,Cap Exp on Grants & Other Financial Assistance (REFCUS),918004,Contributions to other bodies 918004,09/05/2023,4130833-VOUCHER22NB-CHES031,"1,047.00",PELTON FELL COMMUNITY PARTNERSHIP.
Neighbourhoods and Climate Change,Partnerships & Community Engagement Div.,Cap Exp on Grants & Other Financial Assistance (REFCUS),918004,Contributions to other bodies 918004,09/05/2023,4130854-VOUCHER22AB-DVLY005,"9,986.00",REAL CARE LTD.
Resources BK0010,Procurement Sales & Business Services,Supplies and Services,304516,Equipment and Materials,09/05/2023,4130625-118301,"1,590.00",BACK CARE SOLUTIONS LTD.
Resources BK0010,Procurement Sales & Business Services,Supplies and Services,304516,Equipment and Materials,09/05/2023,4130625-118302,"1,440.00",BACK CARE SOLUTIONS LTD.
Neighbourhoods and Climate Change,Environmental Services,Supplies and Services,304221,Equipment and Materials,09/05/2023,4130626-99483437,721.00,BALL COLEGRAVE LTD.
Neighbourhoods and Climate Change,Environmental Services,Supplies and Services,304221,Equipment and Materials,09/05/2023,4130626-99483440,"7,420.84",BALL COLEGRAVE LTD.
Neighbourhoods and Climate Change,Environmental Services,Supplies and Services,304221,Equipment and Materials,09/05/2023,4130626-99483446,"1,298.55",BALL COLEGRAVE LTD.
Neighbourhoods and Climate Change,Highways,Supplies and Services,304221,Equipment and Materials,09/05/2023,4130632-207R02615,573.54,BIFFA WASTE SERVICES LTD.
Neighbourhoods and Climate Change,Environmental Services,Supplies and Services,304221,Equipment and Materials,09/05/2023,4130643-337,900.00,BRAMBLEDOWN LANDSCAPE SERVICES LTD.
Neighbourhoods and Climate Change,Highways,Supplies and Services,304221,Equipment and Materials,09/05/2023,4130644-21198600,741.06,BREEDON TRADING LTD.
Neighbourhoods and Climate Change,Highways,Supplies and Services,304221,Equipment and Materials,09/05/2023,4130644-21200264,617.52,BREEDON TRADING LTD.
Neighbourhoods and Climate Change,Highways,Supplies and Services,304221,Equipment and Materials,09/05/2023,4130644-21200267,627.22,BREEDON TRADING LTD.
Neighbourhoods and Climate Change,Highways,Supplies and Services,304221,Equipment and Materials,09/05/2023,4130644-21200268,625.49,BREEDON TRADING LTD.
Regeneration Economy and Growth,Corporate Property and Land,Supplies and Services,304221,Equipment and Materials,09/05/2023,4130663-1393,852.42,COMPLETE DETECTION SYSTEMS LTD (CDS).
Regeneration Economy and Growth,Corporate Property and Land,Supplies and Services,304221,Equipment and Materials,09/05/2023,4130700-059-317510,"1,970.00",EDMUNDSON ELECTRICAL LTD.
Regeneration Economy and Growth,Corporate Property and Land,Supplies and Services,304221,Equipment and Materials,09/05/2023,4130700-059-317526,606.45,EDMUNDSON ELECTRICAL LTD.
Regeneration Economy and Growth,Corporate Property and Land,Supplies and Services,304221,Equipment and Materials,09/05/2023,4130700-059-317554,"2,672.30",EDMUNDSON ELECTRICAL LTD.
Regeneration Economy and Growth,Corporate Property and Land,Supplies and Services,304221,Equipment and Materials,09/05/2023,4130700-059-317577,"1,268.50",EDMUNDSON ELECTRICAL LTD.
Regeneration Economy and Growth,Corporate Property and Land,Supplies and Services,304221,Equipment and Materials,09/05/2023,4130700-059-317601,535.50,EDMUNDSON ELECTRICAL LTD.
Dedicated Schools Grant BG0015,DSG High Needs Block,Supplies and Services,304259,Equipment and Materials,09/05/2023,4130717-206631,524.00,G & S SMIRTHWAITE LTD.
Neighbourhoods and Climate Change,Highways,Supplies and Services,304358,Equipment and Materials,09/05/2023,4130751-0003/2023,"1,487.50",J & JG GILL & SONS LTD.
Neighbourhoods and Climate Change,Highways,Supplies and Services,304358,Equipment and Materials,09/05/2023,4130751-0004/2023,684.00,J & JG GILL & SONS LTD.
Neighbourhoods and Climate Change,Highways,Supplies and Services,304358,Equipment and Materials,09/05/2023,4130751-2038/2022,"1,580.00",J & JG GILL & SONS LTD.
Neighbourhoods and Climate Change,Highways,Supplies and Services,304358,Equipment and Materials,09/05/2023,4130751-2263/2022,"6,917.50",J & JG GILL & SONS LTD.
Neighbourhoods and Climate Change,Highways,Supplies and Services,304221,Equipment and Materials,09/05/2023,4130769-0113/00044518,962.08,JT DOVE LTD.
Regeneration Economy and Growth,Corporate Property and Land,Supplies and Services,304221,Equipment and Materials,09/05/2023,4130769-0213/00868958,"1,114.30",JT DOVE LTD.
Regeneration Economy and Growth,Corporate Property and Land,Supplies and Services,304221,Equipment and Materials,09/05/2023,4130769-0213/00869677,"1,518.93",JT DOVE LTD.
Neighbourhoods and Climate Change,Highways,Supplies and Services,304221,Equipment and Materials,09/05/2023,4130769-0303/00874391,540.92,JT DOVE LTD.
Neighbourhoods and Climate Change,Highways,Supplies and Services,304221,Equipment and Materials,09/05/2023,4130777-CINV090386,662.14,LIMELIGHT SIGNS LTD.
Neighbourhoods and Climate Change,Highways,Supplies and Services,304358,Equipment and Materials,09/05/2023,4130782-MS4240,745.88,M SPENCE SURFACING LTD.
Neighbourhoods and Climate Change,Highways,Supplies and Services,304358,Equipment and Materials,09/05/2023,4130782-MS4241,862.65,M SPENCE SURFACING LTD.
Neighbourhoods and Climate Change,Highways,Supplies and Services,304358,Equipment and Materials,09/05/2023,4130782-MS4247,784.80,M SPENCE SURFACING LTD.
Regeneration Economy and Growth,Culture Sport and Tourism,Supplies and Services,304337,Equipment and Materials,09/05/2023,4130784-4236112795,"1,382.01",MARES SPA.
Regeneration Economy and Growth,Culture Sport and Tourism,Supplies and Services,304252,Equipment and Materials,09/05/2023,4130795-0129,700.00,MOUNTAIN ACTIVITY CO.
Neighbourhoods and Climate Change,Highways,Supplies and Services,304221,Equipment and Materials,09/05/2023,4130816-987631,596.00,NORTHERN TOOLS & ACCESSORIES.
Neighbourhoods and Climate Change,Highways,Supplies and Services,304358,Equipment and Materials,09/05/2023,4130871-3647,552.00,S & R LANDSCAPES.
Neighbourhoods and Climate Change,Highways,Supplies and Services,304358,Equipment and Materials,09/05/2023,4130871-3648,644.00,S & R LANDSCAPES.
Neighbourhoods and Climate Change,Highways,Supplies and Services,304358,Equipment and Materials,09/05/2023,4130871-3649,896.00,S & R LANDSCAPES.
Neighbourhoods and Climate Change,Highways,Supplies and Services,304358,Equipment and Materials,09/05/2023,4130871-3650,825.00,S & R LANDSCAPES.
Neighbourhoods and Climate Change,Environmental Services,Supplies and Services,304259,Equipment and Materials,09/05/2023,4130880-INV456034,762.59,SNOWBALLS LTD.
Regeneration Economy and Growth,Corporate Property and Land,Supplies and Services,304221,Equipment and Materials,09/05/2023,4130893-986900,517.03,T CROSSLING & CO LTD.
Regeneration Economy and Growth,Corporate Property and Land,Supplies and Services,304221,Equipment and Materials,09/05/2023,4130893-987585,629.14,T CROSSLING & CO LTD.
Regeneration Economy and Growth,Corporate Property and Land,Supplies and Services,304221,Equipment and Materials,09/05/2023,4130893-987680,533.83,T CROSSLING & CO LTD.
Neighbourhoods and Climate Change,Highways,Supplies and Services,304221,Equipment and Materials,09/05/2023,4130897-9046774284,675.47,TARMAC TRADING LTD.
Neighbourhoods and Climate Change,Highways,Supplies and Services,304221,Equipment and Materials,09/05/2023,4130913-141927,598.00,TP ELECTRICAL SUPPLIES & FIXINGS LTD.
Neighbourhoods and Climate Change,Highways,Supplies and Services,304221,Equipment and Materials,09/05/2023,4130923-245432,"1,272.79",TYNEDALE ROADSTONE LTD.
Neighbourhoods and Climate Change,Highways,Supplies and Services,304221,Equipment and Materials,09/05/2023,4130923-245433,"1,528.95",TYNEDALE ROADSTONE LTD.
Neighbourhoods and Climate Change,Highways,Supplies and Services,304221,Equipment and Materials,09/05/2023,4130923-245434,"1,887.94",TYNEDALE ROADSTONE LTD.
Neighbourhoods and Climate Change,Highways,Supplies and Services,304221,Equipment and Materials,09/05/2023,4130923-245435,"1,412.64",TYNEDALE ROADSTONE LTD.
Neighbourhoods and Climate Change,Highways,Supplies and Services,304221,Equipment and Materials,09/05/2023,4130923-245436,"1,347.60",TYNEDALE ROADSTONE LTD.
Neighbourhoods and Climate Change,Highways,Supplies and Services,304221,Equipment and Materials,09/05/2023,4130923-245437,820.30,TYNEDALE ROADSTONE LTD.
Neighbourhoods and Climate Change,Highways,Supplies and Services,304221,Equipment and Materials,09/05/2023,4130923-245438,660.87,TYNEDALE ROADSTONE LTD.
Neighbourhoods and Climate Change,Highways,Supplies and Services,304221,Equipment and Materials,09/05/2023,4130923-245439,538.50,TYNEDALE ROADSTONE LTD.
Neighbourhoods and Climate Change,Environmental Services,Supplies and Services,384199,Miscellaneous Expenses,09/05/2023,4130743-15969,"3,781.59",HOWGILLS ACCOMMODATION.
Neighbourhoods and Climate Change,Partnerships & Community Engagement Div.,Supplies and Services,384086,Miscellaneous Expenses,09/05/2023,4130634-VOUCHER22NB-3TWN023,"3,000.00",BILLY ROW COMMUNITY ASSOCIATION.
Children and Young Peoples Services,Head of Early Help Inclusion & Vulnerable Children.,Supplies and Services,384491,Miscellaneous Expenses,09/05/2023,4130703-CRE-23-031,900.00,EMERALDS LITTLE GEMS DAYCARE LTD.
Neighbourhoods and Climate Change,Environmental Services,Supplies and Services,384956,Miscellaneous Expenses,09/05/2023,4130705-Y00011480T,"3,161.00",ENVIRONMENT AGENCY.
Neighbourhoods and Climate Change,Environmental Services,Supplies and Services,384956,Miscellaneous Expenses,09/05/2023,4130705-Y00011481T,"1,285.35",ENVIRONMENT AGENCY.
Neighbourhoods and Climate Change,Environmental Services,Supplies and Services,384956,Miscellaneous Expenses,09/05/2023,4130705-Y00011491T,"3,002.95",ENVIRONMENT AGENCY.
Neighbourhoods and Climate Change,Environmental Services,Supplies and Services,384956,Miscellaneous Expenses,09/05/2023,4130705-Y00011498T,"3,161.00",ENVIRONMENT AGENCY.
Regeneration Economy and Growth,Culture Sport and Tourism,Supplies and Services,384302,Miscellaneous Expenses,09/05/2023,4130745-IOSINV032040,913.75,INSTITUTE OF SWIMMING.
Adult and Health Services,Public Health CC0450,Supplies and Services,384899,Miscellaneous Expenses,09/05/2023,4130747-834,"13,944.75",INVESTING IN CHILDREN CIC.
Children and Young Peoples Services,Head of Early Help Inclusion & Vulnerable Children.,Supplies and Services,384199,Miscellaneous Expenses,09/05/2023,4130809-668505,"3,637.61",NHS PROPERTY SERVICES LTD.
Children and Young Peoples Services,Head of Early Help Inclusion & Vulnerable Children.,Supplies and Services,384871,Miscellaneous Expenses,09/05/2023,4130922-2508,669.00,TWEDDLE CHILDREN`S ANIMAL FARM LTD.
Neighbourhoods and Climate Change,Partnerships & Community Engagement Div.,Supplies and Services,384086,Miscellaneous Expenses,09/05/2023,4130929-VOUCHER22NB-MDUR021,"4,000.00",USHAW COLLEGE.
Regeneration Economy and Growth,Culture Sport and Tourism,Supplies and Services,384199,Miscellaneous Expenses,09/05/2023,4130932-LOSI51126,"2,100.00",VISIT BRITAIN (VISIT ENGLAND).
Regeneration Economy and Growth,Culture Sport and Tourism,Supplies and Services,312013,Newspapers books and periodicals E312,09/05/2023,4130620-6871889,716.79,ASKEWS & HOLTS LIBRARY SERVICES LTD.
Regeneration Economy and Growth,Culture Sport and Tourism,Supplies and Services,312013,Newspapers books and periodicals E312,09/05/2023,4130824-12969SU22320065,"1,274.81",OVERDRIVE GLOBAL LTD.
Regeneration Economy and Growth,Culture Sport and Tourism,Supplies and Services,312013,Newspapers books and periodicals E312,09/05/2023,4130824-12969SU22428146,"1,274.81",OVERDRIVE GLOBAL LTD.
Regeneration Economy and Growth,Culture Sport and Tourism,Supplies and Services,312013,Newspapers books and periodicals E312,09/05/2023,4130824-12969SU23063196,"1,292.53",OVERDRIVE GLOBAL LTD.
Children and Young Peoples Services,Head of Childrens Social Care,Third Party Payments,440038,Other third party payments E440,09/05/2023,4130783-186,"4,376.93",MAJOR RECRUITMENT LTD.
Children and Young Peoples Services,Head of Childrens Social Care,Third Party Payments,440038,Other third party payments E440,09/05/2023,4130783-188,"3,078.47",MAJOR RECRUITMENT LTD.
Children and Young Peoples Services,Head of Childrens Social Care,Third Party Payments,440038,Other third party payments E440,09/05/2023,4130783-189,"3,536.23",MAJOR RECRUITMENT LTD.
Children and Young Peoples Services,Head of Childrens Social Care,Third Party Payments,440038,Other third party payments E440,09/05/2023,4130783-190,"1,681.63",MAJOR RECRUITMENT LTD.
Children and Young Peoples Services,Head of Childrens Social Care,Third Party Payments,440038,Other third party payments E440,09/05/2023,4130783-191,"9,554.38",MAJOR RECRUITMENT LTD.
Children and Young Peoples Services,Head of Childrens Social Care,Third Party Payments,440038,Other third party payments E440,09/05/2023,4130783-192,"5,768.54",MAJOR RECRUITMENT LTD.
Children and Young Peoples Services,Head of Childrens Social Care,Third Party Payments,440038,Other third party payments E440,09/05/2023,4130783-193,"2,020.78",MAJOR RECRUITMENT LTD.
Children and Young Peoples Services,Head of Childrens Social Care,Third Party Payments,440038,Other third party payments E440,09/05/2023,4130783-194,"2,841.53",MAJOR RECRUITMENT LTD.
Children and Young Peoples Services,Head of Childrens Social Care,Third Party Payments,440038,Other third party payments E440,09/05/2023,4130783-196,"5,343.68",MAJOR RECRUITMENT LTD.
Children and Young Peoples Services,Head of Childrens Social Care,Third Party Payments,440038,Other third party payments E440,09/05/2023,4130783-197,"2,739.69",MAJOR RECRUITMENT LTD.
Children and Young Peoples Services,Head of Childrens Social Care,Third Party Payments,440038,Other third party payments E440,09/05/2023,4130783-198,"7,352.86",MAJOR RECRUITMENT LTD.
Children and Young Peoples Services,Head of Childrens Social Care,Third Party Payments,440038,Other third party payments E440,09/05/2023,4130783-200,"5,202.87",MAJOR RECRUITMENT LTD.
Children and Young Peoples Services,Head of Education and Skills,Third Party Payments,440999,Other third party payments E440,09/05/2023,4130882-22-23-COM02,"7,722.00",SPORTSCAPE TRAINING LTD.
Children and Young Peoples Services,Head of Education and Skills,Third Party Payments,440999,Other third party payments E440,09/05/2023,4130882-22-23-INV07,"9,501.13",SPORTSCAPE TRAINING LTD.
Resources BK0010,Legal & Democratic Services,Supplies and Services,340001,Postages E340,09/05/2023,4130868-9067240640,"17,922.49",ROYAL MAIL GROUP PLC.
Regeneration Economy and Growth,Culture Sport and Tourism,Supplies and Services,324117,Provisions E324,09/05/2023,4130802-31BA,535.50,REDACTED - PAYMENT TO INDIVIDUAL
Regeneration Economy and Growth,Culture Sport and Tourism,Supplies and Services,324117,Provisions E324,09/05/2023,4130793-907092766,"1,091.94",MOLSON COORS BREWING COMPANY (UK) LTD.
Regeneration Economy and Growth,Corporate Property and Land,Third Party Payments,430100,Rendered by Private Contractors,09/05/2023,4130801-DCC278,"1,500.00",REDACTED - PAYMENT TO INDIVIDUAL
Regeneration Economy and Growth,Corporate Property and Land,Third Party Payments,430100,Rendered by Private Contractors,09/05/2023,4130801-DCC279,"1,200.00",REDACTED - PAYMENT TO INDIVIDUAL
Regeneration Economy and Growth,Corporate Property and Land,Third Party Payments,430100,Rendered by Private Contractors,09/05/2023,4130801-DCC280,"1,500.00",REDACTED - PAYMENT TO INDIVIDUAL
Regeneration Economy and Growth,Corporate Property and Land,Third Party Payments,430100,Rendered by Private Contractors,09/05/2023,4130801-DCC281,900.00,REDACTED - PAYMENT TO INDIVIDUAL
Regeneration Economy and Growth,Corporate Property and Land,Third Party Payments,430100,Rendered by Private Contractors,09/05/2023,4130801-DCC282,"1,200.00",REDACTED - PAYMENT TO INDIVIDUAL
Regeneration Economy and Growth,Corporate Property and Land,Third Party Payments,430100,Rendered by Private Contractors,09/05/2023,4130708-11940-8775,"4,888.20",EXPERVENT LTD T/A EXPERVENT AIR MOVEMENT SOLUTIONS.
Neighbourhoods and Climate Change,Environmental Services,Third Party Payments,430120,Rendered by Private Contractors,09/05/2023,4130712-CTIN06714907,"9,840.40",FINNING (UK) LTD.
Neighbourhoods and Climate Change,Environmental Services,Third Party Payments,430120,Rendered by Private Contractors,09/05/2023,4130712-CTIN06714908,"1,194.61",FINNING (UK) LTD.
Neighbourhoods and Climate Change,Environmental Services,Third Party Payments,430120,Rendered by Private Contractors,09/05/2023,4130712-CTIN06714927,"11,654.70",FINNING (UK) LTD.
Regeneration Economy and Growth,Corporate Property and Land,Third Party Payments,430100,Rendered by Private Contractors,09/05/2023,4130791-30559/92756932,"2,947.00",MITIE PROPERTY SERVICES (UK) LTD.
Neighbourhoods and Climate Change,Highways,Third Party Payments,430100,Rendered by Private Contractors,09/05/2023,4130811-NPSL1878,"3,370.26",NORDIC PRODUCTS & SERVICES LTD.
Regeneration Economy and Growth,Corporate Property and Land,Third Party Payments,430100,Rendered by Private Contractors,09/05/2023,4130822-11956-53,"1,179.00",OPUS BUILDING SERVICES LTD.
Regeneration Economy and Growth,Corporate Property and Land,Third Party Payments,430100,Rendered by Private Contractors,09/05/2023,4130822-11956-54,"1,219.05",OPUS BUILDING SERVICES LTD.
Regeneration Economy and Growth,Corporate Property and Land,Third Party Payments,430100,Rendered by Private Contractors,09/05/2023,4130822-11956-55,"1,161.00",OPUS BUILDING SERVICES LTD.
Regeneration Economy and Growth,Corporate Property and Land,Third Party Payments,430100,Rendered by Private Contractors,09/05/2023,4130822-11956-56,"1,177.20",OPUS BUILDING SERVICES LTD.
Regeneration Economy and Growth,Corporate Property and Land,Third Party Payments,430100,Rendered by Private Contractors,09/05/2023,4130822-11956-57,"1,208.70",OPUS BUILDING SERVICES LTD.
Regeneration Economy and Growth,Corporate Property and Land,Third Party Payments,430100,Rendered by Private Contractors,09/05/2023,4130822-11956-58,"1,188.00",OPUS BUILDING SERVICES LTD.
Regeneration Economy and Growth,Corporate Property and Land,Third Party Payments,430100,Rendered by Private Contractors,09/05/2023,4130822-11956-59,"1,197.00",OPUS BUILDING SERVICES LTD.
Regeneration Economy and Growth,Corporate Property and Land,Third Party Payments,430100,Rendered by Private Contractors,09/05/2023,4130822-11956-60,"1,203.30",OPUS BUILDING SERVICES LTD.
Regeneration Economy and Growth,Corporate Property and Land,Third Party Payments,430100,Rendered by Private Contractors,09/05/2023,4130822-11956-61,"1,068.75",OPUS BUILDING SERVICES LTD.
Regeneration Economy and Growth,Corporate Property and Land,Third Party Payments,430100,Rendered by Private Contractors,09/05/2023,4130822-11956-62,"1,068.75",OPUS BUILDING SERVICES LTD.
Regeneration Economy and Growth,Corporate Property and Land,Third Party Payments,430100,Rendered by Private Contractors,09/05/2023,4130822-11956-63,826.50,OPUS BUILDING SERVICES LTD.
Regeneration Economy and Growth,Corporate Property and Land,Third Party Payments,430100,Rendered by Private Contractors,09/05/2023,4130822-11956-64,"1,068.75",OPUS BUILDING SERVICES LTD.
Regeneration Economy and Growth,Corporate Property and Land,Third Party Payments,430100,Rendered by Private Contractors,09/05/2023,4130822-11956-65,"1,127.53",OPUS BUILDING SERVICES LTD.
Regeneration Economy and Growth,Corporate Property and Land,Third Party Payments,430100,Rendered by Private Contractors,09/05/2023,4130822-11956-67,"1,121.62",OPUS BUILDING SERVICES LTD.
Regeneration Economy and Growth,Corporate Property and Land,Third Party Payments,430100,Rendered by Private Contractors,09/05/2023,4130822-11956-68,"1,123.68",OPUS BUILDING SERVICES LTD.
Regeneration Economy and Growth,Corporate Property and Land,Third Party Payments,430100,Rendered by Private Contractors,09/05/2023,4130822-11956-69,"1,068.75",OPUS BUILDING SERVICES LTD.
Regeneration Economy and Growth,Corporate Property and Land,Third Party Payments,430100,Rendered by Private Contractors,09/05/2023,4130822-11956-70,"1,090.12",OPUS BUILDING SERVICES LTD.
Regeneration Economy and Growth,Corporate Property and Land,Third Party Payments,430100,Rendered by Private Contractors,09/05/2023,4130822-11956-71,"1,161.45",OPUS BUILDING SERVICES LTD.
Regeneration Economy and Growth,Corporate Property and Land,Third Party Payments,430100,Rendered by Private Contractors,09/05/2023,4130822-11956-72,881.84,OPUS BUILDING SERVICES LTD.
Regeneration Economy and Growth,Corporate Property and Land,Third Party Payments,430100,Rendered by Private Contractors,09/05/2023,4130822-11956-73,"1,121.62",OPUS BUILDING SERVICES LTD.
Regeneration Economy and Growth,Corporate Property and Land,Third Party Payments,430100,Rendered by Private Contractors,09/05/2023,4130822-11956-74,"1,182.82",OPUS BUILDING SERVICES LTD.
Regeneration Economy and Growth,Corporate Property and Land,Third Party Payments,430100,Rendered by Private Contractors,09/05/2023,4130822-11956-75,"1,182.82",OPUS BUILDING SERVICES LTD.
Regeneration Economy and Growth,Corporate Property and Land,Third Party Payments,430100,Rendered by Private Contractors,09/05/2023,4130822-11956-76,"1,121.62",OPUS BUILDING SERVICES LTD.
Regeneration Economy and Growth,Corporate Property and Land,Third Party Payments,430100,Rendered by Private Contractors,09/05/2023,4130822-11956-77,"1,127.53",OPUS BUILDING SERVICES LTD.
Regeneration Economy and Growth,Corporate Property and Land,Third Party Payments,430100,Rendered by Private Contractors,09/05/2023,4130822-11956-78,941.92,OPUS BUILDING SERVICES LTD.
Regeneration Economy and Growth,Corporate Property and Land,Third Party Payments,430100,Rendered by Private Contractors,09/05/2023,4130822-11956-79,"1,090.13",OPUS BUILDING SERVICES LTD.
Regeneration Economy and Growth,Corporate Property and Land,Third Party Payments,430100,Rendered by Private Contractors,09/05/2023,4130822-11956-80,997.50,OPUS BUILDING SERVICES LTD.
Regeneration Economy and Growth,Corporate Property and Land,Third Party Payments,430100,Rendered by Private Contractors,09/05/2023,4130822-11956-81,"1,127.53",OPUS BUILDING SERVICES LTD.
Regeneration Economy and Growth,Corporate Property and Land,Third Party Payments,430100,Rendered by Private Contractors,09/05/2023,4130822-11956-82,"1,127.53",OPUS BUILDING SERVICES LTD.
Regeneration Economy and Growth,Corporate Property and Land,Third Party Payments,430100,Rendered by Private Contractors,09/05/2023,4130822-11956-83,"1,090.13",OPUS BUILDING SERVICES LTD.
Regeneration Economy and Growth,Corporate Property and Land,Third Party Payments,430100,Rendered by Private Contractors,09/05/2023,4130822-11956-84,"1,182.82",OPUS BUILDING SERVICES LTD.
Regeneration Economy and Growth,Corporate Property and Land,Third Party Payments,430100,Rendered by Private Contractors,09/05/2023,4130822-11956-85,"1,121.62",OPUS BUILDING SERVICES LTD.
Regeneration Economy and Growth,Corporate Property and Land,Third Party Payments,430100,Rendered by Private Contractors,09/05/2023,4130822-11956-86,912.00,OPUS BUILDING SERVICES LTD.
Regeneration Economy and Growth,Corporate Property and Land,Third Party Payments,430100,Rendered by Private Contractors,09/05/2023,4130822-11956-87,"1,127.53",OPUS BUILDING SERVICES LTD.
Regeneration Economy and Growth,Corporate Property and Land,Third Party Payments,430100,Rendered by Private Contractors,09/05/2023,4130822-11956-88,"1,127.53",OPUS BUILDING SERVICES LTD.
